Workbook

Sheet Взвешивание
B2: Турнир | C2: Чемпионат Украины по подъему на бицепс, становой тяге и многоповторному жиму | AB2: 1
B3: Дисциплины | C3: MBP + DL + SC
B5: Дисциплина | C5: Дата
B6: Многоповторный жим | C6: 2018-11-04
B7: Становая тяга | C7: 2018-11-04
B8: Строгий подъем на бицепс | C8: 2018-11-04
K9: =COUNT(K13:K262) -> 0 | M9: =COUNT(M13:M262) -> 0 | N9: =COUNT(N13:N262) -> 9 | O9: =COUNT(O13:O262) -> 19 | P9: =COUNT(P13:P262) -> 57
J10: 1-й подх
J11: PL | M11: BP | N11: MBP | O11: DL | P11: SC
A12: # | B12: Name | C12: BY | D12: Sex | E12: BW | F12: City | G12: Coach | H12: Tel | I12: Charge | J12: SQ | K12: BP | L12: DL
A13: 1 | B13: Турченюк Данила | C13: 2000-07-07 | D13: m | E13: 67.5 | F13: Харьков | G13: Шепелев Игорь | O13: 1
A14: =1+A13 -> 2 | B14: Самойлов Виталий | C14: 09.03.1983 | D14: m | E14: 100 | F14: Харьков | H14: 0965770050 | P14: 1
A15: =1+A14 -> 3 | B15: Лебедь Сергей | C15: 02.11.1987 | D15: m | E15: 100 | F15: Северодонецк | H15: 0997043886 | P15: 1
A16: 4 | B16: Зинченко Кирилл | C16: 24.06.2002 | D16: m | E16: 56 | F16: Старобельск | G16: Лебедь Сергей | H16: 0953650573 | P16: 1
A17: 5 | B17: Кость Александр | C17: 1968-05-04 | D17: m | E17: 82.5 | F17: Люботин | G17: Бабенко Виктор | O17: 1 | P17: 1
A18: 6 | B18: Горюшинский Сергей | C18: 1991-09-20 | D18: m | E18: 82.5 | F18: Люботин | P18: 1
A19: 7 | B19: Ерохин Андрей | C19: 2002-12-13 | D19: m | E19: 52 | F19: Люботин | G19: Бабенко Виктор | P19: 1
A20: 8 | B20: Кисличка Дмитрий | C20: 2002-07-19 | D20: m | E20: 75 | F20: Люботин | P20: 1
A21: 9 | B21: Ныщий Алексей | C21: 1997-06-18 | D21: m | E21: 125 | F21: Люботин | P21: 1
A22: 10 | B22: Герман Ирина | C22: 16.06.1975 | D22: f | E22: 60 | F22: Люботин | G22: Бабенко Виктор | P22: 1
A23: 11 | B23: Кисличка Александр | C23: 1978-08-03 | D23: m | E23: 110 | F23: Люботин | P23: 1
A24: 12 | B24: Родионов Сергей | C24: 2001-01-01 | D24: m | E24: 90 | F24: Люботин | P24: 1
A25: 13 | B25: Лукьянихин Роман | C25: 2001-10-17 | D25: m | E25: 82.5 | F25: Люботин | P25: 1
A26: 14 | B26: Бирюк Максим | C26: 2001-01-01 | D26: m | E26: 48 | F26: Люботин | P26: 1
A27: 15 | B27: Щербань Даниил | C27: 2004-10-02 | D27: m | E27: 82.5 | F27: Люботин | P27: 1
A28: 16 | B28: Гибнер Станислав | C28: 08.11.1979 | D28: m | E28: 75 | F28: Харьков | G28: Маслов Александр | H28: 0931594516 | O28: 1
A29: 17 | B29: Романенко Егор | C29: 1994-11-05 | D29: m | E29: 75 | F29: Харьков | G29: Бортник С. | P29: 1
A30: 18 | B30: Юскевич Сергей | C30: 1991-07-29 | D30: m | E30: 75 | F30: Харьков | P30: 1
A31: 19 | B31: Волокитина Татьяна | C31: 1995-11-02 | D31: f | E31: 56 | F31: Харьков | P31: 1
A32: 20 | B32: Кравченко Вадим | C32: 2004-09-24 | D32: m | E32: 82.5 | F32: Харьков | G32: Заливан Игорь | P32: 1
A33: 21 | B33: Ващенко Константин | C33: 1980-10-13 | D33: m | E33: 110 | F33: Харьков | G33: Фурсов Руслан | P33: 1
A34: 22 | B34: Никитенко Вадим | C34: 1999-03-03 | D34: m | E34: 75 | F34: Покровск, Донеская обл. | P34: 1
A35: 23 | B35: Тараненко Артур | C35: 1993-04-20 | D35: m | E35: 100 | F35: Покровск, Донетская обл. | P35: 1
A36: 24 | B36: Бреславец Антон | C36: 2001-07-23 | D36: m | E36: 90 | F36: Харьков | G36: Блажко В., Дяк С. | O36: 1
A37: 25 | B37: Зиненко Максим | C37: 1991-07-26 | D37: m | E37: 100 | F37: Харьков | G37: Нечаусов Максим | H37: 0634613998 | O37: 1
A38: 26 | B38: Андрущенко Артем | C38: 1987-07-26 | D38: m | E38: 90 | F38: Лозовая | O38: 1
A39: 27 | B39: Гавриленко Юлия | C39: 12.06.1994 | D39: f | E39: 56 | F39: Харьков | G39: Кравченко Максим | H39: 0992048652 | P39: 1
A40: 28 | B40: Гараджа Андрей | C40: 1962-01-13 | D40: m | E40: 75 | F40: Токмак | H40: 0969749789 | P40: 1
A41: 29 | B41: Кунеев Андрей | C41: 1991-04-18 | D41: m | E41: 82.5 | F41: Харьков | H41: 0987748132 | P41: 1
A42: 30 | B42: Татарников Андрей | C42: 1999-09-02 | D42: m | E42: 75 | F42: Харьков | H42: 0507661885 | P42: 55
A43: 31 | B43: Михайличенко Вадим | C43: 1997-07-08 | D43: m | E43: 75 | F43: Одесса | H43: 0974655809 | O43: 1
A44: 32 | B44: Коваленко Павел | C44: 1998-04-05 | D44: m | E44: 67.5 | F44: Одесса | H44: 0954570924 | O44: 1
A45: 33 | B45: Черепенин Игорь | C45: 1976-12-18 | D45: m | E45: 110 | F45: Харьков | G45: Чанышев Владислав | H45: 0506451990 | P45: 1
A46: 34 | B46: Луганский Александр | C46: 2006-03-08 | D46: m | E46: 52 | F46: Старобельск | P46: 1
A47: 35 | B47: Жильцов Михаил | C47: 2006-10-28 | D47: m | E47: 110 | F47: Старобельск | P47: 1
A48: 36 | B48: Власенко Николай | C48: 1989-05-18 | D48: m | E48: 75 | F48: Старобельск | H48: 0954614372 | P48: 1
A49: 37 | B49: Иванов Денис | C49: 1995-03-09 | D49: m | E49: 75 | F49: Вознесенск | H49: 0988990492 | P49: 49
A50: 38 | B50: Ольшанский Виктор | C50: 2000-01-14 | D50: m | E50: 60 | F50: Старобельск | P50: 1
A51: 39 | B51: Заика Любовь | C51: 07.07.1964 | D51: f | E51: 82.5 | F51: Старобельск | P51: 1
A52: 40 | B52: Киценко Константин | C52: 1994-10-20 | D52: m | E52: 67.5 | F52: Кременчуг | H52: 0688350430 | P52: 1
A53: 41 | B53: Билык Эдуард | C53: 1995-11-01 | D53: m | E53: 100 | F53: Кременчуг | H53: 0982022075 | P53: 1
A54: 42 | B54: Пестрак Виталий | C54: 1999-09-19 | D54: m | E54: 82.5 | F54: Одесса | H54: 0959193134 | O54: 1
A55: 43 | B55: Верховод Инна | C55: 1982-02-18 | D55: f | E55: 75 | F55: Старобельск | P55: 1
A56: 44 | B56: Решетняк Никита | C56: 2004-05-14 | D56: m | E56: 48 | F56: Старобельск | P56: 1
A57: 45 | B57: Загоровский Олег | C57: 2003-06-25 | D57: m | E57: 75 | F57: Старобельск | P57: 1
A58: 46 | B58: Кувичко Ангелина | C58: 2002-12-28 | D58: f | E58: 52 | F58: Старобельск | P58: 1
A59: 47 | B59: Бурмак Мария | C59: 2003-12-05 | D59: f | E59: 48 | F59: Старобельск | G59: Тарасов Олег | H59: 0990331879 | P59: 1
A60: 48 | B60: Сенченко Анжела | C60: 04.02.2005 | D60: f | E60: 48 | F60: Старобельск | N60: 1 | P60: 1
A61: 49 | B61: Жос Станислав | C61: 1994-08-27 | D61: m | E61: 75 | F61: Старобельск | P61: 1
A62: 50 | B62: Овчаренко Александр | C62: 1967-01-20 | D62: m | E62: 90 | F62: Старобельск | P62: 1
A63: 51 | B63: Иванская Наталья | C63: 1986-11-03 | D63: f | E63: 67.5 | F63: Мерефа | N63: 1
A64: 52 | B64: Мирошниченко Евгений | C64: 1989-11-01 | D64: m | E64: 75 | F64: Мерефа | N64: 1 | P64: 1
A65: 53 | B65: Мякотин Вадим | C65: 1982-02-15 | D65: m | E65: 100 | F65: Харьков | H65: 063 689 41 89 | N65: 1
A66: 54 | B66: Поляк Мария | C66: 1986-08-10 | D66: f | E66: 52 | F66: Харьков | O66: 1 | P66: 1
A67: 55 | B67: Дробицкий Максим | C67: 1998-08-26 | D67: m | E67: 67.5 | F67: Сватово | G67: Зайцев С. | O67: 1
A68: 56 | B68: Сакун Александр | C68: 1971-06-03 | D68: m | E68: 75 | F68: Харьков | P68: 1
A69: 57 | B69: Смирнов Алексей | C69: 04.08.1988 | D69: m | E69: 82.5 | F69: Харьков | H69: 0634659398 | P69: 1
A70: 58 | B70: Капитанюк Вячеслав | C70: 1969-11-09 | D70: m | E70: 82.5 | F70: Харьков | P70: 1
A71: 59 | B71: Гайдар Виталий | C71: 1990-03-26 | D71: m | E71: 82.5 | F71: Харьков | P71: 1
A72: 60 | B72: Чепрасов Максим | C72: 12.03.1994 | D72: m | E72: 82.5 | F72: Северодонецк | P72: 1
A73: 61 | B73: Иванов Денис | C73: 1995-03-09 | D73: m | E73: 75 | F73: Николаев | P73: 1
A74: 62 | B74: Павлов Сергей | C74: 25.09.1954 | D74: m | E74: 100 | F74: с Ватутино | G74: Шило Владимир | H74: 0669888540 | P74: 1
A75: 63 | B75: Дядченко Арсений | C75: 1996-07-25 | D75: m | E75: 82.5 | F75: Мерефа | G75: Чумак Виталий | H75: 0936763088 | P75: 1
A76: 64 | B76: Поляница Александр | C76: 1994-10-22 | D76: m | E76: 110 | F76: Харьков | H76: 0978908361 | O76: 1
A77: 65 | B77: Панасюченко Дмитрий | C77: 1992-05-16 | D77: m | E77: 82.5 | F77: Вознесенск | H77: 0500772218 | P77: 1
A78: 66 | B78: Гончар Алексей | C78: 1993-03-30 | D78: m | E78: 75 | F78: Светловодск | H78: 0971168617 | N78: 1 | P78: 1
A79: =1+A78 -> 67 | B79: Хордиков Максим | C79: 1998-12-05 | D79: m | E79: 82.5 | F79: Харьков | H79: 0965243948 | O79: 1
A80: 68 | B80: Пискун Олег | C80: 26.09.1962 | D80: m | E80: 100 | F80: Харьков | G80: Микуленко Александр | H80: 0990070762 | O80: 1
A81: 69 | B81: Пистунов Сергей | C81: 07.10.1967 | D81: m | E81: 90 | F81: Харьков | G81: Пискун Олег | H81: 0503431550 | O81: 1
A82: 70 | B82: Назаров Владимир | C82: 23.09.1970 | D82: m | E82: 90 | F82: Харьков | G82: Пискун Олег | O82: 1
A83: 71 | B83: Морозов Сергей | C83: 24.06.1979 | D83: m | E83: 75 | F83: Харьков | G83: Коц Артем | H83: 096 7028978 | N83: 1
A84: 72 | B84: Канделаки Тарас | C84: 1997-07-14 | D84: m | E84: 82.5 | F84: Люботин | P84: 1
A85: 73 | B85: Трунов Денис | C85: 1988-04-19 | D85: m | E85: 82.5 | F85: Харьков | G85: Маслов Александр | P85: 1
A86: 74 | B86: Башмакова Елена | C86: 17.07.1981 | D86: f | E86: 44 | F86: Харьков | G86: Люшуков Алексей | H86: 0505295747 | P86: 1
A87: 75 | B87: Рудь Надежда | C87: 1975-12-19 | D87: f | E87: 56 | F87: Балаклея | G87: Фурсал Дмитрий | O87: 1
A88: 76 | B88: Латуха Никита | C88: 2000-03-16 | D88: m | E88: 75 | F88: Балаклея | O88: 1
A89: 77 | B89: Пивовар Илья | C89: 2002-02-04 | D89: m | E89: 75 | F89: Балаклея | G89: Фурсал Дмитрий | O89: 1
A90: 78 | B90: Кругляк Виктория | C90: 1974-08-16 | D90: f | E90: 52 | F90: Харьков | G90: Кравченко Дмитрий | H90: 0972698443 | N90: 1
A91: 79 | B91: Кравченко Дмитрий | C91: 1989-04-11 | D91: m | E91: 100 | F91: Харьков | H91: 0637214747 | N91: 1
A92: 80 | B92: Онищенко Станислав | C92: 1985-03-09 | D92: m | E92: 100 | F92: Харьков | G92: Барановский Филипп | N92: 1
A93: 81
A94: 82
A95: 83
A96: 84
A97: 85
A98: 86
A99: 87
A100: 88
A101: 89
A102: 90
A103: 91
A104: 92
A105: 93
A106: 94
A107: 95
A108: 96
A109: 97
A110: 98
A111: 99
A112: 100
A113: 101
A114: 102
A115: 103
A116: 104
A117: 105
A118: 106
A119: 107
A120: 108
A121: 109
A122: 110
A123: 111
A124: 112
A125: 113
A126: 114
A127: 115
A128: 116
A129: 117
A130: 118
A131: 119
A132: 120
A133: 121
A134: 122
A135: 123
A136: 124
A137: 125
A138: 126
A139: 127
A140: 128
A141: 129
A142: 130
A143: =1+A142 -> 131
A144: 132
A145: 133
A146: 134
A147: 135
A148: 136
A149: 137
A150: 138
A151: 139
A152: 140
A153: 141
A154: 142
A155: 143
A156: 144
A157: 145
A158: 146
A159: 147
A160: 148
A161: 149
A162: 150
A163: 151
A164: 152
A165: 153
A166: 154
A167: 155
A168: 156
A169: 157
A170: 158
A171: 159
A172: 160
A173: 161
A174: 162
A175: 163
A176: 164
A177: 165
A178: 166
A179: 167
A180: 168
A181: 169
A182: 170
A183: 171
A184: 172
A185: 173
A186: 174
A187: 175
A188: 176
A189: 177
A190: 178
A191: 179
A192: 180
A193: 181
A194: 182
A195: 183
A196: 184
A197: 185
A198: 186
A199: 187
A200: 188
A201: 189
A202: 190
... 60 more rows

Sheet Ном
A1: 100% RAW Powerlifting Federation Ukraine
A2: Номинация Чемпионата Украины по подъему на бицепс, становой тяге и многоповторному жиму
A3: Харьков 04.11.2018
B4: Многоповторный жим
B5: 48 кг
A6: 1 | B6: Сенченко Анжела | C6: f | D6: 04.02.2005 | E6: O\T1 | F6: Старобельск
B7: 52 кг
A8: 1 | B8: Кругляк Виктория | C8: f | D8: 1974-08-16 | E8: O\M1 | F8: Харьков | G8: Кравченко Дмитрий
B9: 67,5 кг
A10: 1 | B10: Иванская Наталья | C10: f | D10: 1986-11-03 | E10: O | F10: Мерефа
B11: 75 кг
A12: 1 | B12: Мирошниченко Евгений | C12: m | D12: 1989-11-01 | E12: O | F12: Мерефа
A13: 2 | B13: Гончар Алексей | C13: m | D13: 1993-03-30 | E13: O | F13: Светловодск
A14: 3 | B14: Морозов Сергей | C14: m | D14: 24.06.1979 | E14: O\SM | F14: Харьков | G14: Коц Артем
B15: 100 кг
A16: 1 | B16: Мякотин Вадим | C16: m | D16: 1982-02-15 | E16: O\SM | F16: Харьков
A17: 2 | B17: Кравченко Дмитрий | C17: m | D17: 1989-04-11 | E17: O | F17: Харьков
A18: 3 | B18: Онищенко Станислав | C18: m | D18: 1985-03-09 | E18: O | F18: Харьков | G18: Барановский Филипп
B20: Становая тяга
B21: 52 кг
A22: 1 | B22: Поляк Мария | C22: f | D22: 1986-08-10 | E22: O | F22: Харьков
B23: 56 кг
A24: 1 | B24: Рудь Надежда | C24: f | D24: 1975-12-19 | E24: O\M1 | F24: Балаклея | G24: Фурсал Дмитрий
B25: 67,5 кг
A26: 1 | B26: Турченюк Данила | C26: m | D26: 2000-07-07 | E26: O\T3 | F26: Харьков | G26: Шепелев Игорь
A27: 2 | B27: Коваленко Павел | C27: m | D27: 1998-04-05 | E27: O\J | F27: Одесса
A28: 3 | B28: Дробицкий Максим | C28: m | D28: 1998-08-26 | E28: O\J | F28: Сватово | G28: Зайцев С.
B29: 75 кг
A30: 1 | B30: Гибнер Станислав | C30: m | D30: 08.11.1979 | E30: O\SM | F30: Харьков | G30: Маслов Александр
A31: 2 | B31: Михайличенко Вадим | C31: m | D31: 1997-07-08 | E31: O\J | F31: Одесса
A32: 3 | B32: Латуха Никита | C32: m | D32: 2000-03-16 | E32: O\T3 | F32: Балаклея
A33: 4 | B33: Пивовар Илья | C33: m | D33: 2002-02-04 | E33: O\T2 | F33: Балаклея | G33: Фурсал Дмитрий
B34: 82,5 кг
A35: 1 | B35: Кость Александр | C35: m | D35: 1968-05-04 | E35: O\M3 | F35: Люботин | G35: Бабенко Виктор
A36: 2 | B36: Пестрак Виталий | C36: m | D36: 1999-09-19 | E36: O\T3 | F36: Одесса
A37: 3 | B37: Хордиков Максим | C37: m | D37: 1998-12-05 | E37: O\T3 | F37: Харьков
B38: 90 кг
A39: 1 | B39: Бреславец Антон | C39: m | D39: 2001-07-23 | E39: O\T2 | F39: Харьков | G39: Блажко В., Дяк С.
A40: 2 | B40: Андрущенко Артем | C40: m | D40: 1987-07-26 | E40: O | F40: Лозовая
A41: 3 | B41: Пистунов Сергей | C41: m | D41: 07.10.1967 | E41: O\M3 | F41: Харьков | G41: Пискун Олег
A42: 4 | B42: Назаров Владимир | C42: m | D42: 23.09.1970 | E42: O\M2 | F42: Харьков | G42: Пискун Олег
B43: 100 кг
A44: 1 | B44: Зиненко Максим | C44: m | D44: 1991-07-26 | E44: O | F44: Харьков | G44: Нечаусов Максим
A45: 2 | B45: Пискун Олег | C45: m | D45: 26.09.1962 | E45: O\M4 | F45: Харьков | G45: Микуленко Александр
B46: 110 кг
A47: 1 | B47: Поляница Александр | C47: m | D47: 1994-10-22 | E47: O\J | F47: Харьков
B49: Strict Curl
B50: 44 кг
A51: 1 | B51: Башмакова Елена | C51: f | D51: 17.07.1981 | E51: O\SM | F51: Харьков | G51: Люшуков Алексей
B52: 48 кг
A53: 1 | B53: Бурмак Мария | C53: f | D53: 2003-12-05 | E53: O\T1 | F53: Старобельск | G53: Тарасов Олег
A54: 2 | B54: Сенченко Анжела | C54: f | D54: 04.02.2005 | E54: O\T1 | F54: Старобельск
B55: 52 кг
A56: 1 | B56: Кувичко Ангелина | C56: f | D56: 2002-12-28 | E56: O\T1 | F56: Старобельск
A57: 2 | B57: Поляк Мария | C57: f | D57: 1986-08-10 | E57: O | F57: Харьков
B58: 56 кг
A59: 1 | B59: Волокитина Татьяна | C59: f | D59: 1995-11-02 | E59: O\J | F59: Харьков
A60: 2 | B60: Гавриленко Юлия | C60: f | D60: 12.06.1994 | E60: O\J | F60: Харьков | G60: Кравченко Максим
B61: 60 кг
A62: 1 | B62: Герман Ирина | C62: f | D62: 16.06.1975 | E62: O\M1 | F62: Люботин | G62: Бабенко Виктор
B63: 75 кг
A64: 1 | B64: Верховод Инна | C64: f | D64: 1982-02-18 | E64: O\SM | F64: Старобельск
B65: 82,5 кг
A66: 1 | B66: Заика Любовь | C66: f | D66: 07.07.1964 | E66: O\M3 | F66: Старобельск
B67: 48 кг
A68: 1 | B68: Бирюк Максим | C68: m | D68: 2001-01-01 | E68: O\T2 | F68: Люботин
A69: 2 | B69: Решетняк Никита | C69: m | D69: 2004-05-14 | E69: O\T1 | F69: Старобельск
B70: 52 кг
A71: 1 | B71: Ерохин Андрей | C71: m | D71: 2002-12-13 | E71: O\T1 | F71: Люботин | G71: Бабенко Виктор
A72: 2 | B72: Луганский Александр | C72: m | D72: 2006-03-08 | E72: O\C12 | F72: Старобельск
B73: 56 кг
A74: 1 | B74: Зинченко Кирилл | C74: m | D74: 24.06.2002 | E74: O\T2 | F74: Старобельск | G74: Лебедь Сергей
B75: 60 кг
A76: 1 | B76: Ольшанский Виктор | C76: m | D76: 2000-01-14 | E76: O\T3 | F76: Старобельск
B77: 67,5 кг
A78: 1 | B78: Киценко Константин | C78: m | D78: 1994-10-20 | E78: O\J | F78: Кременчуг
B79: 75 кг
A80: 1 | B80: Татарников Андрей | C80: m | D80: 1999-09-02 | E80: O\T3 | F80: Харьков
A81: 2 | B81: Иванов Денис | C81: m | D81: 1995-03-09 | E81: O\J | F81: Вознесенск
A82: 3 | B82: Кисличка Дмитрий | C82: m | D82: 2002-07-19 | E82: O\T2 | F82: Люботин
A83: 4 | B83: Романенко Егор | C83: m | D83: 1994-11-05 | E83: O\J | F83: Харьков | G83: Бортник С.
A84: 5 | B84: Юскевич Сергей | C84: m | D84: 1991-07-29 | E84: O | F84: Харьков
A85: 6 | B85: Никитенко Вадим | C85: m | D85: 1999-03-03 | E85: O\T3 | F85: Покровск, Донеская обл.
A86: 7 | B86: Гараджа Андрей | C86: m | D86: 1962-01-13 | E86: O\M4 | F86: Токмак
A87: 8 | B87: Власенко Николай | C87: m | D87: 1989-05-18 | E87: O | F87: Старобельск
A88: 9 | B88: Загоровский Олег | C88: m | D88: 2003-06-25 | E88: O\T1 | F88: Старобельск
A89: 10 | B89: Жос Станислав | C89: m | D89: 1994-08-27 | E89: O\J | F89: Старобельск
A90: 11 | B90: Мирошниченко Евгений | C90: m | D90: 1989-11-01 | E90: O | F90: Мерефа
A91: 12 | B91: Сакун Александр | C91: m | D91: 1971-06-03 | E91: O\M2 | F91: Харьков
A92: 13 | B92: Иванов Денис | C92: m | D92: 1995-03-09 | E92: O\J | F92: Николаев
A93: 14 | B93: Гончар Алексей | C93: m | D93: 1993-03-30 | E93: O | F93: Светловодск
B94: 82,5 кг
A95: 1 | B95: Кость Александр | C95: m | D95: 1968-05-04 | E95: O\M3 | F95: Люботин | G95: Бабенко Виктор
A96: 2 | B96: Горюшинский Сергей | C96: m | D96: 1991-09-20 | E96: O | F96: Люботин
A97: 3 | B97: Лукьянихин Роман | C97: m | D97: 2001-10-17 | E97: O\T2 | F97: Люботин
A98: 4 | B98: Щербань Даниил | C98: m | D98: 2004-10-02 | E98: O\T1 | F98: Люботин
A99: 5 | B99: Кравченко Вадим | C99: m | D99: 2004-09-24 | E99: O\T1 | F99: Харьков | G99: Заливан Игорь
A100: 6 | B100: Кунеев Андрей | C100: m | D100: 1991-04-18 | E100: O | F100: Харьков
A101: 7 | B101: Смирнов Алексей | C101: m | D101: 04.08.1988 | E101: O | F101: Харьков
A102: 8 | B102: Капитанюк Вячеслав | C102: m | D102: 1969-11-09 | E102: O\M2 | F102: Харьков
A103: 9 | B103: Гайдар Виталий | C103: m | D103: 1990-03-26 | E103: O | F103: Харьков
A104: 10 | B104: Чепрасов Максим | C104: m | D104: 12.03.1994 | E104: O\J | F104: Северодонецк
A105: 11 | B105: Дядченко Арсений | C105: m | D105: 1996-07-25 | E105: O\J | F105: Мерефа | G105: Чумак Виталий
A106: 12 | B106: Панасюченко Дмитрий | C106: m | D106: 1992-05-16 | E106: O | F106: Вознесенск
A107: 13 | B107: Канделаки Тарас | C107: m | D107: 1997-07-14 | E107: O\J | F107: Люботин
A108: 14 | B108: Трунов Денис | C108: m | D108: 1988-04-19 | E108: O | F108: Харьков | G108: Маслов Александр
B109: 90 кг
A110: 1 | B110: Родионов Сергей | C110: m | D110: 2001-01-01 | E110: O\T2 | F110: Люботин
A111: 2 | B111: Овчаренко Александр | C111: m | D111: 1967-01-20 | E111: O\M3 | F111: Старобельск
B112: 100 кг
A113: 1 | B113: Самойлов Виталий | C113: m | D113: 09.03.1983 | E113: O\SM | F113: Харьков
A114: 2 | B114: Лебедь Сергей | C114: m | D114: 02.11.1987 | E114: O | F114: Северодонецк
A115: 3 | B115: Тараненко Артур | C115: m | D115: 1993-04-20 | E115: O | F115: Покровск, Донетская обл.
A116: 4 | B116: Билык Эдуард | C116: m | D116: 1995-11-01 | E116: O\J | F116: Кременчуг
A117: 5 | B117: Павлов Сергей | C117: m | D117: 25.09.1954 | E117: O\M5 | F117: с Ватутино | G117: Шило Владимир
B118: 110 кг
A119: 1 | B119: Кисличка Александр | C119: m | D119: 1978-08-03 | E119: O\M1 | F119: Люботин
A120: 2 | B120: Ващенко Константин | C120: m | D120: 1980-10-13 | E120: O\SM | F120: Харьков | G120: Фурсов Руслан
A121: 3 | B121: Черепенин Игорь | C121: m | D121: 1976-12-18 | E121: O\M1 | F121: Харьков | G121: Чанышев Владислав
A122: 4 | B122: Жильцов Михаил | C122: m | D122: 2006-10-28 | E122: O\C12 | F122: Старобельск
B123: 125 кг
A124: 1 | B124: Ныщий Алексей | C124: m | D124: 1997-06-18 | E124: O\J | F124: Люботин

Sheet Расп
A1: РАСПИСАНИЕ
B3: Пауэрлифтинг | H3: Жим лежа | N3: Многоповторный жим | T3: Становая тяга | Z3: Строгий подъем на бицепс
B4: пол | C4: в. к. | D4: кол. чел. | E4: № потока | F4: время | H4: пол | I4: в. к. | J4: кол. чел. | K4: № потока | L4: время | N4: пол | O4: в. к. | P4: кол. чел. | Q4: № потока | R4: время | T4: пол | U4: в. к. | V4: кол. чел. | W4: № потока | X4: время | Z4: пол | AA4: в. к. | AB4: кол. чел. | AC4: № потока | AD4: время
B5: ЖЕНЩИНЫ | C5: 44 | H5: ЖЕНЩИНЫ | I5: 44 | N5: ЖЕНЩИНЫ | O5: 44 | T5: ЖЕНЩИНЫ | U5: 44 | Z5: ЖЕНЩИНЫ | AA5: 44 | AB5: 1
C6: 48 | I6: 48 | O6: 48 | P6: 1 | U6: 48 | AA6: 48 | AB6: 2
C7: 52 | I7: 52 | O7: 52 | P7: 1 | U7: 52 | V7: 1 | AA7: 52 | AB7: 2
C8: 56 | I8: 56 | O8: 56 | U8: 56 | V8: 1 | AA8: 56 | AB8: 2
C9: 60 | I9: 60 | O9: 60 | U9: 60 | AA9: 60 | AB9: 1
C10: 67.5 | I10: 67.5 | O10: 67.5 | P10: 1 | U10: 67.5 | AA10: 67.5
C11: 75 | I11: 75 | O11: 75 | U11: 75 | AA11: 75 | AB11: 1
C12: 82.5 | I12: 82.5 | O12: 82.5 | U12: 82.5 | AA12: 82.5 | AB12: 1
C13: 90 | I13: 90 | O13: 90 | U13: 90 | AA13: 90
C14: 90+ | I14: 90+ | O14: 90+ | U14: 90+ | AA14: 90+
B15: МУЖЧИНЫ | C15: 48 | H15: МУЖЧИНЫ | I15: 48 | N15: МУЖЧИНЫ | O15: 48 | T15: МУЖЧИНЫ | U15: 48 | Z15: МУЖЧИНЫ | AA15: 48 | AB15: 2
C16: 52 | I16: 52 | O16: 52 | U16: 52 | AA16: 52 | AB16: 2
C17: 56 | I17: 56 | O17: 56 | U17: 56 | AA17: 56 | AB17: 1
C18: 60 | I18: 60 | O18: 60 | U18: 60 | AA18: 60 | AB18: 1
C19: 67.5 | I19: 67.5 | O19: 67.5 | U19: 67.5 | V19: 3 | AA19: 67.5 | AB19: 1
C20: 75 | I20: 75 | O20: 75 | P20: 3 | U20: 75 | V20: 4 | AA20: 75 | AB20: 14
C21: 82.5 | I21: 82.5 | O21: 82.5 | U21: 82.5 | V21: 3 | AA21: 82.5 | AB21: 14
C22: 90 | I22: 90 | O22: 90 | U22: 90 | V22: 4 | AA22: 90 | AB22: 2
C23: 100 | I23: 100 | O23: 100 | P23: 3 | U23: 100 | V23: 2 | AA23: 100 | AB23: 5
C24: 110 | I24: 110 | O24: 110 | U24: 110 | V24: 1 | AA24: 110 | AB24: 4
C25: 125 | I25: 125 | O25: 125 | U25: 125 | AA25: 125 | AB25: 1
C26: 140 | I26: 140 | O26: 140 | U26: 140 | AA26: 140
C27: 145+ | I27: 145+ | O27: 145+ | U27: 145+ | AA27: 145+

Sheet Карт (hidden)
D1: RAW 100% Ukraine
D2: =Взвешивание!C2 -> Чемпионат Украины по подъему на бицепс, становой тяге и многоповторному жиму
D3: Многоповторный жим
A4: Вес. Кат.: | E4: ФИО:
A5: Страна: | E5: Город:
A6: Дата рожд.: | E6: Разряд:
A7: Клуб: | E7: Собств. Вес
A8: Тренер: | E8: Группа
A10: Подход | C10: 1 | D10: 2 | E10: 3 | F10: 4 | G10: Место
A11: Результат
A13: Подпись: атлета/тренера___________________________________________________
D15: RAW 100% Ukraine
D16: =D2 -> Чемпионат Украины по подъему на бицепс, становой тяге и многоповторному жиму
D17: Многоповторный жим
A18: Вес. Кат.: | E18: ФИО:
A19: Страна: | E19: Город:
A20: Дата рожд.: | E20: Разряд:
A21: Клуб: | E21: Собств. Вес
A22: Тренер: | E22: Группа
A24: Подход | C24: 1 | D24: 2 | E24: 3 | F24: 4 | G24: Место
A25: Результат
A27: Подпись: атлета/тренера___________________________________________________
D29: RAW 100% Ukraine
D30: =D16 -> Чемпионат Украины по подъему на бицепс, становой тяге и многоповторному жиму
D31: Многоповторный жим
A32: Вес. Кат.: | E32: ФИО:
A33: Страна: | E33: Город:
A34: Дата рожд.: | E34: Разряд:
A35: Клуб: | E35: Собств. Вес
A36: Тренер: | E36: Группа
A38: Подход | C38: 1 | D38: 2 | E38: 3 | F38: 4 | G38: Место
A39: Результат
A41: Подпись: атлета/тренера___________________________________________________
D43: RAW 100% Ukraine
D44: =D30 -> Чемпионат Украины по подъему на бицепс, становой тяге и многоповторному жиму
D45: Многоповторный жим
A46: Вес. Кат.: | E46: ФИО:
A47: Страна: | E47: Город:
A48: Дата рожд.: | E48: Разряд:
A49: Клуб: | E49: Собств. Вес
A50: Тренер: | E50: Группа
A52: Подход | C52: 1 | D52: 2 | E52: 3 | F52: 4 | G52: Место
A53: Результат
A55: Подпись: атлета/тренера___________________________________________________
D57: RAW 100% Ukraine
D58: =D44 -> Чемпионат Украины по подъему на бицепс, становой тяге и многоповторному жиму
D59: Многоповторный жим
A60: Вес. Кат.: | E60: ФИО:
A61: Страна: | E61: Город:
A62: Дата рожд.: | E62: Разряд:
A63: Клуб: | E63: Собств. Вес
A64: Тренер: | E64: Группа
A66: Подход | C66: 1 | D66: 2 | E66: 3 | F66: 4 | G66: Место
A67: Результат
A69: Подпись: атлета/тренера___________________________________________________
D71: RAW 100% Ukraine
D72: =D58 -> Чемпионат Украины по подъему на бицепс, становой тяге и многоповторному жиму
D73: Многоповторный жим
A74: Вес. Кат.: | E74: ФИО:
A75: Страна: | E75: Город:
A76: Дата рожд.: | E76: Разряд:
A77: Клуб: | E77: Собств. Вес
A78: Тренер: | E78: Группа
A80: Подход | C80: 1 | D80: 2 | E80: 3 | F80: 4 | G80: Место
A81: Результат
A83: Подпись: атлета/тренера___________________________________________________
D84: Многоповторный жим
D85: RAW 100% Ukraine
D86: =D72 -> Чемпионат Украины по подъему на бицепс, становой тяге и многоповторному жиму
A88: Вес. Кат.: | E88: ФИО:
A89: Страна: | E89: Город:
A90: Дата рожд.: | E90: Разряд:
A91: Клуб: | E91: Собств. Вес
A92: Тренер: | E92: Группа
A94: Подход | C94: 1 | D94: 2 | E94: 3 | F94: 4 | G94: Место
A95: Результат
A97: Подпись: атлета/тренера___________________________________________________
D99: RAW 100% Ukraine
D100: =D86 -> Чемпионат Украины по подъему на бицепс, становой тяге и многоповторному жиму
A102: Вес. Кат.: | E102: ФИО:
A103: Страна: | E103: Город:
A104: Дата рожд.: | E104: Разряд:
A105: Клуб: | E105: Собств. Вес
A106: Тренер: | E106: Группа
A108: Подход | C108: 1 | D108: 2 | E108: 3 | F108: 4 | G108: Место
A109: Результат
A111: Подпись: атлета/тренера___________________________________________________
D113: RAW 100% Ukraine
D114: =D100 -> Чемпионат Украины по подъему на бицепс, становой тяге и многоповторному жиму
D115: Многоповторный жим
A116: Вес. Кат.: | E116: ФИО:
A117: Страна: | E117: Город:
A118: Дата рожд.: | E118: Разряд:
A119: Клуб: | E119: Собств. Вес
A120: Тренер: | E120: Группа
A122: Подход | C122: 1 | D122: 2 | E122: 3 | F122: 4 | G122: Место
A123: Результат
A125: Подпись: атлета/тренера___________________________________________________
D127: RAW 100% Ukraine
D128: =D114 -> Чемпионат Украины по подъему на бицепс, становой тяге и многоповторному жиму
D129: Многоповторный жим
A130: Вес. Кат.: | E130: ФИО:
A131: Страна: | E131: Город:
A132: Дата рожд.: | E132: Разряд:
A133: Клуб: | E133: Собств. Вес
A134: Тренер: | E134: Группа
A136: Подход | C136: 1 | D136: 2 | E136: 3 | F136: 4 | G136: Место
A137: Результат
A139: Подпись: атлета/тренера___________________________________________________
D141: RAW 100% Ukraine
D142: =D128 -> Чемпионат Украины по подъему на бицепс, становой тяге и многоповторному жиму
D143: Многоповторный жим
A144: Вес. Кат.: | E144: ФИО:
A145: Страна: | E145: Город:
A146: Дата рожд.: | E146: Разряд:
A147: Клуб: | E147: Собств. Вес
A148: Тренер: | E148: Группа
A150: Подход | C150: 1 | D150: 2 | E150: 3 | F150: 4 | G150: Место
A151: Результат
A153: Подпись: атлета/тренера___________________________________________________
D155: RAW 100% Ukraine
D156: =D142 -> Чемпионат Украины по подъему на бицепс, становой тяге и многоповторному жиму
A158: Вес. Кат.: | E158: ФИО:
A159: Страна: | E159: Город:
A160: Дата рожд.: | E160: Разряд:
A161: Клуб: | E161: Собств. Вес
A162: Тренер: | E162: Группа
A164: Подход | C164: 1 | D164: 2 | E164: 3 | F164: 4 | G164: Место
A165: Результат
A167: Подпись: атлета/тренера___________________________________________________
D169: RAW 100% Ukraine
D170: =D156 -> Чемпионат Украины по подъему на бицепс, становой тяге и многоповторному жиму
D171: Многоповторный жим
A172: Вес. Кат.: | E172: ФИО:
A173: Страна: | E173: Город:
A174: Дата рожд.: | E174: Разряд:
A175: Клуб: | E175: Собств. Вес
A176: Тренер: | E176: Группа
A178: Подход | C178: 1 | D178: 2 | E178: 3 | F178: 4 | G178: Место
A179: Результат
A181: Подпись: атлета/тренера___________________________________________________
D183: RAW 100% Ukraine
D184: =D170 -> Чемпионат Украины по подъему на бицепс, становой тяге и многоповторному жиму
D185: Многоповторный жим
A186: Вес. Кат.: | E186: ФИО:
A187: Страна: | E187: Город:
A188: Дата рожд.: | E188: Разряд:
A189: Клуб: | E189: Собств. Вес
A190: Тренер: | E190: Группа
A192: Подход | C192: 1 | D192: 2 | E192: 3 | F192: 4 | G192: Место
A193: Результат
A195: Подпись: атлета/тренера___________________________________________________
D197: RAW 100% Ukraine
D198: =D184 -> Чемпионат Украины по подъему на бицепс, становой тяге и многоповторному жиму
D199: Многоповторный жим
A200: Вес. Кат.: | E200: ФИО:
A201: Страна: | E201: Город:
A202: Дата рожд.: | E202: Разряд:
A203: Клуб: | E203: Собств. Вес
A204: Тренер: | E204: Группа
A206: Подход | C206: 1 | D206: 2 | E206: 3 | F206: 4 | G206: Место
A207: Результат
A209: Подпись: атлета/тренера___________________________________________________
D210: Многоповторный жим
D211: RAW 100% Ukraine
D212: =D198 -> Чемпионат Украины по подъему на бицепс, становой тяге и многоповторному жиму
A214: Вес. Кат.: | E214: ФИО:
A215: Страна: | E215: Город:
A216: Дата рожд.: | E216: Разряд:
A217: Клуб: | E217: Собств. Вес
A218: Тренер: | E218: Группа
A220: Подход | C220: 1 | D220: 2 | E220: 3 | F220: 4 | G220: Место
A221: Результат
A223: Подпись: атлета/тренера___________________________________________________
D225: RAW 100% Ukraine
D226: =D212 -> Чемпионат Украины по подъему на бицепс, становой тяге и многоповторному жиму
A228: Вес. Кат.: | E228: ФИО:
A229: Страна: | E229: Город:
A230: Дата рожд.: | E230: Разряд:
A231: Клуб: | E231: Собств. Вес
A232: Тренер: | E232: Группа
A234: Подход | C234: 1 | D234: 2 | E234: 3 | F234: 4 | G234: Место
A235: Результат
A237: Подпись: атлета/тренера___________________________________________________
D239: RAW 100% Ukraine
D240: =D226 -> Чемпионат Украины по подъему на бицепс, становой тяге и многоповторному жиму
A242: Вес. Кат.: | E242: ФИО:
A243: Страна: | E243: Город:
A244: Дата рожд.: | E244: Разряд:
A245: Клуб: | E245: Собств. Вес
A246: Тренер: | E246: Группа
A248: Подход | C248: 1 | D248: 2 | E248: 3 | F248: 4 | G248: Место
A249: Результат
A251: Подпись: атлета/тренера___________________________________________________
D253: RAW 100% Ukraine
D254: =D240 -> Чемпионат Украины по подъему на бицепс, становой тяге и многоповторному жиму
A256: Вес. Кат.: | E256: ФИО:
A257: Страна: | E257: Город:
A258: Дата рожд.: | E258: Разряд:
A259: Клуб: | E259: Собств. Вес
... 1974 more rows

Sheet BP
B1: Приглашается | C1: в.к. | K1: АБСОЛЮТКА (ЖЕНЩИНЫ) | R1: АБСОЛЮТКА (МУЖЧИНЫ) | Y1: стр ЖЕН 1 | Z1: 0 | AA1: № потока | AB1: 1
I2: Место | J2: Имя | P2: K Малоне | R2: Имя | V2: К Шварц | Y2: стр ЖЕН 2 | Z2: 0 | AA2: № попытки | AB2: 1
I3: 1 | Y3: стр МУЖ 1 | Z3: 0 | AA3: стр на помосте | AB3: 0
B4: Готовятся | I4: 2 | Y4: стр МУЖ 2 | Z4: 0 | AA4: стр текущей в.к. | AB4: 0
I5: 3 | Y5: стр поток 1 | Z5: 0 | AA5: 2 потока в текущей в.к. | AB5: 0
W6: 2018-04-15 | Y6: стр поток 2 | Z6: 0
B7: Bench Press
I8: Попытки | Q8: Факт | S8: Прогноз
A9: № | B9: имя | C9: пол | D9: д.р. | E9: город | F9: с. в. | G9: кат. | H9: K | I9: 1 | K9: 2 | M9: 3 | O9: 4 | Q9: рез-т | R9: коэф | S9: рез-т | T9: место | U9: коэф | V9: тренер | W9: инфо для абсолютки | X9: РУ возр
E10: Поток | F10: 1 | G10: 0 | H10: чел.

Sheet MBP
B1: Приглашается | C1: в.к. | K1: АБСОЛЮТКА (ЖЕНЩИНЫ) | M1: АБСОЛЮТКА (МУЖЧИНЫ) | Y1: стр ЖЕН 1 | Z1: 13 | AA1: № потока | AB1: 1
I2: Место | J2: Имя | L2: Повт. | M2: Имя | Q2: Повт. | Y2: стр ЖЕН 2 | Z2: 17 | AA2: № попытки | AB2: 1
I3: 1 | Y3: стр МУЖ 1 | Z3: 21 | AA3: стр на помосте | AB3: 0
B4: Готовятся | I4: 2 | Y4: стр МУЖ 2 | Z4: 27 | AA4: стр текущей в.к. | AB4: 0
I5: 3 | Y5: стр сейчас 1 | Z5: 0 | AA5: 2 потока в текущей в.к.
R6: 2018-11-04 | Y6: стр сейчас 2 | Z6: 0
B7: Многоповторный жим
A9: № | B9: имя | C9: пол | D9: д.р. | E9: город | F9: с. в. | G9: кат. | H9: штанга | I9: рез-т | J9: тренер | K9: инфо для абсолютки | L9: РУ возр
E10: Поток | F10: 1 | G10: 3 | H10: чел.
B11: Женщины | C11: 3
A12: 1 | E12: 48 | F12: кг | K12: РУ | L12: 98
A13: - | B13: Сенченко Анжела | C13: f | D13: 04.02.2005 | E13: Старобельск | F13: 48 | G13: =IF(D13<>"", INDEX(инфо!$H$3:$H$27, 1+MATCH(-0.001+DATEDIF(D13,$R$6,"y"),инфо!$F$3:$F$27,1)), "") -> O\T1 | H13: =IF(C13="m",MROUND(F13+1.2499,2.5), MROUND(F13/2+1.2499,2.5) ) -> 25
A14: 1 | E14: 52 | F14: кг | K14: РУ | L14: 112
A15: - | B15: Кругляк Виктория | C15: f | D15: 1974-08-16 | E15: Харьков | F15: 52 | G15: =IF(D15<>"", INDEX(инфо!$H$3:$H$27, 1+MATCH(-0.001+DATEDIF(D15,$R$6,"y"),инфо!$F$3:$F$27,1)), "") -> O\M1 | H15: =IF(C15="m",MROUND(F15+1.2499,2.5), MROUND(F15/2+1.2499,2.5) ) -> 27.5 | J15: Кравченко Дмитрий | L15: 110
A16: 1 | E16: 67,5 | F16: кг | K16: РУ | L16: 109
A17: - | B17: Иванская Наталья | C17: f | D17: 1986-11-03 | E17: Мерефа | F17: 67.5 | G17: =IF(D17<>"", INDEX(инфо!$H$3:$H$27, 1+MATCH(-0.001+DATEDIF(D17,$R$6,"y"),инфо!$F$3:$F$27,1)), "") -> O | H17: =IF(C17="m",MROUND(F17+1.2499,2.5), MROUND(F17/2+1.2499,2.5) ) -> 35 | L17: 62
B18: Мужчины | C18: 6
E19: Поток | F19: 2 | G19: 6 | H19: чел.
A20: 3 | E20: 75 | F20: кг | K20: РУ | L20: 43
A21: - | B21: Мирошниченко Евгений | C21: m | D21: 1989-11-01 | E21: Мерефа | F21: 75 | G21: =IF(D21<>"", INDEX(инфо!$H$3:$H$27, 1+MATCH(-0.001+DATEDIF(D21,$R$6,"y"),инфо!$F$3:$F$27,1)), "") -> O | H21: =IF(C21="m",MROUND(F21+1.2499,2.5), MROUND(F21/2+1.2499,2.5) ) -> 75 | L21: 37
A22: - | B22: Гончар Алексей | C22: m | D22: 1993-03-30 | E22: Светловодск | F22: 75 | G22: =IF(D22<>"", INDEX(инфо!$H$3:$H$27, 1+MATCH(-0.001+DATEDIF(D22,$R$6,"y"),инфо!$F$3:$F$27,1)), "") -> O | H22: =IF(C22="m",MROUND(F22+1.2499,2.5), MROUND(F22/2+1.2499,2.5) ) -> 75 | L22: 37
A23: - | B23: Морозов Сергей | C23: m | D23: 24.06.1979 | E23: Харьков | F23: 75 | G23: =IF(D23<>"", INDEX(инфо!$H$3:$H$27, 1+MATCH(-0.001+DATEDIF(D23,$R$6,"y"),инфо!$F$3:$F$27,1)), "") -> O\SM | H23: =IF(C23="m",MROUND(F23+1.2499,2.5), MROUND(F23/2+1.2499,2.5) ) -> 75 | J23: Коц Артем | L23: 37
A24: 3 | E24: 100 | F24: кг | K24: РУ | L24: 94
A25: - | B25: Мякотин Вадим | C25: m | D25: 1982-02-15 | E25: Харьков | F25: 100 | G25: =IF(D25<>"", INDEX(инфо!$H$3:$H$27, 1+MATCH(-0.001+DATEDIF(D25,$R$6,"y"),инфо!$F$3:$F$27,1)), "") -> O\SM | H25: =IF(C25="m",MROUND(F25+1.2499,2.5), MROUND(F25/2+1.2499,2.5) ) -> 100 | L25: 41
A26: - | B26: Кравченко Дмитрий | C26: m | D26: 1989-04-11 | E26: Харьков | F26: 100 | G26: =IF(D26<>"", INDEX(инфо!$H$3:$H$27, 1+MATCH(-0.001+DATEDIF(D26,$R$6,"y"),инфо!$F$3:$F$27,1)), "") -> O | H26: =IF(C26="m",MROUND(F26+1.2499,2.5), MROUND(F26/2+1.2499,2.5) ) -> 100 | L26: 67
A27: - | B27: Онищенко Станислав | C27: m | D27: 1985-03-09 | E27: Харьков | F27: 100 | G27: =IF(D27<>"", INDEX(инфо!$H$3:$H$27, 1+MATCH(-0.001+DATEDIF(D27,$R$6,"y"),инфо!$F$3:$F$27,1)), "") -> O | H27: =IF(C27="m",MROUND(F27+1.2499,2.5), MROUND(F27/2+1.2499,2.5) ) -> 100 | J27: Барановский Филипп | L27: 94

Sheet DL
B1: Приглашается | C1: в.к. | K1: АБСОЛЮТКА (ЖЕНЩИНЫ) | R1: АБСОЛЮТКА (МУЖЧИНЫ) | Y1: стр ЖЕН 1 | Z1: 13 | AA1: № потока | AB1: 1
I2: Место | J2: Имя | P2: K Малоне | R2: Имя | V2: К Шварц | Y2: стр ЖЕН 2 | Z2: 15 | AA2: № попытки | AB2: 1
I3: 1 | Y3: стр МУЖ 1 | Z3: 18 | AA3: стр на помосте | AB3: 0
B4: Готовятся | I4: 2 | Y4: стр МУЖ 2 | Z4: 39 | AA4: стр текущей в.к. | AB4: 0
I5: 3 | Y5: стр поток 1 | Z5: 0 | AA5: 2 потока в текущей в.к. | AB5: 0
W6: 2018-11-04 | Y6: стр поток 2 | Z6: 0
B7: Становая тяга
I8: Попытки | Q8: Факт | S8: Прогноз
A9: № | B9: имя | C9: пол | D9: д.р. | E9: город | F9: с. в. | G9: кат. | H9: K | I9: 1 | K9: 2 | M9: 3 | O9: 4 | Q9: рез-т | R9: коэф | S9: рез-т | T9: место | U9: коэф | V9: тренер | W9: инфо для абсолютки | X9: РУ возр
E10: Поток | F10: 1 | G10: 19 | H10: чел.
B11: Женщины | C11: 2
A12: 1 | E12: 52 | F12: кг | P12: РУ | Q12: 140.5
A13: - | B13: Поляк Мария | C13: f | D13: 1986-08-10 | E13: Харьков | F13: 52 | G13: =IF(D13<>"", INDEX(инфо!$H$3:$H$27, 1+MATCH(-0.001+DATEDIF(D13,$W$6,"y"),инфо!$F$3:$F$27,1)), "") -> O | H13: =IF( OR(C13="", NOT(ISNUMBER(F13))), "", VLOOKUP(F13, инфо!$A$3:$C$3901, IF(C13="m", 3,2))) -> 0.9686 | I13: 1 | Q13: =IF(N13="+",M13, IF(L13="+",K13,IF(J13="+",I13,0))) -> 0 | R13: =IF( ISNUMBER( Q13*H13 ), Q13*H13, "-") -> 0 | S13: =IF( AND(N13<>"-", ISNUMBER(M13)), M13, IF(AND(L13<>"-", ISNUMBER(K13)), K13, IF(AND(J13<>"-", ISNUMBER(I13)), I13, Q13 ) ) ) -> 1 | T13: 1 | U13: =IF( ISNUMBER( S13*H13 ), S13*H13, "-") -> 0.9686 | X13: 127.5
A14: 1 | E14: 56 | F14: кг | P14: РУ | Q14: 160
A15: - | B15: Рудь Надежда | C15: f | D15: 1975-12-19 | E15: Балаклея | F15: 56 | G15: =IF(D15<>"", INDEX(инфо!$H$3:$H$27, 1+MATCH(-0.001+DATEDIF(D15,$W$6,"y"),инфо!$F$3:$F$27,1)), "") -> O\M1 | H15: =IF( OR(C15="", NOT(ISNUMBER(F15))), "", VLOOKUP(F15, инфо!$A$3:$C$3901, IF(C15="m", 3,2))) -> 0.9122 | I15: 1 | Q15: =IF(N15="+",M15, IF(L15="+",K15,IF(J15="+",I15,0))) -> 0 | R15: =IF( ISNUMBER( Q15*H15 ), Q15*H15, "-") -> 0 | S15: =IF( AND(N15<>"-", ISNUMBER(M15)), M15, IF(AND(L15<>"-", ISNUMBER(K15)), K15, IF(AND(J15<>"-", ISNUMBER(I15)), I15, Q15 ) ) ) -> 1 | T15: 1 | U15: =IF( ISNUMBER( S15*H15 ), S15*H15, "-") -> 0.9122 | V15: Фурсал Дмитрий
B16: Мужчины | C16: 17
A17: 3 | E17: 67,5 | F17: кг | P17: РУ | Q17: 230
A18: - | B18: Турченюк Данила | C18: m | D18: 2000-07-07 | E18: Харьков | F18: 67.5 | G18: =IF(D18<>"", INDEX(инфо!$H$3:$H$27, 1+MATCH(-0.001+DATEDIF(D18,$W$6,"y"),инфо!$F$3:$F$27,1)), "") -> O\T3 | H18: =IF( OR(C18="", NOT(ISNUMBER(F18))), "", VLOOKUP(F18, инфо!$A$3:$C$3901, IF(C18="m", 3,2))) -> 0.7258 | I18: 1 | Q18: =IF(N18="+",M18, IF(L18="+",K18,IF(J18="+",I18,0))) -> 0 | R18: =IF( ISNUMBER( Q18*H18 ), Q18*H18, "-") -> 0 | S18: =IF( AND(N18<>"-", ISNUMBER(M18)), M18, IF(AND(L18<>"-", ISNUMBER(K18)), K18, IF(AND(J18<>"-", ISNUMBER(I18)), I18, Q18 ) ) ) -> 1 | T18: 1 | U18: =IF( ISNUMBER( S18*H18 ), S18*H18, "-") -> 0.7258 | V18: Шепелев Игорь | X18: 210
A19: - | B19: Коваленко Павел | C19: m | D19: 1998-04-05 | E19: Одесса | F19: 67.5 | G19: =IF(D19<>"", INDEX(инфо!$H$3:$H$27, 1+MATCH(-0.001+DATEDIF(D19,$W$6,"y"),инфо!$F$3:$F$27,1)), "") -> O\J | H19: =IF( OR(C19="", NOT(ISNUMBER(F19))), "", VLOOKUP(F19, инфо!$A$3:$C$3901, IF(C19="m", 3,2))) -> 0.7258 | I19: 1 | Q19: =IF(N19="+",M19, IF(L19="+",K19,IF(J19="+",I19,0))) -> 0 | R19: =IF( ISNUMBER( Q19*H19 ), Q19*H19, "-") -> 0 | S19: =IF( AND(N19<>"-", ISNUMBER(M19)), M19, IF(AND(L19<>"-", ISNUMBER(K19)), K19, IF(AND(J19<>"-", ISNUMBER(I19)), I19, Q19 ) ) ) -> 1 | T19: 2 | U19: =IF( ISNUMBER( S19*H19 ), S19*H19, "-") -> 0.7258 | X19: 225
A20: - | B20: Дробицкий Максим | C20: m | D20: 1998-08-26 | E20: Сватово | F20: 67.5 | G20: =IF(D20<>"", INDEX(инфо!$H$3:$H$27, 1+MATCH(-0.001+DATEDIF(D20,$W$6,"y"),инфо!$F$3:$F$27,1)), "") -> O\J | H20: =IF( OR(C20="", NOT(ISNUMBER(F20))), "", VLOOKUP(F20, инфо!$A$3:$C$3901, IF(C20="m", 3,2))) -> 0.7258 | I20: 1 | Q20: =IF(N20="+",M20, IF(L20="+",K20,IF(J20="+",I20,0))) -> 0 | R20: =IF( ISNUMBER( Q20*H20 ), Q20*H20, "-") -> 0 | S20: =IF( AND(N20<>"-", ISNUMBER(M20)), M20, IF(AND(L20<>"-", ISNUMBER(K20)), K20, IF(AND(J20<>"-", ISNUMBER(I20)), I20, Q20 ) ) ) -> 1 | T20: 3 | U20: =IF( ISNUMBER( S20*H20 ), S20*H20, "-") -> 0.7258 | V20: Зайцев С. | X20: 225
A21: 4 | E21: 75 | F21: кг | P21: РУ | Q21: 258
A22: - | B22: Гибнер Станислав | C22: m | D22: 08.11.1979 | E22: Харьков | F22: 75 | G22: =IF(D22<>"", INDEX(инфо!$H$3:$H$27, 1+MATCH(-0.001+DATEDIF(D22,$W$6,"y"),инфо!$F$3:$F$27,1)), "") -> O\SM | H22: =IF( OR(C22="", NOT(ISNUMBER(F22))), "", VLOOKUP(F22, инфо!$A$3:$C$3901, IF(C22="m", 3,2))) -> 0.6645 | I22: 1 | Q22: =IF(N22="+",M22, IF(L22="+",K22,IF(J22="+",I22,0))) -> 0 | R22: =IF( ISNUMBER( Q22*H22 ), Q22*H22, "-") -> 0 | S22: =IF( AND(N22<>"-", ISNUMBER(M22)), M22, IF(AND(L22<>"-", ISNUMBER(K22)), K22, IF(AND(J22<>"-", ISNUMBER(I22)), I22, Q22 ) ) ) -> 1 | T22: 1 | U22: =IF( ISNUMBER( S22*H22 ), S22*H22, "-") -> 0.6645 | V22: Маслов Александр | X22: 258
A23: - | B23: Михайличенко Вадим | C23: m | D23: 1997-07-08 | E23: Одесса | F23: 75 | G23: =IF(D23<>"", INDEX(инфо!$H$3:$H$27, 1+MATCH(-0.001+DATEDIF(D23,$W$6,"y"),инфо!$F$3:$F$27,1)), "") -> O\J | H23: =IF( OR(C23="", NOT(ISNUMBER(F23))), "", VLOOKUP(F23, инфо!$A$3:$C$3901, IF(C23="m", 3,2))) -> 0.6645 | I23: 1 | Q23: =IF(N23="+",M23, IF(L23="+",K23,IF(J23="+",I23,0))) -> 0 | R23: =IF( ISNUMBER( Q23*H23 ), Q23*H23, "-") -> 0 | S23: =IF( AND(N23<>"-", ISNUMBER(M23)), M23, IF(AND(L23<>"-", ISNUMBER(K23)), K23, IF(AND(J23<>"-", ISNUMBER(I23)), I23, Q23 ) ) ) -> 1 | T23: 2 | U23: =IF( ISNUMBER( S23*H23 ), S23*H23, "-") -> 0.6645 | X23: 257.5
A24: - | B24: Латуха Никита | C24: m | D24: 2000-03-16 | E24: Балаклея | F24: 75 | G24: =IF(D24<>"", INDEX(инфо!$H$3:$H$27, 1+MATCH(-0.001+DATEDIF(D24,$W$6,"y"),инфо!$F$3:$F$27,1)), "") -> O\T3 | H24: =IF( OR(C24="", NOT(ISNUMBER(F24))), "", VLOOKUP(F24, инфо!$A$3:$C$3901, IF(C24="m", 3,2))) -> 0.6645 | I24: 1 | Q24: =IF(N24="+",M24, IF(L24="+",K24,IF(J24="+",I24,0))) -> 0 | R24: =IF( ISNUMBER( Q24*H24 ), Q24*H24, "-") -> 0 | S24: =IF( AND(N24<>"-", ISNUMBER(M24)), M24, IF(AND(L24<>"-", ISNUMBER(K24)), K24, IF(AND(J24<>"-", ISNUMBER(I24)), I24, Q24 ) ) ) -> 1 | T24: 3 | U24: =IF( ISNUMBER( S24*H24 ), S24*H24, "-") -> 0.6645 | X24: 225
A25: - | B25: Пивовар Илья | C25: m | D25: 2002-02-04 | E25: Балаклея | F25: 75 | G25: =IF(D25<>"", INDEX(инфо!$H$3:$H$27, 1+MATCH(-0.001+DATEDIF(D25,$W$6,"y"),инфо!$F$3:$F$27,1)), "") -> O\T2 | H25: =IF( OR(C25="", NOT(ISNUMBER(F25))), "", VLOOKUP(F25, инфо!$A$3:$C$3901, IF(C25="m", 3,2))) -> 0.6645 | I25: 1 | Q25: =IF(N25="+",M25, IF(L25="+",K25,IF(J25="+",I25,0))) -> 0 | R25: =IF( ISNUMBER( Q25*H25 ), Q25*H25, "-") -> 0 | S25: =IF( AND(N25<>"-", ISNUMBER(M25)), M25, IF(AND(L25<>"-", ISNUMBER(K25)), K25, IF(AND(J25<>"-", ISNUMBER(I25)), I25, Q25 ) ) ) -> 1 | T25: 4 | U25: =IF( ISNUMBER( S25*H25 ), S25*H25, "-") -> 0.6645 | V25: Фурсал Дмитрий | X25: 200
A26: 3 | E26: 82,5 | F26: кг | P26: РУ | Q26: 275
A27: - | B27: Кость Александр | C27: m | D27: 1968-05-04 | E27: Люботин | F27: 82.5 | G27: =IF(D27<>"", INDEX(инфо!$H$3:$H$27, 1+MATCH(-0.001+DATEDIF(D27,$W$6,"y"),инфо!$F$3:$F$27,1)), "") -> O\M3 | H27: =IF( OR(C27="", NOT(ISNUMBER(F27))), "", VLOOKUP(F27, инфо!$A$3:$C$3901, IF(C27="m", 3,2))) -> 0.6193 | I27: 1 | Q27: =IF(N27="+",M27, IF(L27="+",K27,IF(J27="+",I27,0))) -> 0 | R27: =IF( ISNUMBER( Q27*H27 ), Q27*H27, "-") -> 0 | S27: =IF( AND(N27<>"-", ISNUMBER(M27)), M27, IF(AND(L27<>"-", ISNUMBER(K27)), K27, IF(AND(J27<>"-", ISNUMBER(I27)), I27, Q27 ) ) ) -> 1 | T27: 1 | U27: =IF( ISNUMBER( S27*H27 ), S27*H27, "-") -> 0.6193 | V27: Бабенко Виктор | X27: 185
A28: - | B28: Пестрак Виталий | C28: m | D28: 1999-09-19 | E28: Одесса | F28: 82.5 | G28: =IF(D28<>"", INDEX(инфо!$H$3:$H$27, 1+MATCH(-0.001+DATEDIF(D28,$W$6,"y"),инфо!$F$3:$F$27,1)), "") -> O\T3 | H28: =IF( OR(C28="", NOT(ISNUMBER(F28))), "", VLOOKUP(F28, инфо!$A$3:$C$3901, IF(C28="m", 3,2))) -> 0.6193 | I28: 1 | Q28: =IF(N28="+",M28, IF(L28="+",K28,IF(J28="+",I28,0))) -> 0 | R28: =IF( ISNUMBER( Q28*H28 ), Q28*H28, "-") -> 0 | S28: =IF( AND(N28<>"-", ISNUMBER(M28)), M28, IF(AND(L28<>"-", ISNUMBER(K28)), K28, IF(AND(J28<>"-", ISNUMBER(I28)), I28, Q28 ) ) ) -> 1 | T28: 2 | U28: =IF( ISNUMBER( S28*H28 ), S28*H28, "-") -> 0.6193 | X28: 237.5
A29: - | B29: Хордиков Максим | C29: m | D29: 1998-12-05 | E29: Харьков | F29: 82.5 | G29: =IF(D29<>"", INDEX(инфо!$H$3:$H$27, 1+MATCH(-0.001+DATEDIF(D29,$W$6,"y"),инфо!$F$3:$F$27,1)), "") -> O\T3 | H29: =IF( OR(C29="", NOT(ISNUMBER(F29))), "", VLOOKUP(F29, инфо!$A$3:$C$3901, IF(C29="m", 3,2))) -> 0.6193 | I29: 1 | Q29: =IF(N29="+",M29, IF(L29="+",K29,IF(J29="+",I29,0))) -> 0 | R29: =IF( ISNUMBER( Q29*H29 ), Q29*H29, "-") -> 0 | S29: =IF( AND(N29<>"-", ISNUMBER(M29)), M29, IF(AND(L29<>"-", ISNUMBER(K29)), K29, IF(AND(J29<>"-", ISNUMBER(I29)), I29, Q29 ) ) ) -> 1 | T29: 3 | U29: =IF( ISNUMBER( S29*H29 ), S29*H29, "-") -> 0.6193 | X29: 237.5
A30: 4 | E30: 90 | F30: кг | P30: РУ | Q30: 302
A31: - | B31: Бреславец Антон | C31: m | D31: 2001-07-23 | E31: Харьков | F31: 90 | G31: =IF(D31<>"", INDEX(инфо!$H$3:$H$27, 1+MATCH(-0.001+DATEDIF(D31,$W$6,"y"),инфо!$F$3:$F$27,1)), "") -> O\T2 | H31: =IF( OR(C31="", NOT(ISNUMBER(F31))), "", VLOOKUP(F31, инфо!$A$3:$C$3901, IF(C31="m", 3,2))) -> 0.5853 | I31: 1 | Q31: =IF(N31="+",M31, IF(L31="+",K31,IF(J31="+",I31,0))) -> 0 | R31: =IF( ISNUMBER( Q31*H31 ), Q31*H31, "-") -> 0 | S31: =IF( AND(N31<>"-", ISNUMBER(M31)), M31, IF(AND(L31<>"-", ISNUMBER(K31)), K31, IF(AND(J31<>"-", ISNUMBER(I31)), I31, Q31 ) ) ) -> 1 | T31: 1 | U31: =IF( ISNUMBER( S31*H31 ), S31*H31, "-") -> 0.5853 | V31: Блажко В., Дяк С. | X31: 220
A32: - | B32: Андрущенко Артем | C32: m | D32: 1987-07-26 | E32: Лозовая | F32: 90 | G32: =IF(D32<>"", INDEX(инфо!$H$3:$H$27, 1+MATCH(-0.001+DATEDIF(D32,$W$6,"y"),инфо!$F$3:$F$27,1)), "") -> O | H32: =IF( OR(C32="", NOT(ISNUMBER(F32))), "", VLOOKUP(F32, инфо!$A$3:$C$3901, IF(C32="m", 3,2))) -> 0.5853 | I32: 1 | Q32: =IF(N32="+",M32, IF(L32="+",K32,IF(J32="+",I32,0))) -> 0 | R32: =IF( ISNUMBER( Q32*H32 ), Q32*H32, "-") -> 0 | S32: =IF( AND(N32<>"-", ISNUMBER(M32)), M32, IF(AND(L32<>"-", ISNUMBER(K32)), K32, IF(AND(J32<>"-", ISNUMBER(I32)), I32, Q32 ) ) ) -> 1 | T32: 2 | U32: =IF( ISNUMBER( S32*H32 ), S32*H32, "-") -> 0.5853 | X32: 290
A33: - | B33: Пистунов Сергей | C33: m | D33: 07.10.1967 | E33: Харьков | F33: 90 | G33: =IF(D33<>"", INDEX(инфо!$H$3:$H$27, 1+MATCH(-0.001+DATEDIF(D33,$W$6,"y"),инфо!$F$3:$F$27,1)), "") -> O\M3 | H33: =IF( OR(C33="", NOT(ISNUMBER(F33))), "", VLOOKUP(F33, инфо!$A$3:$C$3901, IF(C33="m", 3,2))) -> 0.5853 | I33: 1 | Q33: =IF(N33="+",M33, IF(L33="+",K33,IF(J33="+",I33,0))) -> 0 | R33: =IF( ISNUMBER( Q33*H33 ), Q33*H33, "-") -> 0 | S33: =IF( AND(N33<>"-", ISNUMBER(M33)), M33, IF(AND(L33<>"-", ISNUMBER(K33)), K33, IF(AND(J33<>"-", ISNUMBER(I33)), I33, Q33 ) ) ) -> 1 | T33: 3 | U33: =IF( ISNUMBER( S33*H33 ), S33*H33, "-") -> 0.5853 | V33: Пискун Олег | X33: 202.5
A34: - | B34: Назаров Владимир | C34: m | D34: 23.09.1970 | E34: Харьков | F34: 90 | G34: =IF(D34<>"", INDEX(инфо!$H$3:$H$27, 1+MATCH(-0.001+DATEDIF(D34,$W$6,"y"),инфо!$F$3:$F$27,1)), "") -> O\M2 | H34: =IF( OR(C34="", NOT(ISNUMBER(F34))), "", VLOOKUP(F34, инфо!$A$3:$C$3901, IF(C34="m", 3,2))) -> 0.5853 | I34: 1 | Q34: =IF(N34="+",M34, IF(L34="+",K34,IF(J34="+",I34,0))) -> 0 | R34: =IF( ISNUMBER( Q34*H34 ), Q34*H34, "-") -> 0 | S34: =IF( AND(N34<>"-", ISNUMBER(M34)), M34, IF(AND(L34<>"-", ISNUMBER(K34)), K34, IF(AND(J34<>"-", ISNUMBER(I34)), I34, Q34 ) ) ) -> 1 | T34: 4 | U34: =IF( ISNUMBER( S34*H34 ), S34*H34, "-") -> 0.5853 | V34: Пискун Олег | X34: 235
A35: 2 | E35: 100 | F35: кг | P35: РУ | Q35: 295.5
A36: - | B36: Зиненко Максим | C36: m | D36: 1991-07-26 | E36: Харьков | F36: 100 | G36: =IF(D36<>"", INDEX(инфо!$H$3:$H$27, 1+MATCH(-0.001+DATEDIF(D36,$W$6,"y"),инфо!$F$3:$F$27,1)), "") -> O | H36: =IF( OR(C36="", NOT(ISNUMBER(F36))), "", VLOOKUP(F36, инфо!$A$3:$C$3901, IF(C36="m", 3,2))) -> 0.554 | I36: 1 | Q36: =IF(N36="+",M36, IF(L36="+",K36,IF(J36="+",I36,0))) -> 0 | R36: =IF( ISNUMBER( Q36*H36 ), Q36*H36, "-") -> 0 | S36: =IF( AND(N36<>"-", ISNUMBER(M36)), M36, IF(AND(L36<>"-", ISNUMBER(K36)), K36, IF(AND(J36<>"-", ISNUMBER(I36)), I36, Q36 ) ) ) -> 1 | T36: 1 | U36: =IF( ISNUMBER( S36*H36 ), S36*H36, "-") -> 0.554 | V36: Нечаусов Максим | X36: 280
A37: - | B37: Пискун Олег | C37: m | D37: 26.09.1962 | E37: Харьков | F37: 100 | G37: =IF(D37<>"", INDEX(инфо!$H$3:$H$27, 1+MATCH(-0.001+DATEDIF(D37,$W$6,"y"),инфо!$F$3:$F$27,1)), "") -> O\M4 | H37: =IF( OR(C37="", NOT(ISNUMBER(F37))), "", VLOOKUP(F37, инфо!$A$3:$C$3901, IF(C37="m", 3,2))) -> 0.554 | I37: 1 | Q37: =IF(N37="+",M37, IF(L37="+",K37,IF(J37="+",I37,0))) -> 0 | R37: =IF( ISNUMBER( Q37*H37 ), Q37*H37, "-") -> 0 | S37: =IF( AND(N37<>"-", ISNUMBER(M37)), M37, IF(AND(L37<>"-", ISNUMBER(K37)), K37, IF(AND(J37<>"-", ISNUMBER(I37)), I37, Q37 ) ) ) -> 1 | T37: 2 | U37: =IF( ISNUMBER( S37*H37 ), S37*H37, "-") -> 0.554 | V37: Микуленко Александр | X37: 207.5
A38: 1 | E38: 110 | F38: кг | P38: РУ | Q38: 317.5
A39: - | B39: Поляница Александр | C39: m | D39: 1994-10-22 | E39: Харьков | F39: 110 | G39: =IF(D39<>"", INDEX(инфо!$H$3:$H$27, 1+MATCH(-0.001+DATEDIF(D39,$W$6,"y"),инфо!$F$3:$F$27,1)), "") -> O\J | H39: =IF( OR(C39="", NOT(ISNUMBER(F39))), "", VLOOKUP(F39, инфо!$A$3:$C$3901, IF(C39="m", 3,2))) -> 0.5365 | I39: 1 | Q39: =IF(N39="+",M39, IF(L39="+",K39,IF(J39="+",I39,0))) -> 0 | R39: =IF( ISNUMBER( Q39*H39 ), Q39*H39, "-") -> 0 | S39: =IF( AND(N39<>"-", ISNUMBER(M39)), M39, IF(AND(L39<>"-", ISNUMBER(K39)), K39, IF(AND(J39<>"-", ISNUMBER(I39)), I39, Q39 ) ) ) -> 1 | T39: 1 | U39: =IF( ISNUMBER( S39*H39 ), S39*H39, "-") -> 0.5365 | X39: 301.5

Sheet SC
B1: Приглашается | C1: в.к. | K1: АБСОЛЮТКА (ЖЕНЩИНЫ) | R1: АБСОЛЮТКА (МУЖЧИНЫ) | Y1: стр ЖЕН 1 | Z1: 13 | AA1: № потока | AB1: 1
I2: Место | J2: Имя | P2: K Малоне | R2: Имя | V2: К Шварц | Y2: стр ЖЕН 2 | Z2: 28 | AA2: № попытки | AB2: 1
I3: 1 | Y3: стр МУЖ 1 | Z3: 31 | AA3: стр на помосте | AB3: 0
B4: Готовятся | I4: 2 | Y4: стр МУЖ 2 | Z4: 87 | AA4: стр текущей в.к. | AB4: 0
I5: 3 | Y5: стр сейчас 1 | Z5: 0 | AA5: 2 потока в текущей в.к. | AB5: 0
W6: 2018-11-04 | Y6: стр сейчас 2 | Z6: 0
B7: Strict Curl
I8: Попытки | Q8: Факт | S8: Прогноз
A9: № | B9: имя | C9: пол | D9: д.р. | E9: город | F9: с. в. | G9: кат. | H9: K | I9: 1 | K9: 2 | M9: 3 | O9: 4 | Q9: рез-т | R9: коэф | S9: рез-т | T9: место | U9: коэф | V9: тренер | W9: инфо для абсолютки | X9: РУ возр
E10: Поток | F10: 1 | G10: 57 | H10: чел. | Y10: end
B11: Женщины | C11: 10
A12: 1 | E12: 44 | F12: кг | P12: РУ | Q12: 26
A13: - | B13: Башмакова Елена | C13: f | D13: 17.07.1981 | E13: Харьков | F13: 44 | G13: =IF(D13<>"", INDEX(инфо!$H$3:$H$27, 1+MATCH(-0.001+DATEDIF(D13,$W$6,"y"),инфо!$F$3:$F$27,1)), "") -> O\SM | H13: =IF( OR(C13="", NOT(ISNUMBER(F13))), "", VLOOKUP(F13, инфо!$A$3:$C$3901, IF(C13="m", 3,2))) -> 1.1079 | I13: 1 | Q13: =IF(N13="+",M13, IF(L13="+",K13,IF(J13="+",I13,0))) -> 0 | R13: =IF( ISNUMBER( Q13*H13 ), Q13*H13, "-") -> 0 | S13: =IF( AND(N13<>"-", ISNUMBER(M13)), M13, IF(AND(L13<>"-", ISNUMBER(K13)), K13, IF(AND(J13<>"-", ISNUMBER(I13)), I13, Q13 ) ) ) -> 1 | T13: 1 | U13: =IF( ISNUMBER( S13*H13 ), S13*H13, "-") -> 1.1079 | V13: Люшуков Алексей | X13: 26
A14: 2 | E14: 48 | F14: кг | P14: РУ | Q14: 35
A15: - | B15: Бурмак Мария | C15: f | D15: 2003-12-05 | E15: Старобельск | F15: 48 | G15: =IF(D15<>"", INDEX(инфо!$H$3:$H$27, 1+MATCH(-0.001+DATEDIF(D15,$W$6,"y"),инфо!$F$3:$F$27,1)), "") -> O\T1 | H15: =IF( OR(C15="", NOT(ISNUMBER(F15))), "", VLOOKUP(F15, инфо!$A$3:$C$3901, IF(C15="m", 3,2))) -> 1.0336 | I15: 1 | Q15: =IF(N15="+",M15, IF(L15="+",K15,IF(J15="+",I15,0))) -> 0 | R15: =IF( ISNUMBER( Q15*H15 ), Q15*H15, "-") -> 0 | S15: =IF( AND(N15<>"-", ISNUMBER(M15)), M15, IF(AND(L15<>"-", ISNUMBER(K15)), K15, IF(AND(J15<>"-", ISNUMBER(I15)), I15, Q15 ) ) ) -> 1 | T15: 1 | U15: =IF( ISNUMBER( S15*H15 ), S15*H15, "-") -> 1.0336 | V15: Тарасов Олег | X15: 27
A16: - | B16: Сенченко Анжела | C16: f | D16: 04.02.2005 | E16: Старобельск | F16: 48 | G16: =IF(D16<>"", INDEX(инфо!$H$3:$H$27, 1+MATCH(-0.001+DATEDIF(D16,$W$6,"y"),инфо!$F$3:$F$27,1)), "") -> O\T1 | H16: =IF( OR(C16="", NOT(ISNUMBER(F16))), "", VLOOKUP(F16, инфо!$A$3:$C$3901, IF(C16="m", 3,2))) -> 1.0336 | I16: 1 | Q16: =IF(N16="+",M16, IF(L16="+",K16,IF(J16="+",I16,0))) -> 0 | R16: =IF( ISNUMBER( Q16*H16 ), Q16*H16, "-") -> 0 | S16: =IF( AND(N16<>"-", ISNUMBER(M16)), M16, IF(AND(L16<>"-", ISNUMBER(K16)), K16, IF(AND(J16<>"-", ISNUMBER(I16)), I16, Q16 ) ) ) -> 1 | T16: 2 | U16: =IF( ISNUMBER( S16*H16 ), S16*H16, "-") -> 1.0336
A17: 2 | E17: 52 | F17: кг | P17: РУ | Q17: 35
A18: - | B18: Кувичко Ангелина | C18: f | D18: 2002-12-28 | E18: Старобельск | F18: 52 | G18: =IF(D18<>"", INDEX(инфо!$H$3:$H$27, 1+MATCH(-0.001+DATEDIF(D18,$W$6,"y"),инфо!$F$3:$F$27,1)), "") -> O\T1 | H18: =IF( OR(C18="", NOT(ISNUMBER(F18))), "", VLOOKUP(F18, инфо!$A$3:$C$3901, IF(C18="m", 3,2))) -> 0.9686 | I18: 1 | Q18: =IF(N18="+",M18, IF(L18="+",K18,IF(J18="+",I18,0))) -> 0 | R18: =IF( ISNUMBER( Q18*H18 ), Q18*H18, "-") -> 0 | S18: =IF( AND(N18<>"-", ISNUMBER(M18)), M18, IF(AND(L18<>"-", ISNUMBER(K18)), K18, IF(AND(J18<>"-", ISNUMBER(I18)), I18, Q18 ) ) ) -> 1 | T18: 1 | U18: =IF( ISNUMBER( S18*H18 ), S18*H18, "-") -> 0.9686
A19: - | B19: Поляк Мария | C19: f | D19: 1986-08-10 | E19: Харьков | F19: 52 | G19: =IF(D19<>"", INDEX(инфо!$H$3:$H$27, 1+MATCH(-0.001+DATEDIF(D19,$W$6,"y"),инфо!$F$3:$F$27,1)), "") -> O | H19: =IF( OR(C19="", NOT(ISNUMBER(F19))), "", VLOOKUP(F19, инфо!$A$3:$C$3901, IF(C19="m", 3,2))) -> 0.9686 | I19: 1 | Q19: =IF(N19="+",M19, IF(L19="+",K19,IF(J19="+",I19,0))) -> 0 | R19: =IF( ISNUMBER( Q19*H19 ), Q19*H19, "-") -> 0 | S19: =IF( AND(N19<>"-", ISNUMBER(M19)), M19, IF(AND(L19<>"-", ISNUMBER(K19)), K19, IF(AND(J19<>"-", ISNUMBER(I19)), I19, Q19 ) ) ) -> 1 | T19: 2 | U19: =IF( ISNUMBER( S19*H19 ), S19*H19, "-") -> 0.9686 | X19: 35
A20: 2 | E20: 56 | F20: кг | P20: РУ | Q20: 40
A21: - | B21: Волокитина Татьяна | C21: f | D21: 1995-11-02 | E21: Харьков | F21: 56 | G21: =IF(D21<>"", INDEX(инфо!$H$3:$H$27, 1+MATCH(-0.001+DATEDIF(D21,$W$6,"y"),инфо!$F$3:$F$27,1)), "") -> O\J | H21: =IF( OR(C21="", NOT(ISNUMBER(F21))), "", VLOOKUP(F21, инфо!$A$3:$C$3901, IF(C21="m", 3,2))) -> 0.9122 | I21: 1 | Q21: =IF(N21="+",M21, IF(L21="+",K21,IF(J21="+",I21,0))) -> 0 | R21: =IF( ISNUMBER( Q21*H21 ), Q21*H21, "-") -> 0 | S21: =IF( AND(N21<>"-", ISNUMBER(M21)), M21, IF(AND(L21<>"-", ISNUMBER(K21)), K21, IF(AND(J21<>"-", ISNUMBER(I21)), I21, Q21 ) ) ) -> 1 | T21: 1 | U21: =IF( ISNUMBER( S21*H21 ), S21*H21, "-") -> 0.9122 | X21: 35
A22: - | B22: Гавриленко Юлия | C22: f | D22: 12.06.1994 | E22: Харьков | F22: 56 | G22: =IF(D22<>"", INDEX(инфо!$H$3:$H$27, 1+MATCH(-0.001+DATEDIF(D22,$W$6,"y"),инфо!$F$3:$F$27,1)), "") -> O\J | H22: =IF( OR(C22="", NOT(ISNUMBER(F22))), "", VLOOKUP(F22, инфо!$A$3:$C$3901, IF(C22="m", 3,2))) -> 0.9122 | I22: 1 | Q22: =IF(N22="+",M22, IF(L22="+",K22,IF(J22="+",I22,0))) -> 0 | R22: =IF( ISNUMBER( Q22*H22 ), Q22*H22, "-") -> 0 | S22: =IF( AND(N22<>"-", ISNUMBER(M22)), M22, IF(AND(L22<>"-", ISNUMBER(K22)), K22, IF(AND(J22<>"-", ISNUMBER(I22)), I22, Q22 ) ) ) -> 1 | T22: 2 | U22: =IF( ISNUMBER( S22*H22 ), S22*H22, "-") -> 0.9122 | V22: Кравченко Максим | X22: 35
A23: 1 | E23: 60 | F23: кг | P23: РУ | Q23: 50
A24: - | B24: Герман Ирина | C24: f | D24: 16.06.1975 | E24: Люботин | F24: 60 | G24: =IF(D24<>"", INDEX(инфо!$H$3:$H$27, 1+MATCH(-0.001+DATEDIF(D24,$W$6,"y"),инфо!$F$3:$F$27,1)), "") -> O\M1 | H24: =IF( OR(C24="", NOT(ISNUMBER(F24))), "", VLOOKUP(F24, инфо!$A$3:$C$3901, IF(C24="m", 3,2))) -> 0.8603 | I24: 1 | Q24: =IF(N24="+",M24, IF(L24="+",K24,IF(J24="+",I24,0))) -> 0 | R24: =IF( ISNUMBER( Q24*H24 ), Q24*H24, "-") -> 0 | S24: =IF( AND(N24<>"-", ISNUMBER(M24)), M24, IF(AND(L24<>"-", ISNUMBER(K24)), K24, IF(AND(J24<>"-", ISNUMBER(I24)), I24, Q24 ) ) ) -> 1 | T24: 1 | U24: =IF( ISNUMBER( S24*H24 ), S24*H24, "-") -> 0.8603 | V24: Бабенко Виктор | X24: 35
A25: 1 | E25: 75 | F25: кг | P25: РУ | Q25: 55
A26: - | B26: Верховод Инна | C26: f | D26: 1982-02-18 | E26: Старобельск | F26: 75 | G26: =IF(D26<>"", INDEX(инфо!$H$3:$H$27, 1+MATCH(-0.001+DATEDIF(D26,$W$6,"y"),инфо!$F$3:$F$27,1)), "") -> O\SM | H26: =IF( OR(C26="", NOT(ISNUMBER(F26))), "", VLOOKUP(F26, инфо!$A$3:$C$3901, IF(C26="m", 3,2))) -> 0.7216 | I26: 1 | Q26: =IF(N26="+",M26, IF(L26="+",K26,IF(J26="+",I26,0))) -> 0 | R26: =IF( ISNUMBER( Q26*H26 ), Q26*H26, "-") -> 0 | S26: =IF( AND(N26<>"-", ISNUMBER(M26)), M26, IF(AND(L26<>"-", ISNUMBER(K26)), K26, IF(AND(J26<>"-", ISNUMBER(I26)), I26, Q26 ) ) ) -> 1 | T26: 1 | U26: =IF( ISNUMBER( S26*H26 ), S26*H26, "-") -> 0.7216 | X26: 45
A27: 1 | E27: 82,5 | F27: кг | P27: РУ | Q27: 0
A28: - | B28: Заика Любовь | C28: f | D28: 07.07.1964 | E28: Старобельск | F28: 82.5 | G28: =IF(D28<>"", INDEX(инфо!$H$3:$H$27, 1+MATCH(-0.001+DATEDIF(D28,$W$6,"y"),инфо!$F$3:$F$27,1)), "") -> O\M3 | H28: =IF( OR(C28="", NOT(ISNUMBER(F28))), "", VLOOKUP(F28, инфо!$A$3:$C$3901, IF(C28="m", 3,2))) -> 0.6731 | I28: 1 | Q28: =IF(N28="+",M28, IF(L28="+",K28,IF(J28="+",I28,0))) -> 0 | R28: =IF( ISNUMBER( Q28*H28 ), Q28*H28, "-") -> 0 | S28: =IF( AND(N28<>"-", ISNUMBER(M28)), M28, IF(AND(L28<>"-", ISNUMBER(K28)), K28, IF(AND(J28<>"-", ISNUMBER(I28)), I28, Q28 ) ) ) -> 1 | T28: 1 | U28: =IF( ISNUMBER( S28*H28 ), S28*H28, "-") -> 0.6731
B29: Мужчины | C29: 47
A30: 2 | E30: 48 | F30: кг | P30: РУ | Q30: 46.5
A31: - | B31: Бирюк Максим | C31: m | D31: 2001-01-01 | E31: Люботин | F31: 48 | G31: =IF(D31<>"", INDEX(инфо!$H$3:$H$27, 1+MATCH(-0.001+DATEDIF(D31,$W$6,"y"),инфо!$F$3:$F$27,1)), "") -> O\T2 | H31: =IF( OR(C31="", NOT(ISNUMBER(F31))), "", VLOOKUP(F31, инфо!$A$3:$C$3901, IF(C31="m", 3,2))) -> 1.0469 | I31: 1 | Q31: =IF(N31="+",M31, IF(L31="+",K31,IF(J31="+",I31,0))) -> 0 | R31: =IF( ISNUMBER( Q31*H31 ), Q31*H31, "-") -> 0 | S31: =IF( AND(N31<>"-", ISNUMBER(M31)), M31, IF(AND(L31<>"-", ISNUMBER(K31)), K31, IF(AND(J31<>"-", ISNUMBER(I31)), I31, Q31 ) ) ) -> 1 | T31: 1 | U31: =IF( ISNUMBER( S31*H31 ), S31*H31, "-") -> 1.0469
A32: - | B32: Решетняк Никита | C32: m | D32: 2004-05-14 | E32: Старобельск | F32: 48 | G32: =IF(D32<>"", INDEX(инфо!$H$3:$H$27, 1+MATCH(-0.001+DATEDIF(D32,$W$6,"y"),инфо!$F$3:$F$27,1)), "") -> O\T1 | H32: =IF( OR(C32="", NOT(ISNUMBER(F32))), "", VLOOKUP(F32, инфо!$A$3:$C$3901, IF(C32="m", 3,2))) -> 1.0469 | I32: 1 | Q32: =IF(N32="+",M32, IF(L32="+",K32,IF(J32="+",I32,0))) -> 0 | R32: =IF( ISNUMBER( Q32*H32 ), Q32*H32, "-") -> 0 | S32: =IF( AND(N32<>"-", ISNUMBER(M32)), M32, IF(AND(L32<>"-", ISNUMBER(K32)), K32, IF(AND(J32<>"-", ISNUMBER(I32)), I32, Q32 ) ) ) -> 1 | T32: 2 | U32: =IF( ISNUMBER( S32*H32 ), S32*H32, "-") -> 1.0469 | X32: 46.5
A33: 2 | E33: 52 | F33: кг | P33: РУ | Q33: 41
A34: - | B34: Ерохин Андрей | C34: m | D34: 2002-12-13 | E34: Люботин | F34: 52 | G34: =IF(D34<>"", INDEX(инфо!$H$3:$H$27, 1+MATCH(-0.001+DATEDIF(D34,$W$6,"y"),инфо!$F$3:$F$27,1)), "") -> O\T1 | H34: =IF( OR(C34="", NOT(ISNUMBER(F34))), "", VLOOKUP(F34, инфо!$A$3:$C$3901, IF(C34="m", 3,2))) -> 0.9515 | I34: 1 | Q34: =IF(N34="+",M34, IF(L34="+",K34,IF(J34="+",I34,0))) -> 0 | R34: =IF( ISNUMBER( Q34*H34 ), Q34*H34, "-") -> 0 | S34: =IF( AND(N34<>"-", ISNUMBER(M34)), M34, IF(AND(L34<>"-", ISNUMBER(K34)), K34, IF(AND(J34<>"-", ISNUMBER(I34)), I34, Q34 ) ) ) -> 1 | T34: 1 | U34: =IF( ISNUMBER( S34*H34 ), S34*H34, "-") -> 0.9515 | V34: Бабенко Виктор | X34: 30
A35: - | B35: Луганский Александр | C35: m | D35: 2006-03-08 | E35: Старобельск | F35: 52 | G35: =IF(D35<>"", INDEX(инфо!$H$3:$H$27, 1+MATCH(-0.001+DATEDIF(D35,$W$6,"y"),инфо!$F$3:$F$27,1)), "") -> O\C12 | H35: =IF( OR(C35="", NOT(ISNUMBER(F35))), "", VLOOKUP(F35, инфо!$A$3:$C$3901, IF(C35="m", 3,2))) -> 0.9515 | I35: 1 | Q35: =IF(N35="+",M35, IF(L35="+",K35,IF(J35="+",I35,0))) -> 0 | R35: =IF( ISNUMBER( Q35*H35 ), Q35*H35, "-") -> 0 | S35: =IF( AND(N35<>"-", ISNUMBER(M35)), M35, IF(AND(L35<>"-", ISNUMBER(K35)), K35, IF(AND(J35<>"-", ISNUMBER(I35)), I35, Q35 ) ) ) -> 1 | T35: 2 | U35: =IF( ISNUMBER( S35*H35 ), S35*H35, "-") -> 0.9515
A36: 1 | E36: 56 | F36: кг | P36: РУ | Q36: 55.5
A37: - | B37: Зинченко Кирилл | C37: m | D37: 24.06.2002 | E37: Старобельск | F37: 56 | G37: =IF(D37<>"", INDEX(инфо!$H$3:$H$27, 1+MATCH(-0.001+DATEDIF(D37,$W$6,"y"),инфо!$F$3:$F$27,1)), "") -> O\T2 | H37: =IF( OR(C37="", NOT(ISNUMBER(F37))), "", VLOOKUP(F37, инфо!$A$3:$C$3901, IF(C37="m", 3,2))) -> 0.8748 | I37: 1 | Q37: =IF(N37="+",M37, IF(L37="+",K37,IF(J37="+",I37,0))) -> 0 | R37: =IF( ISNUMBER( Q37*H37 ), Q37*H37, "-") -> 0 | S37: =IF( AND(N37<>"-", ISNUMBER(M37)), M37, IF(AND(L37<>"-", ISNUMBER(K37)), K37, IF(AND(J37<>"-", ISNUMBER(I37)), I37, Q37 ) ) ) -> 1 | T37: 1 | U37: =IF( ISNUMBER( S37*H37 ), S37*H37, "-") -> 0.8748 | V37: Лебедь Сергей | X37: 55.5
A38: 1 | E38: 60 | F38: кг | P38: РУ | Q38: 60.5
A39: - | B39: Ольшанский Виктор | C39: m | D39: 2000-01-14 | E39: Старобельск | F39: 60 | G39: =IF(D39<>"", INDEX(инфо!$H$3:$H$27, 1+MATCH(-0.001+DATEDIF(D39,$W$6,"y"),инфо!$F$3:$F$27,1)), "") -> O\T3 | H39: =IF( OR(C39="", NOT(ISNUMBER(F39))), "", VLOOKUP(F39, инфо!$A$3:$C$3901, IF(C39="m", 3,2))) -> 0.8128 | I39: 1 | Q39: =IF(N39="+",M39, IF(L39="+",K39,IF(J39="+",I39,0))) -> 0 | R39: =IF( ISNUMBER( Q39*H39 ), Q39*H39, "-") -> 0 | S39: =IF( AND(N39<>"-", ISNUMBER(M39)), M39, IF(AND(L39<>"-", ISNUMBER(K39)), K39, IF(AND(J39<>"-", ISNUMBER(I39)), I39, Q39 ) ) ) -> 1 | T39: 1 | U39: =IF( ISNUMBER( S39*H39 ), S39*H39, "-") -> 0.8128 | X39: 52
A40: 1 | E40: 67,5 | F40: кг | P40: РУ | Q40: 68
A41: - | B41: Киценко Константин | C41: m | D41: 1994-10-20 | E41: Кременчуг | F41: 67.5 | G41: =IF(D41<>"", INDEX(инфо!$H$3:$H$27, 1+MATCH(-0.001+DATEDIF(D41,$W$6,"y"),инфо!$F$3:$F$27,1)), "") -> O\J | H41: =IF( OR(C41="", NOT(ISNUMBER(F41))), "", VLOOKUP(F41, инфо!$A$3:$C$3901, IF(C41="m", 3,2))) -> 0.7258 | I41: 1 | Q41: =IF(N41="+",M41, IF(L41="+",K41,IF(J41="+",I41,0))) -> 0 | R41: =IF( ISNUMBER( Q41*H41 ), Q41*H41, "-") -> 0 | S41: =IF( AND(N41<>"-", ISNUMBER(M41)), M41, IF(AND(L41<>"-", ISNUMBER(K41)), K41, IF(AND(J41<>"-", ISNUMBER(I41)), I41, Q41 ) ) ) -> 1 | T41: 1 | U41: =IF( ISNUMBER( S41*H41 ), S41*H41, "-") -> 0.7258 | X41: 64.5
A42: 14 | E42: 75 | F42: кг | P42: РУ | Q42: 75.5
A43: - | B43: Татарников Андрей | C43: m | D43: 1999-09-02 | E43: Харьков | F43: 75 | G43: =IF(D43<>"", INDEX(инфо!$H$3:$H$27, 1+MATCH(-0.001+DATEDIF(D43,$W$6,"y"),инфо!$F$3:$F$27,1)), "") -> O\T3 | H43: =IF( OR(C43="", NOT(ISNUMBER(F43))), "", VLOOKUP(F43, инфо!$A$3:$C$3901, IF(C43="m", 3,2))) -> 0.6645 | I43: 55 | Q43: =IF(N43="+",M43, IF(L43="+",K43,IF(J43="+",I43,0))) -> 0 | R43: =IF( ISNUMBER( Q43*H43 ), Q43*H43, "-") -> 0 | S43: =IF( AND(N43<>"-", ISNUMBER(M43)), M43, IF(AND(L43<>"-", ISNUMBER(K43)), K43, IF(AND(J43<>"-", ISNUMBER(I43)), I43, Q43 ) ) ) -> 55 | T43: 1 | U43: =IF( ISNUMBER( S43*H43 ), S43*H43, "-") -> 36.5475 | X43: 72.5
A44: - | B44: Иванов Денис | C44: m | D44: 1995-03-09 | E44: Вознесенск | F44: 75 | G44: =IF(D44<>"", INDEX(инфо!$H$3:$H$27, 1+MATCH(-0.001+DATEDIF(D44,$W$6,"y"),инфо!$F$3:$F$27,1)), "") -> O\J | H44: =IF( OR(C44="", NOT(ISNUMBER(F44))), "", VLOOKUP(F44, инфо!$A$3:$C$3901, IF(C44="m", 3,2))) -> 0.6645 | I44: 49 | Q44: =IF(N44="+",M44, IF(L44="+",K44,IF(J44="+",I44,0))) -> 0 | R44: =IF( ISNUMBER( Q44*H44 ), Q44*H44, "-") -> 0 | S44: =IF( AND(N44<>"-", ISNUMBER(M44)), M44, IF(AND(L44<>"-", ISNUMBER(K44)), K44, IF(AND(J44<>"-", ISNUMBER(I44)), I44, Q44 ) ) ) -> 49 | T44: 2 | U44: =IF( ISNUMBER( S44*H44 ), S44*H44, "-") -> 32.5605 | X44: 75.5
A45: - | B45: Кисличка Дмитрий | C45: m | D45: 2002-07-19 | E45: Люботин | F45: 75 | G45: =IF(D45<>"", INDEX(инфо!$H$3:$H$27, 1+MATCH(-0.001+DATEDIF(D45,$W$6,"y"),инфо!$F$3:$F$27,1)), "") -> O\T2 | H45: =IF( OR(C45="", NOT(ISNUMBER(F45))), "", VLOOKUP(F45, инфо!$A$3:$C$3901, IF(C45="m", 3,2))) -> 0.6645 | I45: 1 | Q45: =IF(N45="+",M45, IF(L45="+",K45,IF(J45="+",I45,0))) -> 0 | R45: =IF( ISNUMBER( Q45*H45 ), Q45*H45, "-") -> 0 | S45: =IF( AND(N45<>"-", ISNUMBER(M45)), M45, IF(AND(L45<>"-", ISNUMBER(K45)), K45, IF(AND(J45<>"-", ISNUMBER(I45)), I45, Q45 ) ) ) -> 1 | T45: 3 | U45: =IF( ISNUMBER( S45*H45 ), S45*H45, "-") -> 0.6645 | X45: 70
A46: - | B46: Романенко Егор | C46: m | D46: 1994-11-05 | E46: Харьков | F46: 75 | G46: =IF(D46<>"", INDEX(инфо!$H$3:$H$27, 1+MATCH(-0.001+DATEDIF(D46,$W$6,"y"),инфо!$F$3:$F$27,1)), "") -> O\J | H46: =IF( OR(C46="", NOT(ISNUMBER(F46))), "", VLOOKUP(F46, инфо!$A$3:$C$3901, IF(C46="m", 3,2))) -> 0.6645 | I46: 1 | Q46: =IF(N46="+",M46, IF(L46="+",K46,IF(J46="+",I46,0))) -> 0 | R46: =IF( ISNUMBER( Q46*H46 ), Q46*H46, "-") -> 0 | S46: =IF( AND(N46<>"-", ISNUMBER(M46)), M46, IF(AND(L46<>"-", ISNUMBER(K46)), K46, IF(AND(J46<>"-", ISNUMBER(I46)), I46, Q46 ) ) ) -> 1 | T46: 4 | U46: =IF( ISNUMBER( S46*H46 ), S46*H46, "-") -> 0.6645 | V46: Бортник С. | X46: 75.5
A47: - | B47: Юскевич Сергей | C47: m | D47: 1991-07-29 | E47: Харьков | F47: 75 | G47: =IF(D47<>"", INDEX(инфо!$H$3:$H$27, 1+MATCH(-0.001+DATEDIF(D47,$W$6,"y"),инфо!$F$3:$F$27,1)), "") -> O | H47: =IF( OR(C47="", NOT(ISNUMBER(F47))), "", VLOOKUP(F47, инфо!$A$3:$C$3901, IF(C47="m", 3,2))) -> 0.6645 | I47: 1 | Q47: =IF(N47="+",M47, IF(L47="+",K47,IF(J47="+",I47,0))) -> 0 | R47: =IF( ISNUMBER( Q47*H47 ), Q47*H47, "-") -> 0 | S47: =IF( AND(N47<>"-", ISNUMBER(M47)), M47, IF(AND(L47<>"-", ISNUMBER(K47)), K47, IF(AND(J47<>"-", ISNUMBER(I47)), I47, Q47 ) ) ) -> 1 | T47: 5 | U47: =IF( ISNUMBER( S47*H47 ), S47*H47, "-") -> 0.6645 | X47: 70.5
A48: - | B48: Никитенко Вадим | C48: m | D48: 1999-03-03 | E48: Покровск, Донеская обл. | F48: 75 | G48: =IF(D48<>"", INDEX(инфо!$H$3:$H$27, 1+MATCH(-0.001+DATEDIF(D48,$W$6,"y"),инфо!$F$3:$F$27,1)), "") -> O\T3 | H48: =IF( OR(C48="", NOT(ISNUMBER(F48))), "", VLOOKUP(F48, инфо!$A$3:$C$3901, IF(C48="m", 3,2))) -> 0.6645 | I48: 1 | Q48: =IF(N48="+",M48, IF(L48="+",K48,IF(J48="+",I48,0))) -> 0 | R48: =IF( ISNUMBER( Q48*H48 ), Q48*H48, "-") -> 0 | S48: =IF( AND(N48<>"-", ISNUMBER(M48)), M48, IF(AND(L48<>"-", ISNUMBER(K48)), K48, IF(AND(J48<>"-", ISNUMBER(I48)), I48, Q48 ) ) ) -> 1 | T48: 6 | U48: =IF( ISNUMBER( S48*H48 ), S48*H48, "-") -> 0.6645 | X48: 72.5
A49: - | B49: Гараджа Андрей | C49: m | D49: 1962-01-13 | E49: Токмак | F49: 75 | G49: =IF(D49<>"", INDEX(инфо!$H$3:$H$27, 1+MATCH(-0.001+DATEDIF(D49,$W$6,"y"),инфо!$F$3:$F$27,1)), "") -> O\M4 | H49: =IF( OR(C49="", NOT(ISNUMBER(F49))), "", VLOOKUP(F49, инфо!$A$3:$C$3901, IF(C49="m", 3,2))) -> 0.6645 | I49: 1 | Q49: =IF(N49="+",M49, IF(L49="+",K49,IF(J49="+",I49,0))) -> 0 | R49: =IF( ISNUMBER( Q49*H49 ), Q49*H49, "-") -> 0 | S49: =IF( AND(N49<>"-", ISNUMBER(M49)), M49, IF(AND(L49<>"-", ISNUMBER(K49)), K49, IF(AND(J49<>"-", ISNUMBER(I49)), I49, Q49 ) ) ) -> 1 | T49: 7 | U49: =IF( ISNUMBER( S49*H49 ), S49*H49, "-") -> 0.6645
A50: - | B50: Власенко Николай | C50: m | D50: 1989-05-18 | E50: Старобельск | F50: 75 | G50: =IF(D50<>"", INDEX(инфо!$H$3:$H$27, 1+MATCH(-0.001+DATEDIF(D50,$W$6,"y"),инфо!$F$3:$F$27,1)), "") -> O | H50: =IF( OR(C50="", NOT(ISNUMBER(F50))), "", VLOOKUP(F50, инфо!$A$3:$C$3901, IF(C50="m", 3,2))) -> 0.6645 | I50: 1 | Q50: =IF(N50="+",M50, IF(L50="+",K50,IF(J50="+",I50,0))) -> 0 | R50: =IF( ISNUMBER( Q50*H50 ), Q50*H50, "-") -> 0 | S50: =IF( AND(N50<>"-", ISNUMBER(M50)), M50, IF(AND(L50<>"-", ISNUMBER(K50)), K50, IF(AND(J50<>"-", ISNUMBER(I50)), I50, Q50 ) ) ) -> 1 | T50: 8 | U50: =IF( ISNUMBER( S50*H50 ), S50*H50, "-") -> 0.6645 | X50: 70.5
A51: - | B51: Загоровский Олег | C51: m | D51: 2003-06-25 | E51: Старобельск | F51: 75 | G51: =IF(D51<>"", INDEX(инфо!$H$3:$H$27, 1+MATCH(-0.001+DATEDIF(D51,$W$6,"y"),инфо!$F$3:$F$27,1)), "") -> O\T1 | H51: =IF( OR(C51="", NOT(ISNUMBER(F51))), "", VLOOKUP(F51, инфо!$A$3:$C$3901, IF(C51="m", 3,2))) -> 0.6645 | I51: 1 | Q51: =IF(N51="+",M51, IF(L51="+",K51,IF(J51="+",I51,0))) -> 0 | R51: =IF( ISNUMBER( Q51*H51 ), Q51*H51, "-") -> 0 | S51: =IF( AND(N51<>"-", ISNUMBER(M51)), M51, IF(AND(L51<>"-", ISNUMBER(K51)), K51, IF(AND(J51<>"-", ISNUMBER(I51)), I51, Q51 ) ) ) -> 1 | T51: 9 | U51: =IF( ISNUMBER( S51*H51 ), S51*H51, "-") -> 0.6645 | X51: 61
A52: - | B52: Жос Станислав | C52: m | D52: 1994-08-27 | E52: Старобельск | F52: 75 | G52: =IF(D52<>"", INDEX(инфо!$H$3:$H$27, 1+MATCH(-0.001+DATEDIF(D52,$W$6,"y"),инфо!$F$3:$F$27,1)), "") -> O\J | H52: =IF( OR(C52="", NOT(ISNUMBER(F52))), "", VLOOKUP(F52, инфо!$A$3:$C$3901, IF(C52="m", 3,2))) -> 0.6645 | I52: 1 | Q52: =IF(N52="+",M52, IF(L52="+",K52,IF(J52="+",I52,0))) -> 0 | R52: =IF( ISNUMBER( Q52*H52 ), Q52*H52, "-") -> 0 | S52: =IF( AND(N52<>"-", ISNUMBER(M52)), M52, IF(AND(L52<>"-", ISNUMBER(K52)), K52, IF(AND(J52<>"-", ISNUMBER(I52)), I52, Q52 ) ) ) -> 1 | T52: 10 | U52: =IF( ISNUMBER( S52*H52 ), S52*H52, "-") -> 0.6645 | X52: 75.5
A53: - | B53: Мирошниченко Евгений | C53: m | D53: 1989-11-01 | E53: Мерефа | F53: 75 | G53: =IF(D53<>"", INDEX(инфо!$H$3:$H$27, 1+MATCH(-0.001+DATEDIF(D53,$W$6,"y"),инфо!$F$3:$F$27,1)), "") -> O | H53: =IF( OR(C53="", NOT(ISNUMBER(F53))), "", VLOOKUP(F53, инфо!$A$3:$C$3901, IF(C53="m", 3,2))) -> 0.6645 | I53: 1 | Q53: =IF(N53="+",M53, IF(L53="+",K53,IF(J53="+",I53,0))) -> 0 | R53: =IF( ISNUMBER( Q53*H53 ), Q53*H53, "-") -> 0 | S53: =IF( AND(N53<>"-", ISNUMBER(M53)), M53, IF(AND(L53<>"-", ISNUMBER(K53)), K53, IF(AND(J53<>"-", ISNUMBER(I53)), I53, Q53 ) ) ) -> 1 | T53: 11 | U53: =IF( ISNUMBER( S53*H53 ), S53*H53, "-") -> 0.6645 | X53: 70.5
A54: - | B54: Сакун Александр | C54: m | D54: 1971-06-03 | E54: Харьков | F54: 75 | G54: =IF(D54<>"", INDEX(инфо!$H$3:$H$27, 1+MATCH(-0.001+DATEDIF(D54,$W$6,"y"),инфо!$F$3:$F$27,1)), "") -> O\M2 | H54: =IF( OR(C54="", NOT(ISNUMBER(F54))), "", VLOOKUP(F54, инфо!$A$3:$C$3901, IF(C54="m", 3,2))) -> 0.6645 | I54: 1 | Q54: =IF(N54="+",M54, IF(L54="+",K54,IF(J54="+",I54,0))) -> 0 | R54: =IF( ISNUMBER( Q54*H54 ), Q54*H54, "-") -> 0 | S54: =IF( AND(N54<>"-", ISNUMBER(M54)), M54, IF(AND(L54<>"-", ISNUMBER(K54)), K54, IF(AND(J54<>"-", ISNUMBER(I54)), I54, Q54 ) ) ) -> 1 | T54: 12 | U54: =IF( ISNUMBER( S54*H54 ), S54*H54, "-") -> 0.6645 | X54: 62.5
A55: - | B55: Иванов Денис | C55: m | D55: 1995-03-09 | E55: Николаев | F55: 75 | G55: =IF(D55<>"", INDEX(инфо!$H$3:$H$27, 1+MATCH(-0.001+DATEDIF(D55,$W$6,"y"),инфо!$F$3:$F$27,1)), "") -> O\J | H55: =IF( OR(C55="", NOT(ISNUMBER(F55))), "", VLOOKUP(F55, инфо!$A$3:$C$3901, IF(C55="m", 3,2))) -> 0.6645 | I55: 1 | Q55: =IF(N55="+",M55, IF(L55="+",K55,IF(J55="+",I55,0))) -> 0 | R55: =IF( ISNUMBER( Q55*H55 ), Q55*H55, "-") -> 0 | S55: =IF( AND(N55<>"-", ISNUMBER(M55)), M55, IF(AND(L55<>"-", ISNUMBER(K55)), K55, IF(AND(J55<>"-", ISNUMBER(I55)), I55, Q55 ) ) ) -> 1 | T55: 13 | U55: =IF( ISNUMBER( S55*H55 ), S55*H55, "-") -> 0.6645 | X55: 75.5
A56: - | B56: Гончар Алексей | C56: m | D56: 1993-03-30 | E56: Светловодск | F56: 75 | G56: =IF(D56<>"", INDEX(инфо!$H$3:$H$27, 1+MATCH(-0.001+DATEDIF(D56,$W$6,"y"),инфо!$F$3:$F$27,1)), "") -> O | H56: =IF( OR(C56="", NOT(ISNUMBER(F56))), "", VLOOKUP(F56, инфо!$A$3:$C$3901, IF(C56="m", 3,2))) -> 0.6645 | I56: 1 | Q56: =IF(N56="+",M56, IF(L56="+",K56,IF(J56="+",I56,0))) -> 0 | R56: =IF( ISNUMBER( Q56*H56 ), Q56*H56, "-") -> 0 | S56: =IF( AND(N56<>"-", ISNUMBER(M56)), M56, IF(AND(L56<>"-", ISNUMBER(K56)), K56, IF(AND(J56<>"-", ISNUMBER(I56)), I56, Q56 ) ) ) -> 1 | T56: 14 | U56: =IF( ISNUMBER( S56*H56 ), S56*H56, "-") -> 0.6645 | X56: 70.5
A57: 14 | E57: 82,5 | F57: кг | P57: РУ | Q57: 84
A58: - | B58: Кость Александр | C58: m | D58: 1968-05-04 | E58: Люботин | F58: 82.5 | G58: =IF(D58<>"", INDEX(инфо!$H$3:$H$27, 1+MATCH(-0.001+DATEDIF(D58,$W$6,"y"),инфо!$F$3:$F$27,1)), "") -> O\M3 | H58: =IF( OR(C58="", NOT(ISNUMBER(F58))), "", VLOOKUP(F58, инфо!$A$3:$C$3901, IF(C58="m", 3,2))) -> 0.6193 | I58: 1 | Q58: =IF(N58="+",M58, IF(L58="+",K58,IF(J58="+",I58,0))) -> 0 | R58: =IF( ISNUMBER( Q58*H58 ), Q58*H58, "-") -> 0 | S58: =IF( AND(N58<>"-", ISNUMBER(M58)), M58, IF(AND(L58<>"-", ISNUMBER(K58)), K58, IF(AND(J58<>"-", ISNUMBER(I58)), I58, Q58 ) ) ) -> 1 | T58: 1 | U58: =IF( ISNUMBER( S58*H58 ), S58*H58, "-") -> 0.6193 | V58: Бабенко Виктор | X58: 84
A59: - | B59: Горюшинский Сергей | C59: m | D59: 1991-09-20 | E59: Люботин | F59: 82.5 | G59: =IF(D59<>"", INDEX(инфо!$H$3:$H$27, 1+MATCH(-0.001+DATEDIF(D59,$W$6,"y"),инфо!$F$3:$F$27,1)), "") -> O | H59: =IF( OR(C59="", NOT(ISNUMBER(F59))), "", VLOOKUP(F59, инфо!$A$3:$C$3901, IF(C59="m", 3,2))) -> 0.6193 | I59: 1 | Q59: =IF(N59="+",M59, IF(L59="+",K59,IF(J59="+",I59,0))) -> 0 | R59: =IF( ISNUMBER( Q59*H59 ), Q59*H59, "-") -> 0 | S59: =IF( AND(N59<>"-", ISNUMBER(M59)), M59, IF(AND(L59<>"-", ISNUMBER(K59)), K59, IF(AND(J59<>"-", ISNUMBER(I59)), I59, Q59 ) ) ) -> 1 | T59: 2 | U59: =IF( ISNUMBER( S59*H59 ), S59*H59, "-") -> 0.6193 | X59: 80
A60: - | B60: Лукьянихин Роман | C60: m | D60: 2001-10-17 | E60: Люботин | F60: 82.5 | G60: =IF(D60<>"", INDEX(инфо!$H$3:$H$27, 1+MATCH(-0.001+DATEDIF(D60,$W$6,"y"),инфо!$F$3:$F$27,1)), "") -> O\T2 | H60: =IF( OR(C60="", NOT(ISNUMBER(F60))), "", VLOOKUP(F60, инфо!$A$3:$C$3901, IF(C60="m", 3,2))) -> 0.6193 | I60: 1 | Q60: =IF(N60="+",M60, IF(L60="+",K60,IF(J60="+",I60,0))) -> 0 | R60: =IF( ISNUMBER( Q60*H60 ), Q60*H60, "-") -> 0 | S60: =IF( AND(N60<>"-", ISNUMBER(M60)), M60, IF(AND(L60<>"-", ISNUMBER(K60)), K60, IF(AND(J60<>"-", ISNUMBER(I60)), I60, Q60 ) ) ) -> 1 | T60: 3 | U60: =IF( ISNUMBER( S60*H60 ), S60*H60, "-") -> 0.6193 | X60: 65
A61: - | B61: Щербань Даниил | C61: m | D61: 2004-10-02 | E61: Люботин | F61: 82.5 | G61: =IF(D61<>"", INDEX(инфо!$H$3:$H$27, 1+MATCH(-0.001+DATEDIF(D61,$W$6,"y"),инфо!$F$3:$F$27,1)), "") -> O\T1 | H61: =IF( OR(C61="", NOT(ISNUMBER(F61))), "", VLOOKUP(F61, инфо!$A$3:$C$3901, IF(C61="m", 3,2))) -> 0.6193 | I61: 1 | Q61: =IF(N61="+",M61, IF(L61="+",K61,IF(J61="+",I61,0))) -> 0 | R61: =IF( ISNUMBER( Q61*H61 ), Q61*H61, "-") -> 0 | S61: =IF( AND(N61<>"-", ISNUMBER(M61)), M61, IF(AND(L61<>"-", ISNUMBER(K61)), K61, IF(AND(J61<>"-", ISNUMBER(I61)), I61, Q61 ) ) ) -> 1 | T61: 4 | U61: =IF( ISNUMBER( S61*H61 ), S61*H61, "-") -> 0.6193 | X61: 55
A62: - | B62: Кравченко Вадим | C62: m | D62: 2004-09-24 | E62: Харьков | F62: 82.5 | G62: =IF(D62<>"", INDEX(инфо!$H$3:$H$27, 1+MATCH(-0.001+DATEDIF(D62,$W$6,"y"),инфо!$F$3:$F$27,1)), "") -> O\T1 | H62: =IF( OR(C62="", NOT(ISNUMBER(F62))), "", VLOOKUP(F62, инфо!$A$3:$C$3901, IF(C62="m", 3,2))) -> 0.6193 | I62: 1 | Q62: =IF(N62="+",M62, IF(L62="+",K62,IF(J62="+",I62,0))) -> 0 | R62: =IF( ISNUMBER( Q62*H62 ), Q62*H62, "-") -> 0 | S62: =IF( AND(N62<>"-", ISNUMBER(M62)), M62, IF(AND(L62<>"-", ISNUMBER(K62)), K62, IF(AND(J62<>"-", ISNUMBER(I62)), I62, Q62 ) ) ) -> 1 | T62: 5 | U62: =IF( ISNUMBER( S62*H62 ), S62*H62, "-") -> 0.6193 | V62: Заливан Игорь | X62: 55
A63: - | B63: Кунеев Андрей | C63: m | D63: 1991-04-18 | E63: Харьков | F63: 82.5 | G63: =IF(D63<>"", INDEX(инфо!$H$3:$H$27, 1+MATCH(-0.001+DATEDIF(D63,$W$6,"y"),инфо!$F$3:$F$27,1)), "") -> O | H63: =IF( OR(C63="", NOT(ISNUMBER(F63))), "", VLOOKUP(F63, инфо!$A$3:$C$3901, IF(C63="m", 3,2))) -> 0.6193 | I63: 1 | Q63: =IF(N63="+",M63, IF(L63="+",K63,IF(J63="+",I63,0))) -> 0 | R63: =IF( ISNUMBER( Q63*H63 ), Q63*H63, "-") -> 0 | S63: =IF( AND(N63<>"-", ISNUMBER(M63)), M63, IF(AND(L63<>"-", ISNUMBER(K63)), K63, IF(AND(J63<>"-", ISNUMBER(I63)), I63, Q63 ) ) ) -> 1 | T63: 6 | U63: =IF( ISNUMBER( S63*H63 ), S63*H63, "-") -> 0.6193 | X63: 80
A64: - | B64: Смирнов Алексей | C64: m | D64: 04.08.1988 | E64: Харьков | F64: 82.5 | G64: =IF(D64<>"", INDEX(инфо!$H$3:$H$27, 1+MATCH(-0.001+DATEDIF(D64,$W$6,"y"),инфо!$F$3:$F$27,1)), "") -> O | H64: =IF( OR(C64="", NOT(ISNUMBER(F64))), "", VLOOKUP(F64, инфо!$A$3:$C$3901, IF(C64="m", 3,2))) -> 0.6193 | I64: 1 | Q64: =IF(N64="+",M64, IF(L64="+",K64,IF(J64="+",I64,0))) -> 0 | R64: =IF( ISNUMBER( Q64*H64 ), Q64*H64, "-") -> 0 | S64: =IF( AND(N64<>"-", ISNUMBER(M64)), M64, IF(AND(L64<>"-", ISNUMBER(K64)), K64, IF(AND(J64<>"-", ISNUMBER(I64)), I64, Q64 ) ) ) -> 1 | T64: 7 | U64: =IF( ISNUMBER( S64*H64 ), S64*H64, "-") -> 0.6193 | X64: 80
A65: - | B65: Капитанюк Вячеслав | C65: m | D65: 1969-11-09 | E65: Харьков | F65: 82.5 | G65: =IF(D65<>"", INDEX(инфо!$H$3:$H$27, 1+MATCH(-0.001+DATEDIF(D65,$W$6,"y"),инфо!$F$3:$F$27,1)), "") -> O\M2 | H65: =IF( OR(C65="", NOT(ISNUMBER(F65))), "", VLOOKUP(F65, инфо!$A$3:$C$3901, IF(C65="m", 3,2))) -> 0.6193 | I65: 1 | Q65: =IF(N65="+",M65, IF(L65="+",K65,IF(J65="+",I65,0))) -> 0 | R65: =IF( ISNUMBER( Q65*H65 ), Q65*H65, "-") -> 0 | S65: =IF( AND(N65<>"-", ISNUMBER(M65)), M65, IF(AND(L65<>"-", ISNUMBER(K65)), K65, IF(AND(J65<>"-", ISNUMBER(I65)), I65, Q65 ) ) ) -> 1 | T65: 8 | U65: =IF( ISNUMBER( S65*H65 ), S65*H65, "-") -> 0.6193 | X65: 77
A66: - | B66: Гайдар Виталий | C66: m | D66: 1990-03-26 | E66: Харьков | F66: 82.5 | G66: =IF(D66<>"", INDEX(инфо!$H$3:$H$27, 1+MATCH(-0.001+DATEDIF(D66,$W$6,"y"),инфо!$F$3:$F$27,1)), "") -> O | H66: =IF( OR(C66="", NOT(ISNUMBER(F66))), "", VLOOKUP(F66, инфо!$A$3:$C$3901, IF(C66="m", 3,2))) -> 0.6193 | I66: 1 | Q66: =IF(N66="+",M66, IF(L66="+",K66,IF(J66="+",I66,0))) -> 0 | R66: =IF( ISNUMBER( Q66*H66 ), Q66*H66, "-") -> 0 | S66: =IF( AND(N66<>"-", ISNUMBER(M66)), M66, IF(AND(L66<>"-", ISNUMBER(K66)), K66, IF(AND(J66<>"-", ISNUMBER(I66)), I66, Q66 ) ) ) -> 1 | T66: 9 | U66: =IF( ISNUMBER( S66*H66 ), S66*H66, "-") -> 0.6193 | X66: 80
A67: - | B67: Чепрасов Максим | C67: m | D67: 12.03.1994 | E67: Северодонецк | F67: 82.5 | G67: =IF(D67<>"", INDEX(инфо!$H$3:$H$27, 1+MATCH(-0.001+DATEDIF(D67,$W$6,"y"),инфо!$F$3:$F$27,1)), "") -> O\J | H67: =IF( OR(C67="", NOT(ISNUMBER(F67))), "", VLOOKUP(F67, инфо!$A$3:$C$3901, IF(C67="m", 3,2))) -> 0.6193 | I67: 1 | Q67: =IF(N67="+",M67, IF(L67="+",K67,IF(J67="+",I67,0))) -> 0 | R67: =IF( ISNUMBER( Q67*H67 ), Q67*H67, "-") -> 0 | S67: =IF( AND(N67<>"-", ISNUMBER(M67)), M67, IF(AND(L67<>"-", ISNUMBER(K67)), K67, IF(AND(J67<>"-", ISNUMBER(I67)), I67, Q67 ) ) ) -> 1 | T67: 10 | U67: =IF( ISNUMBER( S67*H67 ), S67*H67, "-") -> 0.6193 | X67: 78
A68: - | B68: Дядченко Арсений | C68: m | D68: 1996-07-25 | E68: Мерефа | F68: 82.5 | G68: =IF(D68<>"", INDEX(инфо!$H$3:$H$27, 1+MATCH(-0.001+DATEDIF(D68,$W$6,"y"),инфо!$F$3:$F$27,1)), "") -> O\J | H68: =IF( OR(C68="", NOT(ISNUMBER(F68))), "", VLOOKUP(F68, инфо!$A$3:$C$3901, IF(C68="m", 3,2))) -> 0.6193 | I68: 1 | Q68: =IF(N68="+",M68, IF(L68="+",K68,IF(J68="+",I68,0))) -> 0 | R68: =IF( ISNUMBER( Q68*H68 ), Q68*H68, "-") -> 0 | S68: =IF( AND(N68<>"-", ISNUMBER(M68)), M68, IF(AND(L68<>"-", ISNUMBER(K68)), K68, IF(AND(J68<>"-", ISNUMBER(I68)), I68, Q68 ) ) ) -> 1 | T68: 11 | U68: =IF( ISNUMBER( S68*H68 ), S68*H68, "-") -> 0.6193 | V68: Чумак Виталий | X68: 78
A69: - | B69: Панасюченко Дмитрий | C69: m | D69: 1992-05-16 | E69: Вознесенск | F69: 82.5 | G69: =IF(D69<>"", INDEX(инфо!$H$3:$H$27, 1+MATCH(-0.001+DATEDIF(D69,$W$6,"y"),инфо!$F$3:$F$27,1)), "") -> O | H69: =IF( OR(C69="", NOT(ISNUMBER(F69))), "", VLOOKUP(F69, инфо!$A$3:$C$3901, IF(C69="m", 3,2))) -> 0.6193 | I69: 1 | Q69: =IF(N69="+",M69, IF(L69="+",K69,IF(J69="+",I69,0))) -> 0 | R69: =IF( ISNUMBER( Q69*H69 ), Q69*H69, "-") -> 0 | S69: =IF( AND(N69<>"-", ISNUMBER(M69)), M69, IF(AND(L69<>"-", ISNUMBER(K69)), K69, IF(AND(J69<>"-", ISNUMBER(I69)), I69, Q69 ) ) ) -> 1 | T69: 12 | U69: =IF( ISNUMBER( S69*H69 ), S69*H69, "-") -> 0.6193 | X69: 80
A70: - | B70: Канделаки Тарас | C70: m | D70: 1997-07-14 | E70: Люботин | F70: 82.5 | G70: =IF(D70<>"", INDEX(инфо!$H$3:$H$27, 1+MATCH(-0.001+DATEDIF(D70,$W$6,"y"),инфо!$F$3:$F$27,1)), "") -> O\J | H70: =IF( OR(C70="", NOT(ISNUMBER(F70))), "", VLOOKUP(F70, инфо!$A$3:$C$3901, IF(C70="m", 3,2))) -> 0.6193 | I70: 1 | Q70: =IF(N70="+",M70, IF(L70="+",K70,IF(J70="+",I70,0))) -> 0 | R70: =IF( ISNUMBER( Q70*H70 ), Q70*H70, "-") -> 0 | S70: =IF( AND(N70<>"-", ISNUMBER(M70)), M70, IF(AND(L70<>"-", ISNUMBER(K70)), K70, IF(AND(J70<>"-", ISNUMBER(I70)), I70, Q70 ) ) ) -> 1 | T70: 13 | U70: =IF( ISNUMBER( S70*H70 ), S70*H70, "-") -> 0.6193 | X70: 78
A71: - | B71: Трунов Денис | C71: m | D71: 1988-04-19 | E71: Харьков | F71: 82.5 | G71: =IF(D71<>"", INDEX(инфо!$H$3:$H$27, 1+MATCH(-0.001+DATEDIF(D71,$W$6,"y"),инфо!$F$3:$F$27,1)), "") -> O | H71: =IF( OR(C71="", NOT(ISNUMBER(F71))), "", VLOOKUP(F71, инфо!$A$3:$C$3901, IF(C71="m", 3,2))) -> 0.6193 | I71: 1 | Q71: =IF(N71="+",M71, IF(L71="+",K71,IF(J71="+",I71,0))) -> 0 | R71: =IF( ISNUMBER( Q71*H71 ), Q71*H71, "-") -> 0 | S71: =IF( AND(N71<>"-", ISNUMBER(M71)), M71, IF(AND(L71<>"-", ISNUMBER(K71)), K71, IF(AND(J71<>"-", ISNUMBER(I71)), I71, Q71 ) ) ) -> 1 | T71: 14 | U71: =IF( ISNUMBER( S71*H71 ), S71*H71, "-") -> 0.6193 | V71: Маслов Александр | X71: 80
A72: 2 | E72: 90 | F72: кг | P72: РУ | Q72: 85
A73: - | B73: Родионов Сергей | C73: m | D73: 2001-01-01 | E73: Люботин | F73: 90 | G73: =IF(D73<>"", INDEX(инфо!$H$3:$H$27, 1+MATCH(-0.001+DATEDIF(D73,$W$6,"y"),инфо!$F$3:$F$27,1)), "") -> O\T2 | H73: =IF( OR(C73="", NOT(ISNUMBER(F73))), "", VLOOKUP(F73, инфо!$A$3:$C$3901, IF(C73="m", 3,2))) -> 0.5853 | I73: 1 | Q73: =IF(N73="+",M73, IF(L73="+",K73,IF(J73="+",I73,0))) -> 0 | R73: =IF( ISNUMBER( Q73*H73 ), Q73*H73, "-") -> 0 | S73: =IF( AND(N73<>"-", ISNUMBER(M73)), M73, IF(AND(L73<>"-", ISNUMBER(K73)), K73, IF(AND(J73<>"-", ISNUMBER(I73)), I73, Q73 ) ) ) -> 1 | T73: 1 | U73: =IF( ISNUMBER( S73*H73 ), S73*H73, "-") -> 0.5853 | X73: 73.5
A74: - | B74: Овчаренко Александр | C74: m | D74: 1967-01-20 | E74: Старобельск | F74: 90 | G74: =IF(D74<>"", INDEX(инфо!$H$3:$H$27, 1+MATCH(-0.001+DATEDIF(D74,$W$6,"y"),инфо!$F$3:$F$27,1)), "") -> O\M3 | H74: =IF( OR(C74="", NOT(ISNUMBER(F74))), "", VLOOKUP(F74, инфо!$A$3:$C$3901, IF(C74="m", 3,2))) -> 0.5853 | I74: 1 | Q74: =IF(N74="+",M74, IF(L74="+",K74,IF(J74="+",I74,0))) -> 0 | R74: =IF( ISNUMBER( Q74*H74 ), Q74*H74, "-") -> 0 | S74: =IF( AND(N74<>"-", ISNUMBER(M74)), M74, IF(AND(L74<>"-", ISNUMBER(K74)), K74, IF(AND(J74<>"-", ISNUMBER(I74)), I74, Q74 ) ) ) -> 1 | T74: 2 | U74: =IF( ISNUMBER( S74*H74 ), S74*H74, "-") -> 0.5853 | X74: 84.5
A75: 5 | E75: 100 | F75: кг | P75: РУ | Q75: 86.5
A76: - | B76: Самойлов Виталий | C76: m | D76: 09.03.1983 | E76: Харьков | F76: 100 | G76: =IF(D76<>"", INDEX(инфо!$H$3:$H$27, 1+MATCH(-0.001+DATEDIF(D76,$W$6,"y"),инфо!$F$3:$F$27,1)), "") -> O\SM | H76: =IF( OR(C76="", NOT(ISNUMBER(F76))), "", VLOOKUP(F76, инфо!$A$3:$C$3901, IF(C76="m", 3,2))) -> 0.554 | I76: 1 | Q76: =IF(N76="+",M76, IF(L76="+",K76,IF(J76="+",I76,0))) -> 0 | R76: =IF( ISNUMBER( Q76*H76 ), Q76*H76, "-") -> 0 | S76: =IF( AND(N76<>"-", ISNUMBER(M76)), M76, IF(AND(L76<>"-", ISNUMBER(K76)), K76, IF(AND(J76<>"-", ISNUMBER(I76)), I76, Q76 ) ) ) -> 1 | T76: 1 | U76: =IF( ISNUMBER( S76*H76 ), S76*H76, "-") -> 0.554 | X76: 81
A77: - | B77: Лебедь Сергей | C77: m | D77: 02.11.1987 | E77: Северодонецк | F77: 100 | G77: =IF(D77<>"", INDEX(инфо!$H$3:$H$27, 1+MATCH(-0.001+DATEDIF(D77,$W$6,"y"),инфо!$F$3:$F$27,1)), "") -> O | H77: =IF( OR(C77="", NOT(ISNUMBER(F77))), "", VLOOKUP(F77, инфо!$A$3:$C$3901, IF(C77="m", 3,2))) -> 0.554 | I77: 1 | Q77: =IF(N77="+",M77, IF(L77="+",K77,IF(J77="+",I77,0))) -> 0 | R77: =IF( ISNUMBER( Q77*H77 ), Q77*H77, "-") -> 0 | S77: =IF( AND(N77<>"-", ISNUMBER(M77)), M77, IF(AND(L77<>"-", ISNUMBER(K77)), K77, IF(AND(J77<>"-", ISNUMBER(I77)), I77, Q77 ) ) ) -> 1 | T77: 2 | U77: =IF( ISNUMBER( S77*H77 ), S77*H77, "-") -> 0.554 | X77: 86.5
A78: - | B78: Тараненко Артур | C78: m | D78: 1993-04-20 | E78: Покровск, Донетская обл. | F78: 100 | G78: =IF(D78<>"", INDEX(инфо!$H$3:$H$27, 1+MATCH(-0.001+DATEDIF(D78,$W$6,"y"),инфо!$F$3:$F$27,1)), "") -> O | H78: =IF( OR(C78="", NOT(ISNUMBER(F78))), "", VLOOKUP(F78, инфо!$A$3:$C$3901, IF(C78="m", 3,2))) -> 0.554 | I78: 1 | Q78: =IF(N78="+",M78, IF(L78="+",K78,IF(J78="+",I78,0))) -> 0 | R78: =IF( ISNUMBER( Q78*H78 ), Q78*H78, "-") -> 0 | S78: =IF( AND(N78<>"-", ISNUMBER(M78)), M78, IF(AND(L78<>"-", ISNUMBER(K78)), K78, IF(AND(J78<>"-", ISNUMBER(I78)), I78, Q78 ) ) ) -> 1 | T78: 3 | U78: =IF( ISNUMBER( S78*H78 ), S78*H78, "-") -> 0.554 | X78: 85.5
A79: - | B79: Билык Эдуард | C79: m | D79: 1995-11-01 | E79: Кременчуг | F79: 100 | G79: =IF(D79<>"", INDEX(инфо!$H$3:$H$27, 1+MATCH(-0.001+DATEDIF(D79,$W$6,"y"),инфо!$F$3:$F$27,1)), "") -> O\J | H79: =IF( OR(C79="", NOT(ISNUMBER(F79))), "", VLOOKUP(F79, инфо!$A$3:$C$3901, IF(C79="m", 3,2))) -> 0.554 | I79: 1 | Q79: =IF(N79="+",M79, IF(L79="+",K79,IF(J79="+",I79,0))) -> 0 | R79: =IF( ISNUMBER( Q79*H79 ), Q79*H79, "-") -> 0 | S79: =IF( AND(N79<>"-", ISNUMBER(M79)), M79, IF(AND(L79<>"-", ISNUMBER(K79)), K79, IF(AND(J79<>"-", ISNUMBER(I79)), I79, Q79 ) ) ) -> 1 | T79: 4 | U79: =IF( ISNUMBER( S79*H79 ), S79*H79, "-") -> 0.554 | X79: 86
A80: - | B80: Павлов Сергей | C80: m | D80: 25.09.1954 | E80: с Ватутино | F80: 100 | G80: =IF(D80<>"", INDEX(инфо!$H$3:$H$27, 1+MATCH(-0.001+DATEDIF(D80,$W$6,"y"),инфо!$F$3:$F$27,1)), "") -> O\M5 | H80: =IF( OR(C80="", NOT(ISNUMBER(F80))), "", VLOOKUP(F80, инфо!$A$3:$C$3901, IF(C80="m", 3,2))) -> 0.554 | I80: 1 | Q80: =IF(N80="+",M80, IF(L80="+",K80,IF(J80="+",I80,0))) -> 0 | R80: =IF( ISNUMBER( Q80*H80 ), Q80*H80, "-") -> 0 | S80: =IF( AND(N80<>"-", ISNUMBER(M80)), M80, IF(AND(L80<>"-", ISNUMBER(K80)), K80, IF(AND(J80<>"-", ISNUMBER(I80)), I80, Q80 ) ) ) -> 1 | T80: 5 | U80: =IF( ISNUMBER( S80*H80 ), S80*H80, "-") -> 0.554 | V80: Шило Владимир | X80: 66
A81: 4 | E81: 110 | F81: кг | P81: РУ | Q81: 92
A82: - | B82: Кисличка Александр | C82: m | D82: 1978-08-03 | E82: Люботин | F82: 110 | G82: =IF(D82<>"", INDEX(инфо!$H$3:$H$27, 1+MATCH(-0.001+DATEDIF(D82,$W$6,"y"),инфо!$F$3:$F$27,1)), "") -> O\M1 | H82: =IF( OR(C82="", NOT(ISNUMBER(F82))), "", VLOOKUP(F82, инфо!$A$3:$C$3901, IF(C82="m", 3,2))) -> 0.5365 | I82: 1 | Q82: =IF(N82="+",M82, IF(L82="+",K82,IF(J82="+",I82,0))) -> 0 | R82: =IF( ISNUMBER( Q82*H82 ), Q82*H82, "-") -> 0 | S82: =IF( AND(N82<>"-", ISNUMBER(M82)), M82, IF(AND(L82<>"-", ISNUMBER(K82)), K82, IF(AND(J82<>"-", ISNUMBER(I82)), I82, Q82 ) ) ) -> 1 | T82: 1 | U82: =IF( ISNUMBER( S82*H82 ), S82*H82, "-") -> 0.5365 | X82: 88
A83: - | B83: Ващенко Константин | C83: m | D83: 1980-10-13 | E83: Харьков | F83: 110 | G83: =IF(D83<>"", INDEX(инфо!$H$3:$H$27, 1+MATCH(-0.001+DATEDIF(D83,$W$6,"y"),инфо!$F$3:$F$27,1)), "") -> O\SM | H83: =IF( OR(C83="", NOT(ISNUMBER(F83))), "", VLOOKUP(F83, инфо!$A$3:$C$3901, IF(C83="m", 3,2))) -> 0.5365 | I83: 1 | Q83: =IF(N83="+",M83, IF(L83="+",K83,IF(J83="+",I83,0))) -> 0 | R83: =IF( ISNUMBER( Q83*H83 ), Q83*H83, "-") -> 0 | S83: =IF( AND(N83<>"-", ISNUMBER(M83)), M83, IF(AND(L83<>"-", ISNUMBER(K83)), K83, IF(AND(J83<>"-", ISNUMBER(I83)), I83, Q83 ) ) ) -> 1 | T83: 2 | U83: =IF( ISNUMBER( S83*H83 ), S83*H83, "-") -> 0.5365 | V83: Фурсов Руслан | X83: 85
A84: - | B84: Черепенин Игорь | C84: m | D84: 1976-12-18 | E84: Харьков | F84: 110 | G84: =IF(D84<>"", INDEX(инфо!$H$3:$H$27, 1+MATCH(-0.001+DATEDIF(D84,$W$6,"y"),инфо!$F$3:$F$27,1)), "") -> O\M1 | H84: =IF( OR(C84="", NOT(ISNUMBER(F84))), "", VLOOKUP(F84, инфо!$A$3:$C$3901, IF(C84="m", 3,2))) -> 0.5365 | I84: 1 | Q84: =IF(N84="+",M84, IF(L84="+",K84,IF(J84="+",I84,0))) -> 0 | R84: =IF( ISNUMBER( Q84*H84 ), Q84*H84, "-") -> 0 | S84: =IF( AND(N84<>"-", ISNUMBER(M84)), M84, IF(AND(L84<>"-", ISNUMBER(K84)), K84, IF(AND(J84<>"-", ISNUMBER(I84)), I84, Q84 ) ) ) -> 1 | T84: 3 | U84: =IF( ISNUMBER( S84*H84 ), S84*H84, "-") -> 0.5365 | V84: Чанышев Владислав | X84: 88
A85: - | B85: Жильцов Михаил | C85: m | D85: 2006-10-28 | E85: Старобельск | F85: 110 | G85: =IF(D85<>"", INDEX(инфо!$H$3:$H$27, 1+MATCH(-0.001+DATEDIF(D85,$W$6,"y"),инфо!$F$3:$F$27,1)), "") -> O\C12 | H85: =IF( OR(C85="", NOT(ISNUMBER(F85))), "", VLOOKUP(F85, инфо!$A$3:$C$3901, IF(C85="m", 3,2))) -> 0.5365 | I85: 1 | Q85: =IF(N85="+",M85, IF(L85="+",K85,IF(J85="+",I85,0))) -> 0 | R85: =IF( ISNUMBER( Q85*H85 ), Q85*H85, "-") -> 0 | S85: =IF( AND(N85<>"-", ISNUMBER(M85)), M85, IF(AND(L85<>"-", ISNUMBER(K85)), K85, IF(AND(J85<>"-", ISNUMBER(I85)), I85, Q85 ) ) ) -> 1 | T85: 4 | U85: =IF( ISNUMBER( S85*H85 ), S85*H85, "-") -> 0.5365
A86: 1 | E86: 125 | F86: кг | P86: РУ | Q86: 90
A87: - | B87: Ныщий Алексей | C87: m | D87: 1997-06-18 | E87: Люботин | F87: 125 | G87: =IF(D87<>"", INDEX(инфо!$H$3:$H$27, 1+MATCH(-0.001+DATEDIF(D87,$W$6,"y"),инфо!$F$3:$F$27,1)), "") -> O\J | H87: =IF( OR(C87="", NOT(ISNUMBER(F87))), "", VLOOKUP(F87, инфо!$A$3:$C$3901, IF(C87="m", 3,2))) -> 0.521 | I87: 1 | Q87: =IF(N87="+",M87, IF(L87="+",K87,IF(J87="+",I87,0))) -> 0 | R87: =IF( ISNUMBER( Q87*H87 ), Q87*H87, "-") -> 0 | S87: =IF( AND(N87<>"-", ISNUMBER(M87)), M87, IF(AND(L87<>"-", ISNUMBER(K87)), K87, IF(AND(J87<>"-", ISNUMBER(I87)), I87, Q87 ) ) ) -> 1 | T87: 1 | U87: =IF( ISNUMBER( S87*H87 ), S87*H87, "-") -> 0.521 | X87: 86

Sheet Грамоты
A1: Место | B1: Имя | C1: Возрастная | D1: Дисциплина | E1: Весовая | F1: Результат | G1: Тренер

Sheet Рекорды
A1: Дисциплина | B1: Имя | C1: Пол | D1: Весовая | E1: Возрастная | F1: Город | G1: Результат | H1: Место выполнения | I1: Дата | J1: =COUNTA($A$2:$A$1000) -> 0

Sheet в.к.
B1: SC | C1: Заявочные веса
A2: m | B2: 110 | C2: кг | I2: 92 | J2: 95
A3: № | B3: Имя | C3: с. в. | D3: 1-й подх | E3: BP | F3: DL | G3: Сумма
A4: 1 | B4: Черепенин Игорь | C4: 104.4 | D4: 84
A5: 2 | B5: Бурый Ярослав | C5: 105 | D5: 82
A6: 3 | B6: Афанасьев Руслан | C6: 104.3 | D6: 76
A7: 4 | B7: Назаренко Денис | C7: 107.7 | D7: 50

Sheet apl
A8001: sheet | B8001: BP | C8001: type-b,division-u
B8002: 48 кг
A8003: 1 | B8003: Вощенко Анастасия | C8003: f | D8003: 25.07.1995 | E8003: Харьков | F8003: J | G8003: 48 | H8003: 65 | I8003: 67.5x | J8003: 67.5 | L8003: 67.5 | N8003: Фадеев Артем
A8004: 2 | B8004: Шведская Мария | C8004: f | D8004: 1993-08-11 | E8004: Харьков | F8004: J | G8004: 46.3 | H8004: 47.5 | I8004: 50x | J8004: 50x | L8004: 47.5
A8005: 1 | B8005: Вощенко Анастасия | C8005: f | D8005: 25.07.1995 | E8005: Харьков | F8005: O | G8005: 48 | H8005: 65 | I8005: 67.5x | J8005: 67.5 | L8005: 67.5 | N8005: Фадеев Артем
A8006: 2 | B8006: Шведская Мария | C8006: f | D8006: 1993-08-11 | E8006: Харьков | F8006: O | G8006: 46.3 | H8006: 47.5 | I8006: 50x | J8006: 50x | L8006: 47.5
B8007: 52 кг
A8008: 1 | B8008: Митяева Карина | C8008: f | D8008: 2001-06-07 | E8008: Балаклея | F8008: T2 | G8008: 49.8 | H8008: 35 | I8008: 45 | J8008: 48x | L8008: 45 | N8008: Морозов Павел
A8009: 1 | B8009: Чибисова Анна | C8009: f | D8009: 26.10.1992 | E8009: Харьков | F8009: O | G8009: 51 | H8009: 67.5 | I8009: 69 | J8009: 71x | L8009: 69 | N8009: Чанышев Владислав
A8010: 2 | B8010: Мельникова Дарья | C8010: f | D8010: 23.11.1990 | E8010: Харьков | F8010: O | G8010: 49.2 | H8010: 57.5 | I8010: 62.5 | J8010: 65x | L8010: 62.5 | N8010: Качанов Евгений
A8011: 3 | B8011: Митяева Карина | C8011: f | D8011: 2001-06-07 | E8011: Балаклея | F8011: O | G8011: 49.8 | H8011: 35 | I8011: 45 | J8011: 48x | L8011: 45 | N8011: Морозов Павел
B8012: 56 кг
A8013: 1 | B8013: Винник Анастасия | C8013: f | D8013: 13.04.1999 | E8013: Дергачи | F8013: T3 | G8013: 55.6 | H8013: 65 | I8013: 70x | J8013: 70x | L8013: 65 | N8013: Гилун Виктор
A8014: 2 | B8014: Бакшеева Татьяна | C8014: f | D8014: 19.01.2000 | E8014: Харьков | F8014: T3 | G8014: 54 | H8014: 40 | I8014: 45 | J8014: 47.5x | L8014: 45 | N8014: Блажко Владислав
A8015: 1 | B8015: Винник Анастасия | C8015: f | D8015: 13.04.1999 | E8015: Дергачи | F8015: O | G8015: 55.6 | H8015: 65 | I8015: 70x | J8015: 70x | L8015: 65 | N8015: Гилун Виктор
A8016: 2 | B8016: Бакшеева Татьяна | C8016: f | D8016: 19.01.2000 | E8016: Харьков | F8016: O | G8016: 54 | H8016: 40 | I8016: 45 | J8016: 47.5x | L8016: 45 | N8016: Блажко Владислав
B8017: 60 кг
A8018: 1 | B8018: Толубенко Елизавета | C8018: f | D8018: 24.02.1999 | E8018: Харьков | F8018: T3 | G8018: 59.6 | H8018: 62.5 | I8018: 65 | J8018: 67.5 | L8018: 67.5 | N8018: Чанышев Владислав
A8019: 1 | B8019: Толубенко Елизавета | C8019: f | D8019: 24.02.1999 | E8019: Харьков | F8019: O | G8019: 59.6 | H8019: 62.5 | I8019: 65 | J8019: 67.5 | L8019: 67.5 | N8019: Чанышев Владислав
B8020: 67.5 кг
A8021: 1 | B8021: Сазонова Юлия | C8021: f | D8021: 1992-06-30 | E8021: Харьков | F8021: O | G8021: 67 | H8021: 67.5 | I8021: 70 | J8021: 72.5x | L8021: 70 | N8021: Островерх Михаил
A8022: 2 | B8022: Чучупал Елена | C8022: f | D8022: 11.08.1986 | E8022: Харьков | F8022: O | G8022: 61.1 | H8022: 62.5 | I8022: 65 | J8022: 70x | L8022: 65 | N8022: Подопригора А.
B8023: 75 кг
A8024: 1 | B8024: Фурсова Анастасия | C8024: f | D8024: 31.01.1994 | E8024: Харьков | F8024: J | G8024: 71.1 | H8024: 55 | I8024: 57.5 | J8024: 60 | L8024: 60 | N8024: Фурсов Р.
A8025: 1 | B8025: Фурсова Анастасия | C8025: f | D8025: 31.01.1994 | E8025: Харьков | F8025: O | G8025: 71.1 | H8025: 55 | I8025: 57.5 | J8025: 60 | L8025: 60 | N8025: Фурсов Р.
B8026: 56 кг
A8027: 1 | B8027: Выродов Владислав | C8027: m | D8027: 2003-09-15 | E8027: Балаклея | F8027: T1 | G8027: 54.9 | H8027: 50 | I8027: 55 | J8027: 57.5 | K8027: 60 | L8027: 57.5 | N8027: Морозов Павел
A8028: 2 | B8028: Медведев Владислав | C8028: m | D8028: 2004-08-11 | E8028: Харьков | F8028: T1 | G8028: 55.1 | H8028: 47.5 | I8028: 52.5x | J8028: 52.5 | L8028: 52.5 | N8028: Кофанов А.
A8029: 1 | B8029: Марченко Евгений | C8029: m | D8029: 2001-06-09 | E8029: Балаклея | F8029: T2 | G8029: 56 | H8029: 70 | I8029: 80 | J8029: 82.5 | L8029: 82.5 | N8029: Морозов П.
A8030: 1 | B8030: Марченко Евгений | C8030: m | D8030: 2001-06-09 | E8030: Балаклея | F8030: O | G8030: 56 | H8030: 70 | I8030: 80 | J8030: 82.5 | L8030: 82.5 | N8030: Морозов П.
A8031: 2 | B8031: Выродов Владислав | C8031: m | D8031: 2003-09-15 | E8031: Балаклея | F8031: O | G8031: 54.9 | H8031: 50 | I8031: 55 | J8031: 57.5 | K8031: 60 | L8031: 57.5 | N8031: Морозов Павел
A8032: 3 | B8032: Медведев Владислав | C8032: m | D8032: 2004-08-11 | E8032: Харьков | F8032: O | G8032: 55.1 | H8032: 47.5 | I8032: 52.5x | J8032: 52.5 | L8032: 52.5 | N8032: Кофанов А.
B8033: 60 кг
A8034: 1 | B8034: Гацура Владислав | C8034: m | D8034: 2004-02-15 | E8034: Харьков | F8034: T1 | G8034: 58.2 | H8034: 60 | I8034: 62.5 | J8034: 65x | L8034: 62.5 | N8034: Мирошниченко Олег
A8035: 1 | B8035: Саррай Дургхам | C8035: m | D8035: 1995-03-28 | E8035: Богдад, Ирак | F8035: J | G8035: 58 | H8035: 70 | I8035: 72.5 | J8035: 75x | L8035: 72.5 | N8035: Мирошниченко Олег
A8036: 1 | B8036: Саррай Дургхам | C8036: m | D8036: 1995-03-28 | E8036: Богдад, Ирак | F8036: O | G8036: 58 | H8036: 70 | I8036: 72.5 | J8036: 75x | L8036: 72.5 | N8036: Мирошниченко Олег
A8037: 2 | B8037: Гацура Владислав | C8037: m | D8037: 2004-02-15 | E8037: Харьков | F8037: O | G8037: 58.2 | H8037: 60 | I8037: 62.5 | J8037: 65x | L8037: 62.5 | N8037: Мирошниченко Олег
B8038: 67.5 кг
A8039: 1 | B8039: Почекуев Александр | C8039: m | D8039: 2001-12-04 | E8039: Балаклея | F8039: T2 | G8039: 65.9 | H8039: 75 | I8039: 85 | J8039: 90 | L8039: 90 | N8039: Морозов Павел
A8040: 1 | B8040: Кривонос Константин | C8040: m | D8040: 1996-01-01 | E8040: Балаклея | F8040: J | G8040: 66.4 | H8040: 125 | I8040: 130 | J8040: 132.5x | L8040: 130 | N8040: Морозов Павел
A8041: 2 | B8041: Жумаев Сирожиддин | C8041: m | D8041: 20.05.1997 | E8041: Кропивницкий | F8041: J | G8041: 66.5 | H8041: 120x | I8041: 125x | J8041: 127.5 | K8041: 132.5 | L8041: 127.5 | N8041: Сухно Олег
A8042: 3 | B8042: Сорочинский Руслан | C8042: m | D8042: 27.08.1993 | E8042: Харьков | F8042: J | G8042: 65.9 | H8042: 117.5 | I8042: 122.5 | J8042: 125x | L8042: 122.5 | N8042: Буряк Владислав
A8043: 1 | B8043: Кривонос Константин | C8043: m | D8043: 1996-01-01 | E8043: Балаклея | F8043: O | G8043: 66.4 | H8043: 125 | I8043: 130 | J8043: 132.5x | L8043: 130 | N8043: Морозов Павел
A8044: 2 | B8044: Жумаев Сирожиддин | C8044: m | D8044: 20.05.1997 | E8044: Кропивницкий | F8044: O | G8044: 66.5 | H8044: 120x | I8044: 125x | J8044: 127.5 | K8044: 132.5 | L8044: 127.5 | N8044: Сухно Олег
A8045: 3 | B8045: Сорочинский Руслан | C8045: m | D8045: 27.08.1993 | E8045: Харьков | F8045: O | G8045: 65.9 | H8045: 117.5 | I8045: 122.5 | J8045: 125x | L8045: 122.5 | N8045: Буряк Владислав
A8046: 4 | B8046: Морозов Сергей | C8046: m | D8046: 24.06.1979 | E8046: Харьков | F8046: O | G8046: 67.2 | H8046: 115 | I8046: 120x | J8046: 125x | L8046: 115 | N8046: Коц Артем
A8047: 5 | B8047: Почекуев Александр | C8047: m | D8047: 2001-12-04 | E8047: Балаклея | F8047: O | G8047: 65.9 | H8047: 75 | I8047: 85 | J8047: 90 | L8047: 90 | N8047: Морозов Павел
A8048: 1 | B8048: Морозов Сергей | C8048: m | D8048: 24.06.1979 | E8048: Харьков | F8048: SM | G8048: 67.2 | H8048: 115 | I8048: 120x | J8048: 125x | L8048: 115 | N8048: Коц Артем
B8049: 75 кг
A8050: 1 | B8050: Катречко Владислав | C8050: m | D8050: 1999-02-11 | E8050: Дергачи | F8050: T3 | G8050: 71 | H8050: 150x | I8050: 155 | J8050: 157.5x | L8050: 155 | N8050: Виктор Гилун
A8051: 2 | B8051: Миронов Максим | C8051: m | D8051: 1999-11-15 | E8051: Люботин | F8051: T3 | G8051: 72.4 | H8051: 100 | I8051: 110x | J8051: 110x | L8051: 100 | N8051: Кибальник А.
A8052: 1 | B8052: Червинский Анатолий | C8052: m | D8052: 10.07.1995 | E8052: Харьков | F8052: J | G8052: 74.5 | H8052: 135 | I8052: 140 | J8052: 145x | L8052: 140 | N8052: Качанов Евгений
A8053: 2 | B8053: Шевченко Кирилл | C8053: m | D8053: 1997-02-05 | E8053: Запорожье | F8053: J | G8053: 74.56 | H8053: 100 | I8053: 115 | J8053: 122.5 | L8053: 122.5
A8054: 3 | B8054: Кальченко Ярослав | C8054: m | D8054: 1993-06-21 | E8054: Харьков | F8054: J | G8054: 73.4 | H8054: 115 | I8054: 122.5x | J8054: 122.5x | L8054: 115 | N8054: Крыкля Владимир
A8055: 4 | B8055: Воробьев Евгений | C8055: m | D8055: 04.10.1993 | E8055: Харьков | F8055: J | G8055: 74.9 | H8055: 110 | I8055: 120x | J8055: 120x | L8055: 110 | N8055: Донченко Дмитрий
A8056: 1 | B8056: Скосарев Сергей | C8056: m | D8056: 1990-11-15 | E8056: Харьков | F8056: O | G8056: 74.56 | H8056: 150 | I8056: 157.5 | J8056: 160x | L8056: 157.5 | N8056: Ивашко Евгений
A8057: 2 | B8057: Катречко Владислав | C8057: m | D8057: 1999-02-11 | E8057: Дергачи | F8057: O | G8057: 71 | H8057: 150x | I8057: 155 | J8057: 157.5x | L8057: 155 | N8057: Виктор Гилун
A8058: 3 | B8058: Червинский Анатолий | C8058: m | D8058: 10.07.1995 | E8058: Харьков | F8058: O | G8058: 74.5 | H8058: 135 | I8058: 140 | J8058: 145x | L8058: 140 | N8058: Качанов Евгений
A8059: 4 | B8059: Хоруженко Виталий | C8059: m | D8059: 1983-08-20 | E8059: Люботин | F8059: O | G8059: 71.5 | H8059: 130 | I8059: 137.5 | J8059: 142.5x | L8059: 137.5 | N8059: Кибальник А.
A8060: 5 | B8060: Медведев Юрий | C8060: m | D8060: 1978-08-23 | E8060: Харьков | F8060: O | G8060: 73.1 | H8060: 115 | I8060: 122.5 | J8060: 130x | L8060: 122.5 | N8060: Кофанов А.
A8061: 6 | B8061: Шевченко Кирилл | C8061: m | D8061: 1997-02-05 | E8061: Запорожье | F8061: O | G8061: 74.56 | H8061: 100 | I8061: 115 | J8061: 122.5 | L8061: 122.5
A8062: 7 | B8062: Кальченко Ярослав | C8062: m | D8062: 1993-06-21 | E8062: Харьков | F8062: O | G8062: 73.4 | H8062: 115 | I8062: 122.5x | J8062: 122.5x | L8062: 115 | N8062: Крыкля Владимир
A8063: 8 | B8063: Воробьев Евгений | C8063: m | D8063: 04.10.1993 | E8063: Харьков | F8063: O | G8063: 74.9 | H8063: 110 | I8063: 120x | J8063: 120x | L8063: 110 | N8063: Донченко Дмитрий
A8064: 9 | B8064: Миронов Максим | C8064: m | D8064: 1999-11-15 | E8064: Люботин | F8064: O | G8064: 72.4 | H8064: 100 | I8064: 110x | J8064: 110x | L8064: 100 | N8064: Кибальник А.
A8065: 1 | B8065: Медведев Юрий | C8065: m | D8065: 1978-08-23 | E8065: Харьков | F8065: SM | G8065: 73.1 | H8065: 115 | I8065: 122.5 | J8065: 130x | L8065: 122.5 | N8065: Кофанов А.
B8066: 82.5 кг
A8067: - | B8067: Соколов Владислав | C8067: m | D8067: 1999-03-22 | E8067: Харьков | F8067: T3 | G8067: 81.7 | H8067: 100x | I8067: 105x | J8067: - | L8067: - | N8067: Булгаков Никита
A8068: 1 | B8068: Исаев Никита | C8068: m | D8068: 1996-06-10 | E8068: Харьков | F8068: J | G8068: 79.8 | H8068: 170 | I8068: 177.5 | J8068: 182.5 | K8068: 188x | L8068: 182.5 | N8068: Тищенко Петр
A8069: 2 | B8069: Колода Леонид | C8069: m | D8069: 08.08.1993 | E8069: Харьков | F8069: J | G8069: 80.5 | H8069: 140x | I8069: 155 | J8069: 170x | L8069: 155 | N8069: Фадеев Артем
A8070: 3 | B8070: Попович Сергей | C8070: m | D8070: 13.05.1997 | E8070: Харьков | F8070: J | G8070: 80 | H8070: 125 | I8070: 130x | J8070: 130x | L8070: 125 | N8070: Ивашко Е.
A8071: 4 | B8071: Гундертайло Александр | C8071: m | D8071: 1996-06-22 | E8071: Харьков | F8071: J | G8071: 77.56 | H8071: 115 | I8071: 120 | J8071: 125x | L8071: 120 | N8071: Товкан В.
A8072: 1 | B8072: Исаев Никита | C8072: m | D8072: 1996-06-10 | E8072: Харьков | F8072: O | G8072: 79.8 | H8072: 170 | I8072: 177.5 | J8072: 182.5 | K8072: 188x | L8072: 182.5 | N8072: Тищенко Петр
A8073: 2 | B8073: Лукьянов Евгений | C8073: m | D8073: 23.10.1981 | E8073: Александрия | F8073: O | G8073: 78.8 | H8073: 160 | I8073: 170 | J8073: 175x | L8073: 170
A8074: 3 | B8074: Готвянский Николай | C8074: m | D8074: 1986-04-07 | E8074: Харьков | F8074: O | G8074: 81.7 | H8074: 155 | I8074: 160 | J8074: 162.5 | K8074: 165x | L8074: 162.5 | N8074: Тищенко П.
A8075: 4 | B8075: Колода Леонид | C8075: m | D8075: 08.08.1993 | E8075: Харьков | F8075: O | G8075: 80.5 | H8075: 140x | I8075: 155 | J8075: 170x | L8075: 155 | N8075: Фадеев Артем
A8076: 5 | B8076: Бойченко Александр | C8076: m | D8076: 24.04.1986 | E8076: Харьков | F8076: O | G8076: 81.5 | H8076: 122.5x | I8076: 127.5 | J8076: 132.5 | L8076: 132.5
A8077: 6 | B8077: Попович Сергей | C8077: m | D8077: 13.05.1997 | E8077: Харьков | F8077: O | G8077: 80 | H8077: 125 | I8077: 130x | J8077: 130x | L8077: 125 | N8077: Ивашко Е.
A8078: 7 | B8078: Гундертайло Александр | C8078: m | D8078: 1996-06-22 | E8078: Харьков | F8078: O | G8078: 77.56 | H8078: 115 | I8078: 120 | J8078: 125x | L8078: 120 | N8078: Товкан В.
A8079: - | B8079: Соколов Владислав | C8079: m | D8079: 1999-03-22 | E8079: Харьков | F8079: O | G8079: 81.7 | H8079: 100x | I8079: 105x | J8079: - | L8079: - | N8079: Булгаков Никита
A8080: 1 | B8080: Лукьянов Евгений | C8080: m | D8080: 23.10.1981 | E8080: Александрия | F8080: SM | G8080: 78.8 | H8080: 160 | I8080: 170 | J8080: 175x | L8080: 170
B8081: 90 кг
A8082: 1 | B8082: Товкан Василий | C8082: m | D8082: 1999-08-16 | E8082: Харьков | F8082: T3 | G8082: 89.46 | H8082: 170 | I8082: 175x | J8082: 175x | L8082: 170 | N8082: Тилун В.
A8083: 1 | B8083: Кизим Никита | C8083: m | D8083: 23.10.1993 | E8083: Харьков | F8083: J | G8083: 88.1 | H8083: 187.5 | I8083: 192.5 | J8083: 200x | L8083: 192.5 | N8083: Нечаусов Максим
A8084: 2 | B8084: Антонов Роман | C8084: m | D8084: 29.11.1995 | E8084: Харьков | F8084: J | G8084: 88.5 | H8084: 180x | I8084: 180 | J8084: 190x | L8084: 180 | N8084: Павленко Д.
A8085: 3 | B8085: Рогава Давид | C8085: m | D8085: 1995-09-05 | E8085: Харьков | F8085: J | G8085: 86.34 | H8085: 160 | I8085: 165 | J8085: 172.5x | L8085: 165
A8086: 4 | B8086: Павлюченко Максим | C8086: m | D8086: 1994-07-10 | E8086: Харьков | F8086: J | G8086: 88.8 | H8086: 140x | I8086: 145 | J8086: 157.5x | L8086: 145 | N8086: Клочко Олег
A8087: - | B8087: Градовский Денис | C8087: m | D8087: 06.08.1995 | E8087: Харьков | F8087: J | G8087: 85.94 | H8087: 140x | I8087: 140x | J8087: 140x | L8087: - | N8087: Давыденко О.
A8088: 1 | B8088: Кизим Никита | C8088: m | D8088: 23.10.1993 | E8088: Харьков | F8088: O | G8088: 88.1 | H8088: 187.5 | I8088: 192.5 | J8088: 200x | L8088: 192.5 | N8088: Нечаусов Максим
A8089: 2 | B8089: Антонов Роман | C8089: m | D8089: 29.11.1995 | E8089: Харьков | F8089: O | G8089: 88.5 | H8089: 180x | I8089: 180 | J8089: 190x | L8089: 180 | N8089: Павленко Д.
A8090: 3 | B8090: Товкан Василий | C8090: m | D8090: 1999-08-16 | E8090: Харьков | F8090: O | G8090: 89.46 | H8090: 170 | I8090: 175x | J8090: 175x | L8090: 170 | N8090: Тилун В.
A8091: 4 | B8091: Рогава Давид | C8091: m | D8091: 1995-09-05 | E8091: Харьков | F8091: O | G8091: 86.34 | H8091: 160 | I8091: 165 | J8091: 172.5x | L8091: 165
A8092: 5 | B8092: Козлов Андрей | C8092: m | D8092: 1982-10-07 | E8092: Харьков | F8092: O | G8092: 89.8 | H8092: 145 | I8092: 157.5 | J8092: 162.5 | L8092: 162.5 | N8092: Фурсов Руслан
A8093: 6 | B8093: Харьковский Денис | C8093: m | D8093: 09.01.1988 | E8093: Харьков | F8093: O | G8093: 89.9 | H8093: 155 | I8093: 162.5 | J8093: 167.5x | L8093: 162.5 | N8093: Фурсов Руслан
A8094: 7 | B8094: Гладких Антон | C8094: m | D8094: 12.09.1985 | E8094: Харьков | F8094: O | G8094: 87.8 | H8094: 140 | I8094: 150 | J8094: 157.5 | L8094: 157.5 | N8094: Дорошено Павел
A8095: 8 | B8095: Кравченко Олег | C8095: m | D8095: 15.01.1986 | E8095: Сумы | F8095: O | G8095: 89.1 | H8095: 147.5 | I8095: 157.5 | J8095: 162.5x | L8095: 157.5 | N8095: Герко Иван
A8096: 9 | B8096: Павлюченко Максим | C8096: m | D8096: 1994-07-10 | E8096: Харьков | F8096: O | G8096: 88.8 | H8096: 140x | I8096: 145 | J8096: 157.5x | L8096: 145 | N8096: Клочко Олег
A8097: 10 | B8097: Головко Денис | C8097: m | D8097: 07.10.1987 | E8097: Харьков | F8097: O | G8097: 86.3 | H8097: 140 | I8097: 157.5x | J8097: 157.5x | L8097: 140
A8098: 11 | B8098: Усатов Андрей | C8098: m | D8098: 03.10.1980 | E8098: Харьков | F8098: O | G8098: 89.3 | H8098: 130 | I8098: 140 | J8098: 145x | L8098: 140 | N8098: Заливан И.
A8099: 12 | B8099: Анищенко Станислав | C8099: m | D8099: 09.03.1985 | E8099: Харьков | F8099: O | G8099: 89.9 | H8099: 135 | I8099: 142.5x | J8099: 142.5x | L8099: 135 | N8099: Барановский Ф.
A8100: 13 | B8100: Пашков Дмитрий | C8100: m | D8100: 24.02.1986 | E8100: Харьков | F8100: O | G8100: 89.3 | H8100: 112.5 | I8100: 120 | J8100: 122.5x | L8100: 120 | N8100: Титков
A8101: 14 | B8101: Калмыков Иван | C8101: m | D8101: 24.04.1973 | E8101: Харьков | F8101: O | G8101: 89.5 | H8101: 115 | I8101: 117.5x | J8101: 117.5x | L8101: 115 | N8101: Корниенко Н.
A8102: - | B8102: Градовский Денис | C8102: m | D8102: 06.08.1995 | E8102: Харьков | F8102: O | G8102: 85.94 | H8102: 140x | I8102: 140x | J8102: 140x | L8102: - | N8102: Давыденко О.
A8103: 1 | B8103: Козлов Андрей | C8103: m | D8103: 1982-10-07 | E8103: Харьков | F8103: SM | G8103: 89.8 | H8103: 145 | I8103: 157.5 | J8103: 162.5 | L8103: 162.5 | N8103: Фурсов Руслан
A8104: 2 | B8104: Усатов Андрей | C8104: m | D8104: 03.10.1980 | E8104: Харьков | F8104: SM | G8104: 89.3 | H8104: 130 | I8104: 140 | J8104: 145x | L8104: 140 | N8104: Заливан И.
A8105: 1 | B8105: Калмыков Иван | C8105: m | D8105: 24.04.1973 | E8105: Харьков | F8105: M1 | G8105: 89.5 | H8105: 115 | I8105: 117.5x | J8105: 117.5x | L8105: 115 | N8105: Корниенко Н.
B8106: 100 кг
A8107: 1 | B8107: Булгаков Никита | C8107: m | D8107: 1998-08-21 | E8107: Северодонецк | F8107: T3 | G8107: 97.3 | H8107: 140 | I8107: 145x | J8107: 145x | L8107: 140 | N8107: Куртёсов Евгений
A8108: 2 | B8108: Скидан Ярослав | C8108: m | D8108: 1998-09-17 | E8108: Харьков | F8108: T3 | G8108: 95.2 | H8108: 110 | I8108: 120 | J8108: 125x | L8108: 120 | N8108: Белоусов Анатолий
A8109: 1 | B8109: Огородников Андрей | C8109: m | D8109: 26.04.1996 | E8109: Харьков | F8109: J | G8109: 100 | H8109: 180x | I8109: 180 | J8109: 190 | L8109: 190
A8110: 2 | B8110: Блажко Виталий | C8110: m | D8110: 1994-07-01 | E8110: Харьков | F8110: J | G8110: 98.88 | H8110: 160 | I8110: 165 | J8110: 170x | L8110: 165
A8111: 3 | B8111: Левдиков Владислав | C8111: m | D8111: 1995-01-06 | E8111: Харьков | F8111: J | G8111: 98.98 | H8111: 165x | I8111: 165 | J8111: 175x | L8111: 165
A8112: 4 | B8112: Носанев Антон | C8112: m | D8112: 1997-03-14 | E8112: Харьков | F8112: J | G8112: 98 | H8112: 130 | I8112: 135 | J8112: 140x | L8112: 135 | N8112: Белоусов Анатолий
A8113: 5 | B8113: Кучмистый Денис | C8113: m | D8113: 16.10.1997 | E8113: Белополье | F8113: J | G8113: 92.8 | H8113: 125 | I8113: 130 | J8113: 140x | L8113: 130
A8114: 1 | B8114: Калачинский Анатолий | C8114: m | D8114: 1978-07-14 | E8114: Люботин | F8114: O | G8114: 98 | H8114: 200 | I8114: 210 | J8114: 215x | L8114: 210 | N8114: Кибальник А.
A8115: 2 | B8115: Огородников Андрей | C8115: m | D8115: 26.04.1996 | E8115: Харьков | F8115: O | G8115: 100 | H8115: 180x | I8115: 180 | J8115: 190 | L8115: 190
A8116: 3 | B8116: Шевченко Станислав | C8116: m | D8116: 25.12.1982 | E8116: Харьков | F8116: O | G8116: 98.4 | H8116: 150 | I8116: 165 | J8116: 172.5 | L8116: 172.5
A8117: 4 | B8117: Нечаусов Максим | C8117: m | D8117: 04.03.1972 | E8117: Харьков | F8117: O | G8117: 97.6 | H8117: 165 | I8117: 170 | J8117: 172.5x | L8117: 170
A8118: 5 | B8118: Блажко Виталий | C8118: m | D8118: 1994-07-01 | E8118: Харьков | F8118: O | G8118: 98.88 | H8118: 160 | I8118: 165 | J8118: 170x | L8118: 165
A8119: 6 | B8119: Левдиков Владислав | C8119: m | D8119: 1995-01-06 | E8119: Харьков | F8119: O | G8119: 98.98 | H8119: 165x | I8119: 165 | J8119: 175x | L8119: 165
A8120: 7 | B8120: Овчаренко Виктор | C8120: m | D8120: 13.09.1986 | E8120: Харьков | F8120: O | G8120: 95.24 | H8120: 147.5 | I8120: 157.5 | J8120: 165x | L8120: 157.5 | N8120: Гибнер Станислав
A8121: 8 | B8121: Багрич Сергей | C8121: m | D8121: 28.03.1973 | E8121: Харьков | F8121: O | G8121: 99.6 | H8121: 140 | I8121: 147.5 | J8121: 155 | K8121: 165x | L8121: 155 | N8121: Тищенко П.
A8122: 9 | B8122: Иванов Дмитрий | C8122: m | D8122: 22.07.1980 | E8122: Харьков | F8122: O | G8122: 97.8 | H8122: 130 | I8122: 140 | J8122: 150 | L8122: 150
A8123: 10 | B8123: Фокин Андрей | C8123: m | D8123: 16.11.1986 | E8123: Харьков | F8123: O | G8123: 94.6 | H8123: 140 | I8123: 147.5 | J8123: 157.5x | L8123: 147.5 | N8123: Романаускене Анна
A8124: 11 | B8124: Булгаков Никита | C8124: m | D8124: 1998-08-21 | E8124: Северодонецк | F8124: O | G8124: 97.3 | H8124: 140 | I8124: 145x | J8124: 145x | L8124: 140 | N8124: Куртёсов Евгений
A8125: 12 | B8125: Осколков Артем | C8125: m | D8125: 11.08.1981 | E8125: Харьков | F8125: O | G8125: 98.6 | H8125: 130 | I8125: 135 | J8125: 140 | L8125: 140
A8126: 13 | B8126: Носанев Антон | C8126: m | D8126: 1997-03-14 | E8126: Харьков | F8126: O | G8126: 98 | H8126: 130 | I8126: 135 | J8126: 140x | L8126: 135 | N8126: Белоусов Анатолий
A8127: 14 | B8127: Кучмистый Денис | C8127: m | D8127: 16.10.1997 | E8127: Белополье | F8127: O | G8127: 92.8 | H8127: 125 | I8127: 130 | J8127: 140x | L8127: 130
A8128: 15 | B8128: Павлов Сергей | C8128: m | D8128: 1954-09-25 | E8128: Ватутино | F8128: O | G8128: 91.5 | H8128: 110 | I8128: 115 | J8128: 120 | L8128: 120 | N8128: Шило В.
A8129: 16 | B8129: Скидан Ярослав | C8129: m | D8129: 1998-09-17 | E8129: Харьков | F8129: O | G8129: 95.2 | H8129: 110 | I8129: 120 | J8129: 125x | L8129: 120 | N8129: Белоусов Анатолий
A8130: 17 | B8130: Михайленко Константин | C8130: m | D8130: 1969-03-09 | E8130: Харьков | F8130: O | G8130: 97 | H8130: 100 | I8130: 105x | J8130: 105 | L8130: 105 | N8130: Екименко Юрий
A8131: - | B8131: Палий Алексей | C8131: m | D8131: 1981-04-02 | E8131: Харьков | F8131: O | G8131: 93.5 | H8131: 160x | I8131: 160x | J8131: 165x | L8131: - | N8131: Герас Николай
A8132: - | B8132: Калошин Сергей | C8132: m | D8132: 09.05.1975 | E8132: Харьков | F8132: O | G8132: 98.1 | H8132: 165x | I8132: 165x | J8132: - | L8132: - | N8132: Руденко И.
A8133: 1 | B8133: Калачинский Анатолий | C8133: m | D8133: 1978-07-14 | E8133: Люботин | F8133: SM | G8133: 98 | H8133: 200 | I8133: 210 | J8133: 215x | L8133: 210 | N8133: Кибальник А.
A8134: 2 | B8134: Шевченко Станислав | C8134: m | D8134: 25.12.1982 | E8134: Харьков | F8134: SM | G8134: 98.4 | H8134: 150 | I8134: 165 | J8134: 172.5 | L8134: 172.5
A8135: 3 | B8135: Иванов Дмитрий | C8135: m | D8135: 22.07.1980 | E8135: Харьков | F8135: SM | G8135: 97.8 | H8135: 130 | I8135: 140 | J8135: 150 | L8135: 150
A8136: 4 | B8136: Осколков Артем | C8136: m | D8136: 11.08.1981 | E8136: Харьков | F8136: SM | G8136: 98.6 | H8136: 130 | I8136: 135 | J8136: 140 | L8136: 140
A8137: - | B8137: Палий Алексей | C8137: m | D8137: 1981-04-02 | E8137: Харьков | F8137: SM | G8137: 93.5 | H8137: 160x | I8137: 160x | J8137: 165x | L8137: - | N8137: Герас Николай
A8138: - | B8138: Калошин Сергей | C8138: m | D8138: 09.05.1975 | E8138: Харьков | F8138: M1 | G8138: 98.1 | H8138: 165x | I8138: 165x | J8138: - | L8138: - | N8138: Руденко И.
A8139: 1 | B8139: Нечаусов Максим | C8139: m | D8139: 04.03.1972 | E8139: Харьков | F8139: M2 | G8139: 97.6 | H8139: 165 | I8139: 170 | J8139: 172.5x | L8139: 170
A8140: 2 | B8140: Багрич Сергей | C8140: m | D8140: 28.03.1973 | E8140: Харьков | F8140: M2 | G8140: 99.6 | H8140: 140 | I8140: 147.5 | J8140: 155 | K8140: 165x | L8140: 155 | N8140: Тищенко П.
A8141: 3 | B8141: Михайленко Константин | C8141: m | D8141: 1969-03-09 | E8141: Харьков | F8141: M2 | G8141: 97 | H8141: 100 | I8141: 105x | J8141: 105 | L8141: 105 | N8141: Екименко Юрий
A8142: 1 | B8142: Павлов Сергей | C8142: m | D8142: 1954-09-25 | E8142: Ватутино | F8142: M5 | G8142: 91.5 | H8142: 110 | I8142: 115 | J8142: 120 | L8142: 120 | N8142: Шило В.
B8143: 110 кг
A8144: 1 | B8144: Стельмах Владимир | C8144: m | D8144: 1994-06-18 | E8144: Харьков | F8144: J | G8144: 105.5 | H8144: 155 | I8144: 175 | J8144: 180x | L8144: 175 | N8144: Ворвуль Борис
A8145: 1 | B8145: Соломаха Сергей | C8145: m | D8145: 1982-10-02 | E8145: Кегичевка | F8145: O | G8145: 109.6 | H8145: 200 | I8145: 210 | J8145: - | L8145: 210
A8146: 2 | B8146: Маркелов Андрей | C8146: m | D8146: 1973-08-18 | E8146: Ковшаровка | F8146: O | G8146: 104 | H8146: 185 | I8146: 190 | J8146: 195 | K8146: 200x | L8146: 195 | N8146: Исаев Никита
A8147: 3 | B8147: Корниенко Николай | C8147: m | D8147: 14.05.1966 | E8147: Харьков | F8147: O | G8147: 106 | H8147: 180 | I8147: 185 | J8147: 190 | K8147: 192.5x | L8147: 190
A8148: 4 | B8148: Кожушко Виктор | C8148: m | D8148: 28.07.1987 | E8148: Харьков | F8148: O | G8148: 102 | H8148: 175 | I8148: 185 | J8148: 195x | L8148: 185 | N8148: Руденко И.
A8149: 5 | B8149: Стельмах Владимир | C8149: m | D8149: 1994-06-18 | E8149: Харьков | F8149: O | G8149: 105.5 | H8149: 155 | I8149: 175 | J8149: 180x | L8149: 175 | N8149: Ворвуль Борис
A8150: 6 | B8150: Марьенко Дмитрий | C8150: m | D8150: 1970-10-17 | E8150: Харьков | F8150: O | G8150: 107.65 | H8150: 160 | I8150: 170 | J8150: 175 | L8150: 175 | N8150: Евдокимов Олег
A8151: 7 | B8151: Захаров Сергей | C8151: m | D8151: 1977-12-17 | E8151: Киев | F8151: O | G8151: 101.8 | H8151: 160 | I8151: - | J8151: - | L8151: 160
A8152: 8 | B8152: Хохлов Роман | C8152: m | D8152: 18.05.1987 | E8152: Харьков | F8152: O | G8152: 109.9 | H8152: 152.5 | I8152: 157.5 | J8152: 160 | L8152: 160 | N8152: Титков Андрей
A8153: 9 | B8153: Марьенков Игорь | C8153: m | D8153: 05.11.1969 | E8153: Харьков | F8153: O | G8153: 108.12 | H8153: 140 | I8153: 145x | J8153: 145x | L8153: 140 | N8153: Корниенко Н.
A8154: 1 | B8154: Соломаха Сергей | C8154: m | D8154: 1982-10-02 | E8154: Кегичевка | F8154: SM | G8154: 109.6 | H8154: 200 | I8154: 210 | J8154: - | L8154: 210
A8155: 1 | B8155: Маркелов Андрей | C8155: m | D8155: 1973-08-18 | E8155: Ковшаровка | F8155: M1 | G8155: 104 | H8155: 185 | I8155: 190 | J8155: 195 | K8155: 200x | L8155: 195 | N8155: Исаев Никита
A8156: 2 | B8156: Захаров Сергей | C8156: m | D8156: 1977-12-17 | E8156: Киев | F8156: M1 | G8156: 101.8 | H8156: 160 | I8156: - | J8156: - | L8156: 160
A8157: 1 | B8157: Марьенко Дмитрий | C8157: m | D8157: 1970-10-17 | E8157: Харьков | F8157: M2 | G8157: 107.65 | H8157: 160 | I8157: 170 | J8157: 175 | L8157: 175 | N8157: Евдокимов Олег
A8158: 2 | B8158: Марьенков Игорь | C8158: m | D8158: 05.11.1969 | E8158: Харьков | F8158: M2 | G8158: 108.12 | H8158: 140 | I8158: 145x | J8158: 145x | L8158: 140 | N8158: Корниенко Н.
A8159: 1 | B8159: Корниенко Николай | C8159: m | D8159: 14.05.1966 | E8159: Харьков | F8159: M3 | G8159: 106 | H8159: 180 | I8159: 185 | J8159: 190 | K8159: 192.5x | L8159: 190
B8160: 125 кг
A8161: 1 | B8161: Дяк Сергей | C8161: m | D8161: 1993-03-31 | E8161: Харьков | F8161: O | G8161: 121.5 | H8161: 200 | I8161: 210 | J8161: 220x | L8161: 210 | N8161: Андросов Денис
A8162: 2 | B8162: Кравчинский Дмитрий | C8162: m | D8162: 1982-05-19 | E8162: Киев | F8162: O | G8162: 118.5 | H8162: 175 | I8162: 182.5x | J8162: 182.5 | L8162: 182.5
A8163: 3 | B8163: Огульчанский Роман | C8163: m | D8163: 25.02.1971 | E8163: Харьков | F8163: O | G8163: 120 | H8163: 165x | I8163: 165 | J8163: 177.5 | L8163: 177.5 | N8163: Подопригора А.
A8164: 4 | B8164: Христюк Сергей | C8164: m | D8164: 14.03.1993 | E8164: Харьков | F8164: O | G8164: 111.7 | H8164: 165 | I8164: 170 | J8164: 175 | L8164: 175 | N8164: Сухорученко Ниикта
A8165: 1 | B8165: Кравчинский Дмитрий | C8165: m | D8165: 1982-05-19 | E8165: Киев | F8165: SM | G8165: 118.5 | H8165: 175 | I8165: 182.5x | J8165: 182.5 | L8165: 182.5
A8166: 1 | B8166: Огульчанский Роман | C8166: m | D8166: 25.02.1971 | E8166: Харьков | F8166: M2 | G8166: 120 | H8166: 165x | I8166: 165 | J8166: 177.5 | L8166: 177.5 | N8166: Подопригора А.
A10001: sheet | B10001: BP | C10001: type-b,division-u
B10002: 48 кг
A10003: 1 | B10003: Вощенко Анастасия | C10003: f | D10003: 25.07.1995 | E10003: Харьков | F10003: J | G10003: 48 | H10003: 65 | I10003: 67.5x | J10003: 67.5 | L10003: 67.5 | N10003: Фадеев Артем
A10004: 2 | B10004: Шведская Мария | C10004: f | D10004: 1993-08-11 | E10004: Харьков | F10004: J | G10004: 46.3 | H10004: 47.5 | I10004: 50x | J10004: 50x | L10004: 47.5
A10005: 1 | B10005: Вощенко Анастасия | C10005: f | D10005: 25.07.1995 | E10005: Харьков | F10005: O | G10005: 48 | H10005: 65 | I10005: 67.5x | J10005: 67.5 | L10005: 67.5 | N10005: Фадеев Артем
A10006: 2 | B10006: Шведская Мария | C10006: f | D10006: 1993-08-11 | E10006: Харьков | F10006: O | G10006: 46.3 | H10006: 47.5 | I10006: 50x | J10006: 50x | L10006: 47.5
B10007: 52 кг
A10008: 1 | B10008: Митяева Карина | C10008: f | D10008: 2001-06-07 | E10008: Балаклея | F10008: T2 | G10008: 49.8 | H10008: 35 | I10008: 45 | J10008: 48x | L10008: 45 | N10008: Морозов Павел
A10009: 1 | B10009: Чибисова Анна | C10009: f | D10009: 26.10.1992 | E10009: Харьков | F10009: O | G10009: 51 | H10009: 67.5 | I10009: 69 | J10009: 71x | L10009: 69 | N10009: Чанышев Владислав
A10010: 2 | B10010: Мельникова Дарья | C10010: f | D10010: 23.11.1990 | E10010: Харьков | F10010: O | G10010: 49.2 | H10010: 57.5 | I10010: 62.5 | J10010: 65x | L10010: 62.5 | N10010: Качанов Евгений
A10011: 3 | B10011: Митяева Карина | C10011: f | D10011: 2001-06-07 | E10011: Балаклея | F10011: O | G10011: 49.8 | H10011: 35 | I10011: 45 | J10011: 48x | L10011: 45 | N10011: Морозов Павел
B10012: 56 кг
A10013: 1 | B10013: Винник Анастасия | C10013: f | D10013: 13.04.1999 | E10013: Дергачи | F10013: T3 | G10013: 55.6 | H10013: 65 | I10013: 70x | J10013: 70x | L10013: 65 | N10013: Гилун Виктор
A10014: 2 | B10014: Бакшеева Татьяна | C10014: f | D10014: 19.01.2000 | E10014: Харьков | F10014: T3 | G10014: 54 | H10014: 40 | I10014: 45 | J10014: 47.5x | L10014: 45 | N10014: Блажко Владислав
A10015: 1 | B10015: Винник Анастасия | C10015: f | D10015: 13.04.1999 | E10015: Дергачи | F10015: O | G10015: 55.6 | H10015: 65 | I10015: 70x | J10015: 70x | L10015: 65 | N10015: Гилун Виктор
A10016: 2 | B10016: Бакшеева Татьяна | C10016: f | D10016: 19.01.2000 | E10016: Харьков | F10016: O | G10016: 54 | H10016: 40 | I10016: 45 | J10016: 47.5x | L10016: 45 | N10016: Блажко Владислав
B10017: 60 кг
A10018: 1 | B10018: Толубенко Елизавета | C10018: f | D10018: 24.02.1999 | E10018: Харьков | F10018: T3 | G10018: 59.6 | H10018: 62.5 | I10018: 65 | J10018: 67.5 | L10018: 67.5 | N10018: Чанышев Владислав
A10019: 1 | B10019: Толубенко Елизавета | C10019: f | D10019: 24.02.1999 | E10019: Харьков | F10019: O | G10019: 59.6 | H10019: 62.5 | I10019: 65 | J10019: 67.5 | L10019: 67.5 | N10019: Чанышев Владислав
B10020: 67.5 кг
A10021: 1 | B10021: Сазонова Юлия | C10021: f | D10021: 1992-06-30 | E10021: Харьков | F10021: O | G10021: 67 | H10021: 67.5 | I10021: 70 | J10021: 72.5x | L10021: 70 | N10021: Островерх Михаил
A10022: 2 | B10022: Чучупал Елена | C10022: f | D10022: 11.08.1986 | E10022: Харьков | F10022: O | G10022: 61.1 | H10022: 62.5 | I10022: 65 | J10022: 70x | L10022: 65 | N10022: Подопригора А.
B10023: 75 кг
A10024: 1 | B10024: Фурсова Анастасия | C10024: f | D10024: 31.01.1994 | E10024: Харьков | F10024: J | G10024: 71.1 | H10024: 55 | I10024: 57.5 | J10024: 60 | L10024: 60 | N10024: Фурсов Р.
A10025: 1 | B10025: Фурсова Анастасия | C10025: f | D10025: 31.01.1994 | E10025: Харьков | F10025: O | G10025: 71.1 | H10025: 55 | I10025: 57.5 | J10025: 60 | L10025: 60 | N10025: Фурсов Р.
B10026: 56 кг
A10027: 1 | B10027: Выродов Владислав | C10027: m | D10027: 2003-09-15 | E10027: Балаклея | F10027: T1 | G10027: 54.9 | H10027: 50 | I10027: 55 | J10027: 57.5 | K10027: 60 | L10027: 57.5 | N10027: Морозов Павел
A10028: 2 | B10028: Медведев Владислав | C10028: m | D10028: 2004-08-11 | E10028: Харьков | F10028: T1 | G10028: 55.1 | H10028: 47.5 | I10028: 52.5x | J10028: 52.5 | L10028: 52.5 | N10028: Кофанов А.
A10029: 1 | B10029: Марченко Евгений | C10029: m | D10029: 2001-06-09 | E10029: Балаклея | F10029: T2 | G10029: 56 | H10029: 70 | I10029: 80 | J10029: 82.5 | L10029: 82.5 | N10029: Морозов П.
A10030: 1 | B10030: Марченко Евгений | C10030: m | D10030: 2001-06-09 | E10030: Балаклея | F10030: O | G10030: 56 | H10030: 70 | I10030: 80 | J10030: 82.5 | L10030: 82.5 | N10030: Морозов П.
A10031: 2 | B10031: Выродов Владислав | C10031: m | D10031: 2003-09-15 | E10031: Балаклея | F10031: O | G10031: 54.9 | H10031: 50 | I10031: 55 | J10031: 57.5 | K10031: 60 | L10031: 57.5 | N10031: Морозов Павел
A10032: 3 | B10032: Медведев Владислав | C10032: m | D10032: 2004-08-11 | E10032: Харьков | F10032: O | G10032: 55.1 | H10032: 47.5 | I10032: 52.5x | J10032: 52.5 | L10032: 52.5 | N10032: Кофанов А.
B10033: 60 кг
A10034: 1 | B10034: Гацура Владислав | C10034: m | D10034: 2004-02-15 | E10034: Харьков | F10034: T1 | G10034: 58.2 | H10034: 60 | I10034: 62.5 | J10034: 65x | L10034: 62.5 | N10034: Мирошниченко Олег
... 962 more rows

Sheet инфо
J1: =COUNTA(J3:J8) -> 5 | K1: 5 | L1: 5 | M1: 5 | N1: 5 | O1: 5 | P1: 5
A2: Вес, кг | B2: Ж (Малоне) | C2: М (Шварц) | E2: From | F2: To | G2: Age Class | H2: Age Class 2 | I2: Full name | J2: PL + BP | K2: MBP + DL + SC | L2: BP + SC | M2: BP + DL + SC | N2: BP + DL + MBP + SC | O2: SC | P2: BP
A3: 10 | B3: 1.2538 | C3: 1.3733 | E3: -2 | F3: -1 | G3: - | H3: - | J3: Пауэрлифтинг | K3: Многоповторный жим | L3: Жим лежа | M3: Жим лежа | N3: Жим лежа | O3: Строгий подъем на бицепс | P3: Жим лежа
A4: 10.05 | B4: 1.2537 | C4: 1.3732 | E4: =E5-1 -> 4 | F4: =E4 -> 4 | G4: C4 | H4: O\C4 | I4: Children 4 | J4: Жим лежа | K4: Становая тяга | L4: Строгий подъем на бицепс | M4: Становая тяга | N4: Становая тяга | O4: ="" ->  | P4: ="" -> 
A5: 10.1 | B5: 1.2536 | C5: 1.3731 | E5: 5 | F5: 5 | G5: C5 | H5: O\C5 | I5: Children 5 | J5: ="" ->  | K5: Строгий подъем на бицепс | L5: ="" ->  | M5: Строгий подъем на бицепс | N5: Многоповторный жим | O5: ="" ->  | P5: ="" -> 
A6: 10.15 | B6: 1.2535 | C6: 1.373 | E6: 6 | F6: 6 | G6: C6 | H6: O\C6 | I6: Children 6 | J6: ="" ->  | K6: ="" ->  | L6: ="" ->  | M6: ="" ->  | N6: Строгий подъем на бицепс | O6: ="" ->  | P6: ="" -> 
A7: 10.2 | B7: 1.2534 | C7: 1.3729 | E7: 7 | F7: 7 | G7: C7 | H7: O\C7 | I7: Children 7 | J7: ="" ->  | K7: ="" ->  | L7: ="" ->  | M7: ="" ->  | N7: ="" ->  | O7: ="" ->  | P7: ="" -> 
A8: 10.25 | B8: 1.2533 | C8: 1.3728 | E8: 8 | F8: 8 | G8: C8 | H8: O\C8 | I8: Children 8
A9: 10.3 | B9: 1.2532 | C9: 1.3727 | E9: 9 | F9: 9 | G9: C9 | H9: O\C9 | I9: Children 9
A10: 10.35 | B10: 1.2531 | C10: 1.3726 | E10: 10 | F10: 10 | G10: C10 | H10: O\C10 | I10: Children 10
A11: 10.4 | B11: 1.253 | C11: 1.3725 | E11: =E12-1 -> 11 | F11: =E11 -> 11 | G11: C11 | H11: O\C11 | I11: Children 11
A12: 10.45 | B12: 1.2529 | C12: 1.3724 | E12: 12 | F12: =E12 -> 12 | G12: C12 | H12: O\C12 | I12: Children 12
A13: 10.5 | B13: 1.2528 | C13: 1.3723 | E13: 13 | F13: 15 | G13: T1 | H13: O\T1 | I13: T 13-15
A14: 10.55 | B14: 1.2527 | C14: 1.3722 | E14: 16 | F14: 17 | G14: T2 | H14: O\T2 | I14: T 16-17
A15: 10.6 | B15: 1.2526 | C15: 1.3721 | E15: 18 | F15: 19 | G15: T3 | H15: O\T3 | I15: T 18-19 | K15: =K2 -> MBP + DL + SC
A16: 10.65 | B16: 1.2525 | C16: 1.372 | E16: 20 | F16: 24 | G16: J | H16: O\J | I16: Juniors | K16: =MATCH(K15,2:2,0) -> 11
A17: 10.7 | B17: 1.2524 | C17: 1.3719 | E17: 25 | F17: 34 | G17: O | H17: O | I17: Open | M17: СМЕЩ($A$1;2;K16-1; счётз( СМЕЩ($A$1;2;K16-1; 6; 1) ); 1)
A18: 10.75 | B18: 1.2523 | C18: 1.3718 | E18: 35 | F18: 39 | G18: SM | H18: O\SM | I18: Submasters | K18: =OFFSET($A$1,2,K16-1, COUNTA( OFFSET($A$1,2,K16-1, 6, 1) ), 1) -> Многоповторный жим
A19: 10.8 | B19: 1.2522 | C19: 1.3717 | E19: 40 | F19: 44 | G19: M1 | H19: O\M1 | I19: M 40-44 | K19: Становая тяга | M19: СМЕЩ(инфо!$A$1;2;ПОИСКПОЗ($d$3;инфо!$2:$2;0)-1; счётз( СМЕЩ(инфо!$A$1;2;ПОИСКПОЗ( $d$3 ;инфо!$2:$2;0)-1; 6; 1) ); 1)
A20: 10.85 | B20: 1.2521 | C20: 1.3716 | E20: 45 | F20: 49 | G20: M2 | H20: O\M2 | I20: M 45-49 | K20: Строгий подъем на бицепс
A21: 10.9 | B21: 1.252 | C21: 1.3715 | E21: 50 | F21: 54 | G21: M3 | H21: O\M3 | I21: M 50-54
A22: 10.95 | B22: 1.2519 | C22: 1.3714 | E22: 55 | F22: 59 | G22: M4 | H22: O\M4 | I22: M 55-59
A23: 11 | B23: 1.2518 | C23: 1.3713 | E23: 60 | F23: 64 | G23: M5 | H23: O\M5 | I23: M 60-64
A24: 11.05 | B24: 1.2517 | C24: 1.3712 | E24: 65 | F24: 69 | G24: M6 | H24: O\M6 | I24: M 65-69 | J24: ПЛ + ЖЛ | K24: MBP_DL_SC | L24: ALL | M24: набор1 | N24: набор2
A25: 11.1 | B25: 1.2516 | C25: 1.3711 | E25: 70 | F25: 74 | G25: M7 | H25: O\M7 | I25: M 70-74
A26: 11.15 | B26: 1.2515 | C26: 1.371 | E26: 75 | F26: 79 | G26: M8 | H26: O\M8 | I26: M 75-80
A27: 11.2 | B27: 1.2514 | C27: 1.3709 | E27: 80 | F27: 200 | G27: M9 | H27: O\M9 | I27: M 80-84 | J27: Пауэрлифтинг | K27: MBP | L27: BP | M27: BP | N27: BP | O27: SC | P27: BP
A28: 11.25 | B28: 1.2513 | C28: 1.3708 | J28: BP | K28: DL | L28: SC | M28: DL | N28: DL | O28: ="" ->  | P28: ="" -> 
A29: 11.3 | B29: 1.2512 | C29: 1.3707 | J29: ="" ->  | K29: SC | L29: ="" ->  | M29: SC | N29: MBP | O29: ="" ->  | P29: ="" -> 
A30: 11.35 | B30: 1.2511 | C30: 1.3706 | J30: ="" ->  | K30: ="" ->  | L30: ="" ->  | M30: ="" ->  | N30: SC | O30: ="" ->  | P30: ="" -> 
A31: 11.4 | B31: 1.251 | C31: 1.3705 | J31: ="" ->  | K31: ="" ->  | L31: ="" ->  | M31: ="" ->  | N31: ="" ->  | O31: ="" ->  | P31: ="" -> 
A32: 11.45 | B32: 1.2509 | C32: 1.3704
A33: 11.5 | B33: 1.2508 | C33: 1.3703
A34: 11.55 | B34: 1.2507 | C34: 1.3702
A35: 11.6 | B35: 1.2506 | C35: 1.3701 | J35: Куда сохранять файл (бэкапы) | K35: E:\21
A36: 11.65 | B36: 1.2505 | C36: 1.37
A37: 11.7 | B37: 1.2504 | C37: 1.3699
A38: 11.75 | B38: 1.2503 | C38: 1.3698
A39: 11.8 | B39: 1.2502 | C39: 1.3697
A40: 11.85 | B40: 1.2501 | C40: 1.3696
A41: 11.9 | B41: 1.25 | C41: 1.3695
A42: 11.95 | B42: 1.2499 | C42: 1.3694
A43: 12 | B43: 1.2498 | C43: 1.3693
A44: 12.05 | B44: 1.2497 | C44: 1.3692
A45: 12.1 | B45: 1.2496 | C45: 1.3691
A46: 12.15 | B46: 1.2495 | C46: 1.369
A47: 12.2 | B47: 1.2494 | C47: 1.3689 | E47: Табл с разрядами
A48: 12.25 | B48: 1.2493 | C48: 1.3688 | E48: Лист с рекордами
A49: 12.3 | B49: 1.2492 | C49: 1.3687 | E49: ф-я заполнений данных из одного листа (взвешивание)
A50: 12.35 | B50: 1.2491 | C50: 1.3686 | E50: Ф-я обновления рекордов (красным красит новые)
A51: 12.4 | B51: 1.249 | C51: 1.3685 | E51: Ф-я печати грамот
A52: 12.45 | B52: 1.2489 | C52: 1.3684 | E52: Ф-я формирований таблиц для allpower
A53: 12.5 | B53: 1.2488 | C53: 1.3683
A54: 12.55 | B54: 1.2487 | C54: 1.3682 | E54: Выделение цветом следующего участника
A55: 12.6 | B55: 1.2486 | C55: 1.3681
A56: 12.65 | B56: 1.2485 | C56: 1.368
A57: 12.7 | B57: 1.2484 | C57: 1.3679
A58: 12.75 | B58: 1.2483 | C58: 1.3678
A59: 12.8 | B59: 1.2482 | C59: 1.3677
A60: 12.85 | B60: 1.2481 | C60: 1.3676
A61: 12.9 | B61: 1.248 | C61: 1.3675
A62: 12.95 | B62: 1.2479 | C62: 1.3674
A63: 13 | B63: 1.2478 | C63: 1.3673
A64: 13.05 | B64: 1.2477 | C64: 1.3672
A65: 13.1 | B65: 1.2476 | C65: 1.3671
A66: 13.15 | B66: 1.2475 | C66: 1.367
A67: 13.2 | B67: 1.2474 | C67: 1.3669
A68: 13.25 | B68: 1.2473 | C68: 1.3668
A69: 13.3 | B69: 1.2472 | C69: 1.3667
A70: 13.35 | B70: 1.2471 | C70: 1.3666
A71: 13.4 | B71: 1.247 | C71: 1.3665
A72: 13.45 | B72: 1.2469 | C72: 1.3664
A73: 13.5 | B73: 1.2468 | C73: 1.3663
A74: 13.55 | B74: 1.2467 | C74: 1.3662
A75: 13.6 | B75: 1.2466 | C75: 1.3661
A76: 13.65 | B76: 1.2465 | C76: 1.366
A77: 13.7 | B77: 1.2464 | C77: 1.3659
A78: 13.75 | B78: 1.2463 | C78: 1.3658
A79: 13.8 | B79: 1.2462 | C79: 1.3657
A80: 13.85 | B80: 1.2461 | C80: 1.3656
A81: 13.9 | B81: 1.246 | C81: 1.3655
A82: 13.95 | B82: 1.2459 | C82: 1.3654
A83: 14 | B83: 1.2458 | C83: 1.3653
A84: 14.05 | B84: 1.2457 | C84: 1.3652
A85: 14.1 | B85: 1.2456 | C85: 1.3651
A86: 14.15 | B86: 1.2455 | C86: 1.365
A87: 14.2 | B87: 1.2454 | C87: 1.3649
A88: 14.25 | B88: 1.2453 | C88: 1.3648
A89: 14.3 | B89: 1.2452 | C89: 1.3647
A90: 14.35 | B90: 1.2451 | C90: 1.3646
A91: 14.4 | B91: 1.245 | C91: 1.3645
A92: 14.45 | B92: 1.2449 | C92: 1.3644
A93: 14.5 | B93: 1.2448 | C93: 1.3643
A94: 14.55 | B94: 1.2447 | C94: 1.3642
A95: 14.6 | B95: 1.2446 | C95: 1.3641
A96: 14.65 | B96: 1.2445 | C96: 1.364
A97: 14.7 | B97: 1.2444 | C97: 1.3639
A98: 14.75 | B98: 1.2443 | C98: 1.3638
A99: 14.8 | B99: 1.2442 | C99: 1.3637
A100: 14.85 | B100: 1.2441 | C100: 1.3636
A101: 14.9 | B101: 1.244 | C101: 1.3635
A102: 14.95 | B102: 1.2439 | C102: 1.3634
A103: 15 | B103: 1.2438 | C103: 1.3633
A104: 15.05 | B104: 1.2437 | C104: 1.3632
A105: 15.1 | B105: 1.2436 | C105: 1.3631
A106: 15.15 | B106: 1.2435 | C106: 1.363
A107: 15.2 | B107: 1.2434 | C107: 1.3629
A108: 15.25 | B108: 1.2433 | C108: 1.3628
A109: 15.3 | B109: 1.2432 | C109: 1.3627
A110: 15.35 | B110: 1.2431 | C110: 1.3626
A111: 15.4 | B111: 1.243 | C111: 1.3625
A112: 15.45 | B112: 1.2429 | C112: 1.3624
A113: 15.5 | B113: 1.2428 | C113: 1.3623
A114: 15.55 | B114: 1.2427 | C114: 1.3622
A115: 15.6 | B115: 1.2426 | C115: 1.3621
A116: 15.65 | B116: 1.2425 | C116: 1.362
A117: 15.7 | B117: 1.2424 | C117: 1.3619
A118: 15.75 | B118: 1.2423 | C118: 1.3618
A119: 15.8 | B119: 1.2422 | C119: 1.3617
A120: 15.85 | B120: 1.2421 | C120: 1.3616
A121: 15.9 | B121: 1.242 | C121: 1.3615
A122: 15.95 | B122: 1.2419 | C122: 1.3614
A123: 16 | B123: 1.2418 | C123: 1.3613
A124: 16.05 | B124: 1.2417 | C124: 1.3612
A125: 16.1 | B125: 1.2416 | C125: 1.3611
A126: 16.15 | B126: 1.2415 | C126: 1.361
A127: 16.2 | B127: 1.2414 | C127: 1.3609
A128: 16.25 | B128: 1.2413 | C128: 1.3608
A129: 16.3 | B129: 1.2412 | C129: 1.3607
A130: 16.35 | B130: 1.2411 | C130: 1.3606
A131: 16.4 | B131: 1.241 | C131: 1.3605
A132: 16.45 | B132: 1.2409 | C132: 1.3604
A133: 16.5 | B133: 1.2408 | C133: 1.3603
A134: 16.55 | B134: 1.2407 | C134: 1.3602
A135: 16.6 | B135: 1.2406 | C135: 1.3601
A136: 16.65 | B136: 1.2405 | C136: 1.36
A137: 16.7 | B137: 1.2404 | C137: 1.3599
A138: 16.75 | B138: 1.2403 | C138: 1.3598
A139: 16.8 | B139: 1.2402 | C139: 1.3597
A140: 16.85 | B140: 1.2401 | C140: 1.3596
A141: 16.9 | B141: 1.24 | C141: 1.3595
A142: 16.95 | B142: 1.2399 | C142: 1.3594
A143: 17 | B143: 1.2398 | C143: 1.3593
A144: 17.05 | B144: 1.2397 | C144: 1.3592
A145: 17.1 | B145: 1.2396 | C145: 1.3591
A146: 17.15 | B146: 1.2395 | C146: 1.359
A147: 17.2 | B147: 1.2394 | C147: 1.3589
A148: 17.25 | B148: 1.2393 | C148: 1.3588
A149: 17.3 | B149: 1.2392 | C149: 1.3587
A150: 17.35 | B150: 1.2391 | C150: 1.3586
A151: 17.4 | B151: 1.239 | C151: 1.3585
A152: 17.45 | B152: 1.2389 | C152: 1.3584
A153: 17.5 | B153: 1.2388 | C153: 1.3583
A154: 17.55 | B154: 1.2387 | C154: 1.3582
A155: 17.6 | B155: 1.2386 | C155: 1.3581
A156: 17.65 | B156: 1.2385 | C156: 1.358
A157: 17.7 | B157: 1.2384 | C157: 1.3579
A158: 17.75 | B158: 1.2383 | C158: 1.3578
A159: 17.8 | B159: 1.2382 | C159: 1.3577
A160: 17.85 | B160: 1.2381 | C160: 1.3576
A161: 17.9 | B161: 1.238 | C161: 1.3575
A162: 17.95 | B162: 1.2379 | C162: 1.3574
A163: 18 | B163: 1.2378 | C163: 1.3573
A164: 18.05 | B164: 1.2377 | C164: 1.3572
A165: 18.1 | B165: 1.2376 | C165: 1.3571
A166: 18.15 | B166: 1.2375 | C166: 1.357
A167: 18.2 | B167: 1.2374 | C167: 1.3569
A168: 18.25 | B168: 1.2373 | C168: 1.3568
A169: 18.3 | B169: 1.2372 | C169: 1.3567
A170: 18.35 | B170: 1.2371 | C170: 1.3566
A171: 18.4 | B171: 1.237 | C171: 1.3565
A172: 18.45 | B172: 1.2369 | C172: 1.3564
A173: 18.5 | B173: 1.2368 | C173: 1.3563
A174: 18.55 | B174: 1.2367 | C174: 1.3562
A175: 18.6 | B175: 1.2366 | C175: 1.3561
A176: 18.65 | B176: 1.2365 | C176: 1.356
A177: 18.7 | B177: 1.2364 | C177: 1.3559
A178: 18.75 | B178: 1.2363 | C178: 1.3558
A179: 18.8 | B179: 1.2362 | C179: 1.3557
A180: 18.85 | B180: 1.2361 | C180: 1.3556
A181: 18.9 | B181: 1.236 | C181: 1.3555
A182: 18.95 | B182: 1.2359 | C182: 1.3554
A183: 19 | B183: 1.2358 | C183: 1.3553
A184: 19.05 | B184: 1.2357 | C184: 1.3552
A185: 19.1 | B185: 1.2356 | C185: 1.3551
A186: 19.15 | B186: 1.2355 | C186: 1.355
A187: 19.2 | B187: 1.2354 | C187: 1.3549
A188: 19.25 | B188: 1.2353 | C188: 1.3548
A189: 19.3 | B189: 1.2352 | C189: 1.3547
A190: 19.35 | B190: 1.2351 | C190: 1.3546
A191: 19.4 | B191: 1.235 | C191: 1.3545
A192: 19.45 | B192: 1.2349 | C192: 1.3544
A193: 19.5 | B193: 1.2348 | C193: 1.3543
A194: 19.55 | B194: 1.2347 | C194: 1.3542
A195: 19.6 | B195: 1.2346 | C195: 1.3541
A196: 19.65 | B196: 1.2345 | C196: 1.354
A197: 19.7 | B197: 1.2344 | C197: 1.3539
A198: 19.75 | B198: 1.2343 | C198: 1.3538
A199: 19.8 | B199: 1.2342 | C199: 1.3537
A200: 19.85 | B200: 1.2341 | C200: 1.3536
... 3701 more rows

Sheet База
A1: № | B1: Фамилия и Имя | C1: Пол | D1: Дата рождения | E1: Город | F1: Тренер | G1: Телефон | H1: =COUNTA(B2:B1201) -> 520 | I1: сюда же попадают все с номинации!!!
A2: 1 | B2: Аббасов Эльмин | C2: m | D2: 17.06.1992 | E2: Днепр | G2: 0635730877
A3: 2 | B3: Агарков Андрей | C3: m | D3: 1988-02-21 | E3: Харьков
A4: 3 | B4: Алифанов Дмитрий | C4: m | D4: 05.10.1981 | E4: Харьков | F4: Коваленко Сергей | G4: 0932678183
A5: 4 | B5: Аллахвердиев Рамиль | C5: m | D5: 1998-10-25 | E5: Харьков | F5: Калюжный К.
A6: 5 | B6: Алябин Александр | C6: m | D6: 1992-07-21 | E6: Харьков
A7: 6 | B7: Андрейчук Александр | C7: m | D7: 1996-01-27 | E7: Харьков | I7: кол_чел_в_базе
A8: 7 | B8: Андрусенко Людмила | C8: f | D8: 2002-02-01 | E8: Балаклея | F8: Морозов Павел | G8: 0957137318
A9: 8 | B9: Андрущенко Артем | C9: m | D9: 1987-07-26 | E9: Лозовая
A10: 9 | B10: Андрющенко Артем | C10: m | D10: 23.07.1987 | E10: Лозовая | G10: 0950333760
A11: 10 | B11: Анищенко Станислав | C11: m | D11: 1985-03-09 | E11: Харьков | F11: Барановский Филипп | G11: 0503044247
A12: 11 | B12: Анохин Дмитрий | C12: m | D12: 1994-09-30 | E12: Люботин
A13: 12 | B13: Антонов Андрей | C13: m | D13: 27.10.1993 | E13: Харьков
A14: 13 | B14: Антонов Роман | C14: m | D14: 29.11.1995 | E14: Харьков | F14: Павленко Д. | G14: 099 053 51 35
A15: 14 | B15: Аронович Ольга | C15: f | D15: 02.09.1991 | E15: Харьков | F15: Маслов А.
A16: 15 | B16: Артемова Юлия | C16: f | D16: 1985-10-02 | E16: Харьков | F16: Пикалов С.
A17: 16 | B17: Афанасьев Руслан | C17: m | D17: 08.04.1996 | E17: Харьков | F17: Бурый Ярослав | G17: 0956078581
A18: 17 | B18: Бабенко Виктор | C18: m | D18: 06.09.1963 | E18: Люботин
A19: 18 | B19: Бабенко София | C19: f | D19: 2011-08-26 | E19: Люботин
A20: 19 | B20: Багрич Сергей | C20: m | D20: 28.03.1973 | E20: Харьков | F20: Тищенко П.
A21: 20 | B21: Байбаков Лев | C21: m | D21: 2000-12-01 | E21: Харьков | F21: Микуленко А.
A22: 21 | B22: Байрамов Артур | C22: m | D22: 1992-05-25 | E22: Харьков | F22: Кравченко Д.
A23: 22 | B23: Бакшеева Татьяна | C23: f | D23: 19.01.2000 | E23: Харьков | F23: Блажко Владислав | G23: 066 15 42 720
A24: 23 | B24: Балакирева Юлия | C24: f | D24: 1982-12-11 | E24: Песочин | F24: Маслов А.
A25: 24 | B25: Башмакова Елена | C25: f | D25: 17.07.1981 | E25: Харьков | F25: Люшуков Алексей | G25: 0505295747
A26: 25 | B26: Беликов Николай | C26: m | D26: 1990-09-14 | E26: Горловка | F26: Иванова Юлия
A27: 26 | B27: Белый Дмитрий | C27: m | D27: 1995-05-28 | E27: Харьков | F27: Колядинский А.
A28: 27 | B28: Бессараб Андрей | C28: m | D28: 1993-05-15 | E28: Одесса | F28: Ноябрев Д.
A29: 28 | B29: Билецкий Руслан | C29: m | D29: 2001-08-30 | E29: Харьков | F29: Екименко Юрий
A30: 29 | B30: Билык Эдуард | C30: m | D30: 1995-11-01 | E30: Кременчуг | G30: 0982022075
A31: 30 | B31: Бирюк Максим | C31: m | D31: 2001-01-01 | E31: Люботин
A32: 31 | B32: Блажко Виталий | C32: m | D32: 1994-07-01 | E32: Харьков | G32: 095 35 91 671
A33: 32 | B33: Блажко Владислав | C33: m | D33: 1998-02-19 | E33: Харьков | G33: 0956240540
A34: 33 | B34: Богачев Артем | C34: m | D34: 27.10.1988 | E34: Харьков | G34: 0686032416
A35: 34 | B35: Богдан Ярослав | C35: m | D35: 1987-05-23 | E35: Славянск
A36: 35 | B36: Бойко Неля | C36: f | D36: 1995-12-31 | E36: Харьков | F36: Гончаров А.
A37: 36 | B37: Бойченко Александр | C37: m | D37: 24.04.1986 | E37: Харьков | F37: Езык Константин | G37: 066 497 14 13
A38: 37 | B38: Бондарь Виктор | C38: m | D38: 2001-03-29 | E38: Харьков | F38: Куликов А.
A39: 38 | B39: Брасова Анна | C39: f | D39: 13.03.1988 | E39: с Донец | F39: Чанышев Владислав | G39: 0937535536
A40: 39 | B40: Бреславец Антон | C40: m | D40: 2001-07-23 | E40: Харьков | F40: Блажко В., Дяк С.
A41: 40 | B41: Брусенко Сергей | C41: m | D41: 1988-05-15 | E41: Богодухов
A42: 41 | B42: Брусенко Серегй | C42: m | D42: 1988-05-15 | E42: Богодухов | G42: 097679204
A43: 42 | B43: Бугиль Артур | C43: m | D43: 1995-04-11 | E43: Харьков | F43: Бурый Я.
A44: 43 | B44: Букин Виктор | C44: m | D44: 1996-11-23 | E44: Первомайск | G44: 0507273886
A45: 44 | B45: Булгаков Никита | C45: m | D45: 1998-08-21 | E45: Северодонецк | F45: Куртёсов Евгений | G45: 0956772374
A46: 45 | B46: Бурковский Владимир | C46: m | D46: 2002-12-21 | E46: Харьков | F46: Пахомов Денис | G46: 0978543441
A47: 46 | B47: Бурмак Мария | C47: f | D47: 2003-12-05 | E47: Старобельск | F47: Тарасов Олег | G47: 0990331879
A48: 47 | B48: Бурый Ярослав | C48: m | D48: 20.09.1994 | E48: Донецк | G48: 0661721618
A49: 48 | B49: Быхун Андрей | C49: m | D49: 1996-12-12 | E49: Харьков | F49: Гончаров А.
A50: 49 | B50: Вавренюк Диана | C50: f | D50: 05.12.1994 | E50: Харьков | F50: Курило Р.
A51: 50 | B51: Вадименко Вадим | C51: m | D51: 1992-04-01 | E51: Змиев
A52: 51 | B52: Вакуленко Артем | C52: m | D52: 1985-05-29 | E52: с Рогань | G52: 0665781498
A53: 52 | B53: Вакуленко Филипп | C53: m | D53: 05.08.1995 | E53: Днепр
A54: 53 | B54: Вандюк Данила | C54: m | D54: 1998-08-03 | E54: Харьков | F54: Рябоконь А.
A55: 54 | B55: Варченко Максим | C55: m | D55: 1991-05-12 | E55: Харьков
A56: 55 | B56: Васильев Сергей | C56: m | D56: 1989-11-13 | E56: Харьков | F56: Злобин Антон | G56: 0971515787
A57: 56 | B57: Васильченко Сергей | C57: m | D57: 1993-11-17 | E57: Харьков | G57: 0971797835
A58: 57 | B58: Васюк Евгений | C58: m | D58: 1993-10-25 | E58: Харьков | F58: Кравченко В.
A59: 58 | B59: Ващенко Константин | C59: m | D59: 1980-10-13 | E59: Харьков | F59: Фурсов Руслан
A60: 59 | B60: Величко Игорь | C60: m | D60: 1996-06-01 | E60: Лисичанск
A61: 60 | B61: Верховод Инна | C61: f | D61: 1982-02-18 | E61: Старобельск
A62: 61 | B62: Винник Анастасия | C62: f | D62: 13.04.1999 | E62: Дергачи | F62: Гилун Виктор | G62: 068 608 69 67
A63: 62 | B63: Вирченко Валерия | C63: f | D63: 1982-12-02 | E63: Харьков | F63: Говардовский В.
A64: 63 | B64: Виталий | C64: m | D64: 30.09.1981 | E64: Харьков
A65: 64 | B65: Власенко Николай | C65: m | D65: 1989-05-18 | E65: Старобельск | G65: 0954614372
A66: 65 | B66: Власюк Александр | C66: m | D66: 09.10.1971 | E66: Харьков | F66: Корниенко Н.
A67: 66 | B67: Вознюк Максим | C67: m | D67: 1987-07-21 | E67: Песочин
A68: 67 | B68: Володько Василий | C68: m | D68: 29.10.1995 | E68: Харьков | F68: Люшуков А.
A69: 68 | B69: Волокитина Татьяна | C69: f | D69: 1995-11-02 | E69: Харьков
A70: 69 | B70: Волошин Тимур | C70: m | D70: 1988-05-08 | E70: Харьков | F70: Ивашко Е.
A71: 70 | B71: Воробьев Евгений | C71: m | D71: 04.10.1993 | E71: Харьков | F71: Донченко Дмитрий | G71: 050-711-76-62
A72: 71 | B72: Вощенко Анастасия | C72: f | D72: 25.07.1995 | E72: Харьков | F72: Вощенко Александр | G72: 063 386 25 79
A73: 72 | B73: Выродов Владислав | C73: m | D73: 2003-09-15 | E73: Балаклея | F73: Морозов Павел | G73: 095 813 33 39
A74: 73 | B74: Гавриленко Юлия | C74: f | D74: 12.06.1994 | E74: Харьков | F74: Кравченко Максим | G74: 0992048652
A75: 74 | B75: Гайдар Виталий | C75: m | D75: 1990-03-26 | E75: Харьков
A76: 75 | B76: Гайнулин Дмитрий | C76: m | D76: 17.12.1992 | E76: Харьков | G76: 0958501804
A77: 76 | B77: Ганзюк Артем | C77: m | D77: 1996-04-01 | E77: Харьков | F77: Каспаров В.
A78: 77 | B78: Гараджа Андрей | C78: m | D78: 1962-01-13 | E78: Токмак | G78: 0969749789
A79: 78 | B79: Гасымов Рафаэль | C79: m | D79: 1999-03-25 | E79: Харьков | F79: Тищенко П.
A80: 79 | B80: Гацура Владислав | C80: m | D80: 2004-02-15 | E80: Харьков | F80: Мирошниченко Олег | G80: 097 177 51 63
A81: 80 | B81: Гачковский Рустам | C81: m | D81: 01.11.1992 | E81: Винница | F81: Романовский Александр | G81: 0678331168
A82: 81 | B82: Геворкян Артем | C82: m | D82: 1992-02-23 | E82: Харьков | F82: Калашник Д.
A83: 82 | B83: Герасимов Денис | C83: m | D83: 23.08.1982 | E83: Витебск
A84: 83 | B84: Герман Ирина | C84: f | D84: 16.06.1975 | E84: Люботин | F84: Бабенко Виктор
A85: 84 | B85: Герус Юлия | C85: f | D85: 1991-05-04 | E85: Харьков | G85: 0633272698
A86: 85 | B86: Гибнер Станислав | C86: m | D86: 08.11.1979 | E86: Харьков | F86: Маслов Александр | G86: 0931594516
A87: 86 | B87: Гладких Антон | C87: m | D87: 12.09.1985 | E87: Харьков | F87: Дорошено Павел | G87: 093 571 73 77
A88: 87 | B88: Глинский Андрей | C88: m | D88: 2005-03-20 | E88: Балаклея | F88: Морозов Павел | G88: 0991603729
A89: 88 | B89: Глушак Максим | C89: m | D89: 1985-03-02 | E89: Харьков | F89: Нечаусов М.
A90: 89 | B90: Глущенко Даниил | C90: m | D90: 27.09.2003 | E90: Лозовая
A91: 90 | B91: Глущенко Данила | C91: m | D91: 2003-09-27 | E91: Харьков | G91: 0950141555
A92: 91 | B92: Гнатусин Антон | C92: m | D92: 22.04.2009 | E92: Балаклея | F92: Морозов П.
A93: 92 | B93: Годун Максим | C93: m | D93: 1992-06-14 | E93: Харьков | F93: Кириченко Е.
A94: 93 | B94: Голева Юлия | C94: f | D94: 1983-11-12 | E94: Харьков | F94: Романаускене А.
A95: 94 | B95: Головинский Дмитрий | C95: m | D95: 1988-07-29 | E95: Кривой Рог | F95: Курочкин В.
A96: 95 | B96: Головко Денис | C96: m | D96: 07.10.1987 | E96: Харьков | G96: 093 520 37 24
A97: 96 | B97: Головченко Виктор | C97: m | D97: 1994-11-27 | E97: Харьков
A98: 97 | B98: Голубева Алина | C98: f | D98: 1986-11-23 | E98: Харьков | F98: Корниенко Н.
A99: 98 | B99: Голубовский Алексей | C99: m | D99: 1997-12-19 | E99: Харьков | F99: Слепченко Д.
A100: 99 | B100: Гончар Алексей | C100: m | D100: 1993-03-30 | E100: Светловодск | G100: 0971168617
A101: 100 | B101: Гончаров Денис | C101: m | D101: 1978-09-05 | E101: Сумы | G101: 0955557930
A102: 101 | B102: Гончарук Ярослав | C102: m | D102: 1999-04-18 | E102: Балта | F102: Франко И.
A103: 102 | B103: Горбач-Чернина Анна | C103: f | D103: 01.02.1986 | E103: Харьков | F103: Чанышев В.
A104: 103 | B104: Горильчаник Александра | C104: f | D104: 2001-03-27 | E104: Харьков | F104: Кравченко В.
A105: 104 | B105: Горошко Александр | C105: m | D105: 03.03.2006 | E105: Старобельск | F105: Лукьяненко Дмитрий
A106: 105 | B106: Горошко Виктория | C106: f | D106: 29.06.1983 | E106: Старобельск
A107: 106 | B107: Горошко Дмитрий | C107: m | D107: 2008-10-11 | E107: Старобельск | F107: Лукьяненко Дмитрий
A108: 107 | B108: Горюшинский Сергей | C108: m | D108: 1991-09-20 | E108: Люботин
A109: 108 | B109: Готвянский Николай | C109: m | D109: 1986-04-07 | E109: Харьков | F109: Тищенко П.
A110: 109 | B110: Грабевик Николай | C110: m | D110: 19.12.1993 | E110: пгт Архангельское
A111: 110 | B111: Градовский Денис | C111: m | D111: 06.08.1995 | E111: Харьков | F111: Давыденко О. | G111: 097 81 41 974
A112: 111 | B112: Градовский Дмитрий | C112: m | D112: 1995-08-06 | E112: Харьков | F112: Давыденко О.
A113: 112 | B113: Григорьев Андрей | C113: m | D113: 1987-02-04 | E113: Харьков | F113: Герштенцвейг К.
A114: 113 | B114: Гузенко Андрей | C114: m | D114: 18.09.1980 | E114: Харьков | F114: Чикен Руслан
A115: 114 | B115: Гундертайло Александр | C115: m | D115: 1996-06-22 | E115: Харьков | F115: Товкан В.
A116: 115 | B116: Гурин Владислав | C116: m | D116: 2001-02-14 | E116: Харьков | F116: Кириченко Е.
A117: 116 | B117: Гусева Александра | C117: f | D117: 06.01.1995 | E117: Харьков | F117: Маслов Александр | G117: 0636223935
A118: 117 | B118: Даниленко Максим | C118: m | D118: 1987-06-09 | E118: Харьков | F118: Пикалов С.
A119: 118 | B119: Демиденко Егор | C119: m | D119: 1990-11-17 | E119: Харьков | F119: Кирьянов А.
A120: 119 | B120: Демьян Юрий | C120: m | D120: 1997-01-10 | E120: Харьков | F120: Киктенко С.
A121: 120 | B121: Денисенко Сергей | C121: m | D121: 1982-02-15 | E121: Харьков
A122: 121 | B122: Дербилов Александр | C122: m | D122: 1974-03-17 | E122: Сумы
A123: 122 | B123: Деркач Вячеслав | C123: m | D123: 05.10.1974 | E123: Харьков | F123: Момат Леонид | G123: 0671866190
A124: 123 | B124: Дерюгина Юлия | C124: f | D124: 1983-08-10 | E124: Харьков | F124: Кравченко Максим | G124: 0999531517
A125: 124 | B125: Димкова Ольга | C125: f | D125: 1987-08-17 | E125: Харьков | F125: Корниенко Николай, Пахомов Денис | G125: 0688906635
A126: 125 | B126: Дмитришин Роман | C126: m | D126: 20.05.1992 | E126: Харьков
A127: 126 | B127: Доминюк Александр | C127: m | D127: 05.04.1992 | E127: Харьков | F127: Маслов Александр | G127: 0983156794
A128: 127 | B128: Донсков Олег | C128: m | D128: 1989-05-23 | E128: Люботин
A129: 128 | B129: Драгоев Николай | C129: m | D129: 1990-10-07 | E129: Одесса
A130: 129 | B130: Дробицкий Максим | C130: m | D130: 1998-08-26 | E130: Сватово | F130: Зайцев С.
A131: 130 | B131: Дубовик Игорь | C131: m | D131: 1992-08-12 | E131: с Фески | F131: Санин Николай | G131: 0952270799
A132: 131 | B132: Дудко Юлия | C132: f | D132: 1986-08-05 | E132: Харьков
A133: 132 | B133: Дягилева Екатерина | C133: f | D133: 20.05.1995 | E133: Харьков | F133: Маслов Александр | G133: 0991087742
A134: 133 | B134: Дядченко Арсений | C134: m | D134: 1996-07-25 | E134: Мерефа | F134: Чумак Виталий | G134: 0936763088
A135: 134 | B135: Дяк Сергей | C135: m | D135: 1993-03-31 | E135: Харьков | F135: Андросов Денис | G135: 063 244-21-74
A136: 135 | B136: Еремин Арсений | C136: m | D136: 1994-03-17 | E136: Харьков | F136: Одерий Ю.
A137: 136 | B137: Ерохин Андрей | C137: m | D137: 2002-12-13 | E137: Люботин | F137: Бабенко Виктор
A138: 137 | B138: Ефименко Олег | C138: m | D138: 1996-01-01 | E138: Новая Водолага | F138: Шило В.
A139: 138 | B139: Желновач Дмитрий | C139: m | D139: 1993-06-26 | E139: Харьков | F139: Кравченко Д.
A140: 139 | B140: Жильцов Михаил | C140: m | D140: 2006-10-28 | E140: Старобельск
A141: 140 | B141: Жмайлов Владислав | C141: m | D141: 1998-06-30 | E141: Харьков
A142: 141 | B142: Жос Станислав | C142: m | D142: 1994-08-27 | E142: Старобельск
A143: 142 | B143: Жувак Евгений | C143: m | D143: 1978-08-23 | E143: Харьков | F143: Корниенко Н.
A144: 143 | B144: Жук Владимир | C144: m | D144: 11.05.1990 | E144: Харьков
A145: 144 | B145: Жуля Андрей | C145: m | D145: 1990-04-20 | E145: Харьков
A146: 145 | B146: Жумаев Сирожиддин | C146: m | D146: 20.05.1997 | E146: Кропивницкий | F146: Сухно Олег | G146: 066 241-38-33
A147: 146 | B147: Журий Олег | C147: m | D147: 1996-03-22 | E147: Харьков | F147: Заливан И.
A148: 147 | B148: Загоровский Олег | C148: m | D148: 2003-06-25 | E148: Старобельск
A149: 148 | B149: Заика Любовь | C149: f | D149: 07.07.1964 | E149: Старобельск
A150: 149 | B150: Зайцев Глеб | C150: m | D150: 1988-06-03 | E150: Харьков | F150: Нефедов Д.
A151: 150 | B151: Залепилов Евгений | C151: m | D151: 1993-07-22 | E151: Змиев | F151: Мотынга Д.
A152: 151 | B152: Захаров Сергей | C152: m | D152: 1977-12-17 | E152: Киев | G152: 050 383 77 14
A153: 152 | B153: Зачепа Ростислав | C153: m | D153: 1992-04-14 | E153: Харьков
A154: 153 | B154: Зачепа Ростислав | C154: m | D154: 1992-04-14 | E154: Харьков | F154: Герас Н.
A155: 154 | B155: Здор Дмитрий | C155: m | D155: 1984-02-25 | E155: Харьков
A156: 155 | B156: Зиненко Максим | C156: m | D156: 1991-07-26 | E156: Харьков | F156: Нечаусов Максим | G156: 0634613998
A157: 156 | B157: Зинченко Елена | C157: f | D157: 1985-03-19 | E157: Харьков
A158: 157 | B158: Зинченко Кирилл | C158: m | D158: 24.06.2002 | E158: Старобельск | F158: Лебедь Сергей | G158: 0953650573
A159: 158 | B159: Зинькин Руслан | C159: m | D159: 1992-11-29 | E159: Змиев | F159: Вадименко В.
A160: 159 | B160: Золотарева Алена | C160: f | D160: 24.09.1993 | E160: Харьков | F160: Коц Артем | G160: 0935068453
A161: 160 | B161: Золотой Вадим | C161: m | D161: 27.09.1993 | E161: Харьков | F161: Гуляев Сергей | G161: 0671499738
A162: 161 | B162: Зудина Екатерина | C162: f | D162: 1985-07-26 | E162: Харьков | F162: Запорожченко В.
A163: 162 | B163: Иванов Денис | C163: m | D163: 1995-03-09 | E163: Николаев
A164: 163 | B164: Иванов Дмитрий | C164: m | D164: 22.07.1980 | E164: Харьков
A165: 164 | B165: Иванов Максим | C165: m | D165: 07.06.1984 | E165: Кривой Рог
A166: 165 | B166: Иванская Наталья | C166: f | D166: 1986-11-03 | E166: Мерефа
A167: 166 | B167: Игнатюк Сергей | C167: m | D167: 1993-11-02 | E167: Старобельск
A168: 167 | B168: Ищенко Юрий | C168: m | D168: 1963-04-24 | E168: Харьков
A169: 168 | B169: Калачинский Анатолий | C169: m | D169: 1978-07-14 | E169: Люботин | F169: Кибальник А. | G169: 096 011 92 56
A170: 169 | B170: Калашник Дмитрий | C170: m | D170: 1975-07-26 | E170: Харьков
A171: 170 | B171: Калашникова Анастасия | C171: f | D171: 1985-08-09 | E171: Харьков | F171: Коц Артем | G171: 0681034112
A172: 171 | B172: Калиниченко Дмитрий | C172: m | D172: 1983-06-04 | E172: Старобельск | F172: Лебедь С.
A173: 172 | B173: Калмыков Иван | C173: m | D173: 24.04.1973 | E173: Харьков | F173: Корниенко Н. | G173: 050 962-00-25
A174: 173 | B174: Калошин Сергей | C174: m | D174: 09.05.1975 | E174: Харьков | F174: Руденко И. | G174: 0506871028
A175: 174 | B175: Калугин Ярослав | C175: m | D175: 1994-05-08 | E175: Харьков | F175: Гончаров А.
A176: 175 | B176: Кальченко Ярослав | C176: m | D176: 1993-06-21 | E176: Харьков | F176: Крыкля Владимир | G176: 0959166235
A177: 176 | B177: Камышан Павел | C177: m | D177: 18.09.1979 | E177: Харьков | F177: Пискун
A178: 177 | B178: Канделаки Тарас | C178: m | D178: 1997-07-14 | E178: Люботин
A179: 178 | B179: Капитанюк Вячеслав | C179: m | D179: 1969-11-09 | E179: Харьков
A180: 179 | B180: Капляр Андрей | C180: m | D180: 13.06.1978 | E180: Староконстантинов
A181: 180 | B181: Кармазина Елена | C181: f | D181: 1988-12-22 | E181: Краматорск
A182: 181 | B182: Карпусь Тарас | C182: m | D182: 17.11.1995 | E182: Харьков
A183: 182 | B183: Кассиопий Павел | C183: m | D183: 20.06.1977 | E183: Харьков | F183: Чикен Руслан
A184: 183 | B184: Катренко Владислав | C184: m | D184: 1999-02-11 | G184: 066 93-80-167
A185: 184 | B185: Катречко Владислав | C185: m | D185: 1999-02-11 | E185: Харьков | F185: Виктор Гилун | G185: 066 93-80-167
A186: 185 | B186: Качанов Евгений | C186: m | D186: 1995-07-21 | E186: Харьков | F186: Тищенко П.
A187: 186 | B187: Кизим Никита | C187: m | D187: 23.10.1993 | E187: Харьков | F187: Нечаусов Максим | G187: 063 714 77 23
A188: 187 | B188: Кинякин Станислав | C188: m | D188: 1999-05-13 | E188: Харьков | F188: Хижняк С.
A189: 188 | B189: Кирик Вадим | C189: m | D189: 1993-01-14 | E189: Харьков
A190: 189 | B190: Кисличка Александр | C190: m | D190: 1978-08-03 | E190: Люботин
A191: 190 | B191: Кисличка Дмитрий | C191: m | D191: 2002-07-19 | E191: Люботин
A192: 191 | B192: Киценко Константин | C192: m | D192: 1994-10-20 | E192: Кременчуг | G192: 0688350430
A193: 192 | B193: Клещевникова Юлия | C193: f | D193: 1983-11-26 | E193: Харьков | F193: Говардовский В.
A194: 193 | B194: Климчук Сергей | C194: m | D194: 1990-10-05 | E194: Харьков | F194: Романаускене А.
A195: 194 | B195: Клочко Олег | C195: m | D195: 1992-05-06 | E195: Харьков
A196: 195 | B196: Ковалев Александр | C196: m | D196: 1983-12-03 | E196: Торецк | F196: Савченков С.
A197: 196 | B197: Ковалев Антон | C197: m | D197: 1973-03-03 | E197: Харьков
A198: 197 | B198: Ковалева Дарина | C198: f | D198: 1990-12-27 | E198: Харьков | F198: Гончаров А.
A199: 198 | B199: Коваленко Анна | C199: f | D199: 1998-06-26 | E199: Сумы
A200: 199 | B200: Коваленко Павел | C200: m | D200: 1998-04-05 | E200: Одесса | G200: 0954570924
... 1001 more rows

Sheet Шабл
E1: Поток | F1: XXX1 | H1: чел.
B2: Женщины
B3: Мужчины
E4: XXX1 | F4: кг | P4: РУ | Q4: 0
A6: - | G6: =IF(D6<>"", INDEX(инфо!$H$3:$H$27, 1+MATCH(-0.001+DATEDIF(D6,$W$6,"y"),инфо!$F$3:$F$27,1)), "") ->  | H6: =IF( OR(C6="", NOT(ISNUMBER(F6))), "", VLOOKUP(F6, инфо!$A$3:$C$3901, IF(C6="m", 3,2))) ->  | Q6: =IF(N6="+",M6, IF(L6="+",K6,IF(J6="+",I6,0))) -> 0 | R6: =IF( ISNUMBER( Q6*H6 ), Q6*H6, "-") -> - | S6: =IF( AND(N6<>"-", ISNUMBER(M6)), M6, IF(AND(L6<>"-", ISNUMBER(K6)), K6, IF(AND(J6<>"-", ISNUMBER(I6)), I6, Q6 ) ) ) -> 0 | U6: =IF( ISNUMBER( S6*H6 ), S6*H6, "-") -> -
A7: - | G7: =IF(D7<>"", INDEX(инфо!$H$3:$H$27, 1+MATCH(-0.001+DATEDIF(D7,$W$6,"y"),инфо!$F$3:$F$27,1)), "") ->  | H7: =IF( OR(C7="", NOT(ISNUMBER(F7))), "", VLOOKUP(F7, инфо!$A$3:$C$3901, IF(C7="m", 3,2))) ->  | Q7: =IF(N7="+",M7, IF(L7="+",K7,IF(J7="+",I7,0))) -> 0 | R7: =IF( ISNUMBER( Q7*H7 ), Q7*H7, "-") -> - | S7: =IF( AND(N7<>"-", ISNUMBER(M7)), M7, IF(AND(L7<>"-", ISNUMBER(K7)), K7, IF(AND(J7<>"-", ISNUMBER(I7)), I7, Q7 ) ) ) -> 0 | U7: =IF( ISNUMBER( S7*H7 ), S7*H7, "-") -> -
A8: - | G8: =IF(D8<>"", INDEX(инфо!$H$3:$H$27, 1+MATCH(-0.001+DATEDIF(D8,$W$6,"y"),инфо!$F$3:$F$27,1)), "") ->  | H8: =IF( OR(C8="", NOT(ISNUMBER(F8))), "", VLOOKUP(F8, инфо!$A$3:$C$3901, IF(C8="m", 3,2))) ->  | Q8: =IF(N8="+",M8, IF(L8="+",K8,IF(J8="+",I8,0))) -> 0 | R8: - | S8: =IF( AND(N8<>"-", ISNUMBER(M8)), M8, IF(AND(L8<>"-", ISNUMBER(K8)), K8, IF(AND(J8<>"-", ISNUMBER(I8)), I8, Q8 ) ) ) -> 0 | U8: -
A9: - | G9: =IF(D9<>"", INDEX(инфо!$H$3:$H$27, 1+MATCH(-0.001+DATEDIF(D9,$W$6,"y"),инфо!$F$3:$F$27,1)), "") ->  | H9: =IF( OR(C9="", NOT(ISNUMBER(F9))), "", VLOOKUP(F9, инфо!$A$3:$C$3901, IF(C9="m", 3,2))) ->  | Q9: =IF(N9="+",M9, IF(L9="+",K9,IF(J9="+",I9,0))) -> 0 | R9: - | S9: =IF( AND(N9<>"-", ISNUMBER(M9)), M9, IF(AND(L9<>"-", ISNUMBER(K9)), K9, IF(AND(J9<>"-", ISNUMBER(I9)), I9, Q9 ) ) ) -> 0 | U9: -
A10: - | G10: =IF(D10<>"", INDEX(инфо!$H$3:$H$27, 1+MATCH(-0.001+DATEDIF(D10,$W$6,"y"),инфо!$F$3:$F$27,1)), "") ->  | H10: =IF( OR(C10="", NOT(ISNUMBER(F10))), "", VLOOKUP(F10, инфо!$A$3:$C$3901, IF(C10="m", 3,2))) ->  | Q10: =IF(N10="+",M10, IF(L10="+",K10,IF(J10="+",I10,0))) -> 0 | R10: - | S10: =IF( AND(N10<>"-", ISNUMBER(M10)), M10, IF(AND(L10<>"-", ISNUMBER(K10)), K10, IF(AND(J10<>"-", ISNUMBER(I10)), I10, Q10 ) ) ) -> 0 | U10: -
A11: - | G11: =IF(D11<>"", INDEX(инфо!$H$3:$H$27, 1+MATCH(-0.001+DATEDIF(D11,$W$6,"y"),инфо!$F$3:$F$27,1)), "") ->  | H11: =IF( OR(C11="", NOT(ISNUMBER(F11))), "", VLOOKUP(F11, инфо!$A$3:$C$3901, IF(C11="m", 3,2))) ->  | Q11: =IF(N11="+",M11, IF(L11="+",K11,IF(J11="+",I11,0))) -> 0 | R11: - | S11: =IF( AND(N11<>"-", ISNUMBER(M11)), M11, IF(AND(L11<>"-", ISNUMBER(K11)), K11, IF(AND(J11<>"-", ISNUMBER(I11)), I11, Q11 ) ) ) -> 0 | U11: -
A12: - | G12: =IF(D12<>"", INDEX(инфо!$H$3:$H$27, 1+MATCH(-0.001+DATEDIF(D12,$W$6,"y"),инфо!$F$3:$F$27,1)), "") ->  | H12: =IF( OR(C12="", NOT(ISNUMBER(F12))), "", VLOOKUP(F12, инфо!$A$3:$C$3901, IF(C12="m", 3,2))) ->  | Q12: =IF(N12="+",M12, IF(L12="+",K12,IF(J12="+",I12,0))) -> 0 | R12: - | S12: =IF( AND(N12<>"-", ISNUMBER(M12)), M12, IF(AND(L12<>"-", ISNUMBER(K12)), K12, IF(AND(J12<>"-", ISNUMBER(I12)), I12, Q12 ) ) ) -> 0 | U12: -
A13: - | G13: =IF(D13<>"", INDEX(инфо!$H$3:$H$27, 1+MATCH(-0.001+DATEDIF(D13,$W$6,"y"),инфо!$F$3:$F$27,1)), "") ->  | H13: =IF( OR(C13="", NOT(ISNUMBER(F13))), "", VLOOKUP(F13, инфо!$A$3:$C$3901, IF(C13="m", 3,2))) ->  | Q13: =IF(N13="+",M13, IF(L13="+",K13,IF(J13="+",I13,0))) -> 0 | R13: - | S13: =IF( AND(N13<>"-", ISNUMBER(M13)), M13, IF(AND(L13<>"-", ISNUMBER(K13)), K13, IF(AND(J13<>"-", ISNUMBER(I13)), I13, Q13 ) ) ) -> 0 | U13: -
A14: - | G14: =IF(D14<>"", INDEX(инфо!$H$3:$H$27, 1+MATCH(-0.001+DATEDIF(D14,$W$6,"y"),инфо!$F$3:$F$27,1)), "") ->  | H14: =IF( OR(C14="", NOT(ISNUMBER(F14))), "", VLOOKUP(F14, инфо!$A$3:$C$3901, IF(C14="m", 3,2))) ->  | Q14: =IF(N14="+",M14, IF(L14="+",K14,IF(J14="+",I14,0))) -> 0 | R14: - | S14: =IF( AND(N14<>"-", ISNUMBER(M14)), M14, IF(AND(L14<>"-", ISNUMBER(K14)), K14, IF(AND(J14<>"-", ISNUMBER(I14)), I14, Q14 ) ) ) -> 0 | U14: -
A15: - | G15: =IF(D15<>"", INDEX(инфо!$H$3:$H$27, 1+MATCH(-0.001+DATEDIF(D15,$W$6,"y"),инфо!$F$3:$F$27,1)), "") ->  | H15: =IF( OR(C15="", NOT(ISNUMBER(F15))), "", VLOOKUP(F15, инфо!$A$3:$C$3901, IF(C15="m", 3,2))) ->  | Q15: =IF(N15="+",M15, IF(L15="+",K15,IF(J15="+",I15,0))) -> 0 | R15: - | S15: =IF( AND(N15<>"-", ISNUMBER(M15)), M15, IF(AND(L15<>"-", ISNUMBER(K15)), K15, IF(AND(J15<>"-", ISNUMBER(I15)), I15, Q15 ) ) ) -> 0 | U15: -
A16: - | G16: =IF(D16<>"", INDEX(инфо!$H$3:$H$27, 1+MATCH(-0.001+DATEDIF(D16,$W$6,"y"),инфо!$F$3:$F$27,1)), "") ->  | H16: =IF( OR(C16="", NOT(ISNUMBER(F16))), "", VLOOKUP(F16, инфо!$A$3:$C$3901, IF(C16="m", 3,2))) ->  | Q16: =IF(N16="+",M16, IF(L16="+",K16,IF(J16="+",I16,0))) -> 0 | R16: - | S16: =IF( AND(N16<>"-", ISNUMBER(M16)), M16, IF(AND(L16<>"-", ISNUMBER(K16)), K16, IF(AND(J16<>"-", ISNUMBER(I16)), I16, Q16 ) ) ) -> 0 | U16: -
A17: - | G17: =IF(D17<>"", INDEX(инфо!$H$3:$H$27, 1+MATCH(-0.001+DATEDIF(D17,$W$6,"y"),инфо!$F$3:$F$27,1)), "") ->  | H17: =IF( OR(C17="", NOT(ISNUMBER(F17))), "", VLOOKUP(F17, инфо!$A$3:$C$3901, IF(C17="m", 3,2))) ->  | Q17: =IF(N17="+",M17, IF(L17="+",K17,IF(J17="+",I17,0))) -> 0 | R17: - | S17: =IF( AND(N17<>"-", ISNUMBER(M17)), M17, IF(AND(L17<>"-", ISNUMBER(K17)), K17, IF(AND(J17<>"-", ISNUMBER(I17)), I17, Q17 ) ) ) -> 0 | U17: -
A18: - | G18: =IF(D18<>"", INDEX(инфо!$H$3:$H$27, 1+MATCH(-0.001+DATEDIF(D18,$W$6,"y"),инфо!$F$3:$F$27,1)), "") ->  | H18: =IF( OR(C18="", NOT(ISNUMBER(F18))), "", VLOOKUP(F18, инфо!$A$3:$C$3901, IF(C18="m", 3,2))) ->  | Q18: =IF(N18="+",M18, IF(L18="+",K18,IF(J18="+",I18,0))) -> 0 | R18: - | S18: =IF( AND(N18<>"-", ISNUMBER(M18)), M18, IF(AND(L18<>"-", ISNUMBER(K18)), K18, IF(AND(J18<>"-", ISNUMBER(I18)), I18, Q18 ) ) ) -> 0 | U18: -
A19: - | G19: =IF(D19<>"", INDEX(инфо!$H$3:$H$27, 1+MATCH(-0.001+DATEDIF(D19,$W$6,"y"),инфо!$F$3:$F$27,1)), "") ->  | H19: =IF( OR(C19="", NOT(ISNUMBER(F19))), "", VLOOKUP(F19, инфо!$A$3:$C$3901, IF(C19="m", 3,2))) ->  | Q19: =IF(N19="+",M19, IF(L19="+",K19,IF(J19="+",I19,0))) -> 0 | R19: - | S19: =IF( AND(N19<>"-", ISNUMBER(M19)), M19, IF(AND(L19<>"-", ISNUMBER(K19)), K19, IF(AND(J19<>"-", ISNUMBER(I19)), I19, Q19 ) ) ) -> 0 | U19: -
A20: - | G20: =IF(D20<>"", INDEX(инфо!$H$3:$H$27, 1+MATCH(-0.001+DATEDIF(D20,$W$6,"y"),инфо!$F$3:$F$27,1)), "") ->  | H20: =IF( OR(C20="", NOT(ISNUMBER(F20))), "", VLOOKUP(F20, инфо!$A$3:$C$3901, IF(C20="m", 3,2))) ->  | Q20: =IF(N20="+",M20, IF(L20="+",K20,IF(J20="+",I20,0))) -> 0 | R20: - | S20: =IF( AND(N20<>"-", ISNUMBER(M20)), M20, IF(AND(L20<>"-", ISNUMBER(K20)), K20, IF(AND(J20<>"-", ISNUMBER(I20)), I20, Q20 ) ) ) -> 0 | U20: -
A21: - | G21: =IF(D21<>"", INDEX(инфо!$H$3:$H$27, 1+MATCH(-0.001+DATEDIF(D21,$W$6,"y"),инфо!$F$3:$F$27,1)), "") ->  | H21: =IF( OR(C21="", NOT(ISNUMBER(F21))), "", VLOOKUP(F21, инфо!$A$3:$C$3901, IF(C21="m", 3,2))) ->  | Q21: =IF(N21="+",M21, IF(L21="+",K21,IF(J21="+",I21,0))) -> 0 | R21: - | S21: =IF( AND(N21<>"-", ISNUMBER(M21)), M21, IF(AND(L21<>"-", ISNUMBER(K21)), K21, IF(AND(J21<>"-", ISNUMBER(I21)), I21, Q21 ) ) ) -> 0 | U21: -
A22: - | G22: =IF(D22<>"", INDEX(инфо!$H$3:$H$27, 1+MATCH(-0.001+DATEDIF(D22,$W$6,"y"),инфо!$F$3:$F$27,1)), "") ->  | H22: =IF( OR(C22="", NOT(ISNUMBER(F22))), "", VLOOKUP(F22, инфо!$A$3:$C$3901, IF(C22="m", 3,2))) ->  | Q22: =IF(N22="+",M22, IF(L22="+",K22,IF(J22="+",I22,0))) -> 0 | R22: - | S22: =IF( AND(N22<>"-", ISNUMBER(M22)), M22, IF(AND(L22<>"-", ISNUMBER(K22)), K22, IF(AND(J22<>"-", ISNUMBER(I22)), I22, Q22 ) ) ) -> 0 | U22: -
A23: - | G23: =IF(D23<>"", INDEX(инфо!$H$3:$H$27, 1+MATCH(-0.001+DATEDIF(D23,$W$6,"y"),инфо!$F$3:$F$27,1)), "") ->  | H23: =IF( OR(C23="", NOT(ISNUMBER(F23))), "", VLOOKUP(F23, инфо!$A$3:$C$3901, IF(C23="m", 3,2))) ->  | Q23: =IF(N23="+",M23, IF(L23="+",K23,IF(J23="+",I23,0))) -> 0 | R23: - | S23: =IF( AND(N23<>"-", ISNUMBER(M23)), M23, IF(AND(L23<>"-", ISNUMBER(K23)), K23, IF(AND(J23<>"-", ISNUMBER(I23)), I23, Q23 ) ) ) -> 0 | U23: -
A24: - | G24: =IF(D24<>"", INDEX(инфо!$H$3:$H$27, 1+MATCH(-0.001+DATEDIF(D24,$W$6,"y"),инфо!$F$3:$F$27,1)), "") ->  | H24: =IF( OR(C24="", NOT(ISNUMBER(F24))), "", VLOOKUP(F24, инфо!$A$3:$C$3901, IF(C24="m", 3,2))) ->  | Q24: =IF(N24="+",M24, IF(L24="+",K24,IF(J24="+",I24,0))) -> 0 | R24: - | S24: =IF( AND(N24<>"-", ISNUMBER(M24)), M24, IF(AND(L24<>"-", ISNUMBER(K24)), K24, IF(AND(J24<>"-", ISNUMBER(I24)), I24, Q24 ) ) ) -> 0 | U24: -
A25: - | G25: =IF(D25<>"", INDEX(инфо!$H$3:$H$27, 1+MATCH(-0.001+DATEDIF(D25,$W$6,"y"),инфо!$F$3:$F$27,1)), "") ->  | H25: =IF( OR(C25="", NOT(ISNUMBER(F25))), "", VLOOKUP(F25, инфо!$A$3:$C$3901, IF(C25="m", 3,2))) ->  | Q25: =IF(N25="+",M25, IF(L25="+",K25,IF(J25="+",I25,0))) -> 0 | R25: - | S25: =IF( AND(N25<>"-", ISNUMBER(M25)), M25, IF(AND(L25<>"-", ISNUMBER(K25)), K25, IF(AND(J25<>"-", ISNUMBER(I25)), I25, Q25 ) ) ) -> 0 | U25: -
A26: - | G26: =IF(D26<>"", INDEX(инфо!$H$3:$H$27, 1+MATCH(-0.001+DATEDIF(D26,$W$6,"y"),инфо!$F$3:$F$27,1)), "") ->  | H26: =IF( OR(C26="", NOT(ISNUMBER(F26))), "", VLOOKUP(F26, инфо!$A$3:$C$3901, IF(C26="m", 3,2))) ->  | Q26: =IF(N26="+",M26, IF(L26="+",K26,IF(J26="+",I26,0))) -> 0 | R26: - | S26: =IF( AND(N26<>"-", ISNUMBER(M26)), M26, IF(AND(L26<>"-", ISNUMBER(K26)), K26, IF(AND(J26<>"-", ISNUMBER(I26)), I26, Q26 ) ) ) -> 0 | U26: -
A27: - | G27: =IF(D27<>"", INDEX(инфо!$H$3:$H$27, 1+MATCH(-0.001+DATEDIF(D27,$W$6,"y"),инфо!$F$3:$F$27,1)), "") ->  | H27: =IF( OR(C27="", NOT(ISNUMBER(F27))), "", VLOOKUP(F27, инфо!$A$3:$C$3901, IF(C27="m", 3,2))) ->  | Q27: =IF(N27="+",M27, IF(L27="+",K27,IF(J27="+",I27,0))) -> 0 | R27: - | S27: =IF( AND(N27<>"-", ISNUMBER(M27)), M27, IF(AND(L27<>"-", ISNUMBER(K27)), K27, IF(AND(J27<>"-", ISNUMBER(I27)), I27, Q27 ) ) ) -> 0 | U27: -
A28: - | G28: =IF(D28<>"", INDEX(инфо!$H$3:$H$27, 1+MATCH(-0.001+DATEDIF(D28,$W$6,"y"),инфо!$F$3:$F$27,1)), "") ->  | H28: =IF( OR(C28="", NOT(ISNUMBER(F28))), "", VLOOKUP(F28, инфо!$A$3:$C$3901, IF(C28="m", 3,2))) ->  | Q28: =IF(N28="+",M28, IF(L28="+",K28,IF(J28="+",I28,0))) -> 0 | R28: - | S28: =IF( AND(N28<>"-", ISNUMBER(M28)), M28, IF(AND(L28<>"-", ISNUMBER(K28)), K28, IF(AND(J28<>"-", ISNUMBER(I28)), I28, Q28 ) ) ) -> 0 | U28: -
A29: - | G29: =IF(D29<>"", INDEX(инфо!$H$3:$H$27, 1+MATCH(-0.001+DATEDIF(D29,$W$6,"y"),инфо!$F$3:$F$27,1)), "") ->  | H29: =IF( OR(C29="", NOT(ISNUMBER(F29))), "", VLOOKUP(F29, инфо!$A$3:$C$3901, IF(C29="m", 3,2))) ->  | Q29: =IF(N29="+",M29, IF(L29="+",K29,IF(J29="+",I29,0))) -> 0 | R29: - | S29: =IF( AND(N29<>"-", ISNUMBER(M29)), M29, IF(AND(L29<>"-", ISNUMBER(K29)), K29, IF(AND(J29<>"-", ISNUMBER(I29)), I29, Q29 ) ) ) -> 0 | U29: -
A30: - | G30: =IF(D30<>"", INDEX(инфо!$H$3:$H$27, 1+MATCH(-0.001+DATEDIF(D30,$W$6,"y"),инфо!$F$3:$F$27,1)), "") ->  | H30: =IF( OR(C30="", NOT(ISNUMBER(F30))), "", VLOOKUP(F30, инфо!$A$3:$C$3901, IF(C30="m", 3,2))) ->  | Q30: =IF(N30="+",M30, IF(L30="+",K30,IF(J30="+",I30,0))) -> 0 | R30: - | S30: =IF( AND(N30<>"-", ISNUMBER(M30)), M30, IF(AND(L30<>"-", ISNUMBER(K30)), K30, IF(AND(J30<>"-", ISNUMBER(I30)), I30, Q30 ) ) ) -> 0 | U30: -
A31: - | G31: =IF(D31<>"", INDEX(инфо!$H$3:$H$27, 1+MATCH(-0.001+DATEDIF(D31,$W$6,"y"),инфо!$F$3:$F$27,1)), "") ->  | H31: =IF( OR(C31="", NOT(ISNUMBER(F31))), "", VLOOKUP(F31, инфо!$A$3:$C$3901, IF(C31="m", 3,2))) ->  | Q31: =IF(N31="+",M31, IF(L31="+",K31,IF(J31="+",I31,0))) -> 0 | R31: - | S31: =IF( AND(N31<>"-", ISNUMBER(M31)), M31, IF(AND(L31<>"-", ISNUMBER(K31)), K31, IF(AND(J31<>"-", ISNUMBER(I31)), I31, Q31 ) ) ) -> 0 | U31: -
A32: - | G32: =IF(D32<>"", INDEX(инфо!$H$3:$H$27, 1+MATCH(-0.001+DATEDIF(D32,$W$6,"y"),инфо!$F$3:$F$27,1)), "") ->  | H32: =IF( OR(C32="", NOT(ISNUMBER(F32))), "", VLOOKUP(F32, инфо!$A$3:$C$3901, IF(C32="m", 3,2))) ->  | Q32: =IF(N32="+",M32, IF(L32="+",K32,IF(J32="+",I32,0))) -> 0 | R32: - | S32: =IF( AND(N32<>"-", ISNUMBER(M32)), M32, IF(AND(L32<>"-", ISNUMBER(K32)), K32, IF(AND(J32<>"-", ISNUMBER(I32)), I32, Q32 ) ) ) -> 0 | U32: -
A33: - | G33: =IF(D33<>"", INDEX(инфо!$H$3:$H$27, 1+MATCH(-0.001+DATEDIF(D33,$W$6,"y"),инфо!$F$3:$F$27,1)), "") ->  | H33: =IF( OR(C33="", NOT(ISNUMBER(F33))), "", VLOOKUP(F33, инфо!$A$3:$C$3901, IF(C33="m", 3,2))) ->  | Q33: =IF(N33="+",M33, IF(L33="+",K33,IF(J33="+",I33,0))) -> 0 | R33: - | S33: =IF( AND(N33<>"-", ISNUMBER(M33)), M33, IF(AND(L33<>"-", ISNUMBER(K33)), K33, IF(AND(J33<>"-", ISNUMBER(I33)), I33, Q33 ) ) ) -> 0 | U33: -
A34: - | G34: =IF(D34<>"", INDEX(инфо!$H$3:$H$27, 1+MATCH(-0.001+DATEDIF(D34,$W$6,"y"),инфо!$F$3:$F$27,1)), "") ->  | H34: =IF( OR(C34="", NOT(ISNUMBER(F34))), "", VLOOKUP(F34, инфо!$A$3:$C$3901, IF(C34="m", 3,2))) ->  | Q34: =IF(N34="+",M34, IF(L34="+",K34,IF(J34="+",I34,0))) -> 0 | R34: - | S34: =IF( AND(N34<>"-", ISNUMBER(M34)), M34, IF(AND(L34<>"-", ISNUMBER(K34)), K34, IF(AND(J34<>"-", ISNUMBER(I34)), I34, Q34 ) ) ) -> 0 | U34: -
A35: - | G35: =IF(D35<>"", INDEX(инфо!$H$3:$H$27, 1+MATCH(-0.001+DATEDIF(D35,$W$6,"y"),инфо!$F$3:$F$27,1)), "") ->  | H35: =IF( OR(C35="", NOT(ISNUMBER(F35))), "", VLOOKUP(F35, инфо!$A$3:$C$3901, IF(C35="m", 3,2))) ->  | Q35: =IF(N35="+",M35, IF(L35="+",K35,IF(J35="+",I35,0))) -> 0 | R35: - | S35: =IF( AND(N35<>"-", ISNUMBER(M35)), M35, IF(AND(L35<>"-", ISNUMBER(K35)), K35, IF(AND(J35<>"-", ISNUMBER(I35)), I35, Q35 ) ) ) -> 0 | U35: -
A36: - | G36: =IF(D36<>"", INDEX(инфо!$H$3:$H$27, 1+MATCH(-0.001+DATEDIF(D36,$W$6,"y"),инфо!$F$3:$F$27,1)), "") ->  | H36: =IF( OR(C36="", NOT(ISNUMBER(F36))), "", VLOOKUP(F36, инфо!$A$3:$C$3901, IF(C36="m", 3,2))) ->  | Q36: =IF(N36="+",M36, IF(L36="+",K36,IF(J36="+",I36,0))) -> 0 | R36: - | S36: =IF( AND(N36<>"-", ISNUMBER(M36)), M36, IF(AND(L36<>"-", ISNUMBER(K36)), K36, IF(AND(J36<>"-", ISNUMBER(I36)), I36, Q36 ) ) ) -> 0 | U36: -
A37: - | G37: =IF(D37<>"", INDEX(инфо!$H$3:$H$27, 1+MATCH(-0.001+DATEDIF(D37,$W$6,"y"),инфо!$F$3:$F$27,1)), "") ->  | H37: =IF( OR(C37="", NOT(ISNUMBER(F37))), "", VLOOKUP(F37, инфо!$A$3:$C$3901, IF(C37="m", 3,2))) ->  | Q37: =IF(N37="+",M37, IF(L37="+",K37,IF(J37="+",I37,0))) -> 0 | R37: =IF( ISNUMBER( Q37*H37 ), Q37*H37, "-") -> - | S37: =IF( AND(N37<>"-", ISNUMBER(M37)), M37, IF(AND(L37<>"-", ISNUMBER(K37)), K37, IF(AND(J37<>"-", ISNUMBER(I37)), I37, Q37 ) ) ) -> 0 | U37: -
A38: - | G38: =IF(D38<>"", INDEX(инфо!$H$3:$H$27, 1+MATCH(-0.001+DATEDIF(D38,$W$6,"y"),инфо!$F$3:$F$27,1)), "") ->  | H38: =IF( OR(C38="", NOT(ISNUMBER(F38))), "", VLOOKUP(F38, инфо!$A$3:$C$3901, IF(C38="m", 3,2))) ->  | Q38: =IF(N38="+",M38, IF(L38="+",K38,IF(J38="+",I38,0))) -> 0 | R38: =IF( ISNUMBER( Q38*H38 ), Q38*H38, "-") -> - | S38: =IF( AND(N38<>"-", ISNUMBER(M38)), M38, IF(AND(L38<>"-", ISNUMBER(K38)), K38, IF(AND(J38<>"-", ISNUMBER(I38)), I38, Q38 ) ) ) -> 0 | U38: -
A39: - | G39: =IF(D39<>"", INDEX(инфо!$H$3:$H$27, 1+MATCH(-0.001+DATEDIF(D39,$W$6,"y"),инфо!$F$3:$F$27,1)), "") ->  | H39: =IF( OR(C39="", NOT(ISNUMBER(F39))), "", VLOOKUP(F39, инфо!$A$3:$C$3901, IF(C39="m", 3,2))) ->  | Q39: =IF(N39="+",M39, IF(L39="+",K39,IF(J39="+",I39,0))) -> 0 | R39: =IF( ISNUMBER( Q39*H39 ), Q39*H39, "-") -> - | S39: =IF( AND(N39<>"-", ISNUMBER(M39)), M39, IF(AND(L39<>"-", ISNUMBER(K39)), K39, IF(AND(J39<>"-", ISNUMBER(I39)), I39, Q39 ) ) ) -> 0 | U39: -
A40: - | G40: =IF(D40<>"", INDEX(инфо!$H$3:$H$27, 1+MATCH(-0.001+DATEDIF(D40,$W$6,"y"),инфо!$F$3:$F$27,1)), "") ->  | H40: =IF( OR(C40="", NOT(ISNUMBER(F40))), "", VLOOKUP(F40, инфо!$A$3:$C$3901, IF(C40="m", 3,2))) ->  | Q40: =IF(N40="+",M40, IF(L40="+",K40,IF(J40="+",I40,0))) -> 0 | R40: =IF( ISNUMBER( Q40*H40 ), Q40*H40, "-") -> - | S40: =IF( AND(N40<>"-", ISNUMBER(M40)), M40, IF(AND(L40<>"-", ISNUMBER(K40)), K40, IF(AND(J40<>"-", ISNUMBER(I40)), I40, Q40 ) ) ) -> 0 | U40: -
E42: Поток | F42: 1 | G42: XXX1 | H42: чел.
B43: Женщины
B44: Мужчины
E45: XXX1 | F45: кг | K45: РУ | L45: 0
A47: - | G47: =IF(D47<>"", INDEX(инфо!$H$3:$H$27, 1+MATCH(-0.001+DATEDIF(D47,$R$6,"y"),инфо!$F$3:$F$27,1)), "") ->  | H47: =IF(C47="m",MROUND(F47+1.2499,2.5), MROUND(F47/2+1.2499,2.5) ) -> 0
A48: - | G48: =IF(D48<>"", INDEX(инфо!$H$3:$H$27, 1+MATCH(-0.001+DATEDIF(D48,$R$6,"y"),инфо!$F$3:$F$27,1)), "") ->  | H48: =IF(C48="m",MROUND(F48+1.2499,2.5), MROUND(F48/2+1.2499,2.5) ) -> 0
A49: - | G49: =IF(D49<>"", INDEX(инфо!$H$3:$H$27, 1+MATCH(-0.001+DATEDIF(D49,$R$6,"y"),инфо!$F$3:$F$27,1)), "") ->  | H49: 0
A50: - | G50: =IF(D50<>"", INDEX(инфо!$H$3:$H$27, 1+MATCH(-0.001+DATEDIF(D50,$R$6,"y"),инфо!$F$3:$F$27,1)), "") ->  | H50: 0
A51: - | G51: =IF(D51<>"", INDEX(инфо!$H$3:$H$27, 1+MATCH(-0.001+DATEDIF(D51,$R$6,"y"),инфо!$F$3:$F$27,1)), "") ->  | H51: 0
A52: - | G52: =IF(D52<>"", INDEX(инфо!$H$3:$H$27, 1+MATCH(-0.001+DATEDIF(D52,$R$6,"y"),инфо!$F$3:$F$27,1)), "") ->  | H52: 0
A53: - | G53: =IF(D53<>"", INDEX(инфо!$H$3:$H$27, 1+MATCH(-0.001+DATEDIF(D53,$R$6,"y"),инфо!$F$3:$F$27,1)), "") ->  | H53: 0
A54: - | G54: =IF(D54<>"", INDEX(инфо!$H$3:$H$27, 1+MATCH(-0.001+DATEDIF(D54,$R$6,"y"),инфо!$F$3:$F$27,1)), "") ->  | H54: 0
A55: - | G55: =IF(D55<>"", INDEX(инфо!$H$3:$H$27, 1+MATCH(-0.001+DATEDIF(D55,$R$6,"y"),инфо!$F$3:$F$27,1)), "") ->  | H55: 0
A56: - | G56: =IF(D56<>"", INDEX(инфо!$H$3:$H$27, 1+MATCH(-0.001+DATEDIF(D56,$R$6,"y"),инфо!$F$3:$F$27,1)), "") ->  | H56: 0
A57: - | G57: =IF(D57<>"", INDEX(инфо!$H$3:$H$27, 1+MATCH(-0.001+DATEDIF(D57,$R$6,"y"),инфо!$F$3:$F$27,1)), "") ->  | H57: 0
A58: - | G58: =IF(D58<>"", INDEX(инфо!$H$3:$H$27, 1+MATCH(-0.001+DATEDIF(D58,$R$6,"y"),инфо!$F$3:$F$27,1)), "") ->  | H58: 0
A59: - | G59: =IF(D59<>"", INDEX(инфо!$H$3:$H$27, 1+MATCH(-0.001+DATEDIF(D59,$R$6,"y"),инфо!$F$3:$F$27,1)), "") ->  | H59: 0
A60: - | G60: =IF(D60<>"", INDEX(инфо!$H$3:$H$27, 1+MATCH(-0.001+DATEDIF(D60,$R$6,"y"),инфо!$F$3:$F$27,1)), "") ->  | H60: 0
A61: - | G61: =IF(D61<>"", INDEX(инфо!$H$3:$H$27, 1+MATCH(-0.001+DATEDIF(D61,$R$6,"y"),инфо!$F$3:$F$27,1)), "") ->  | H61: 0
A62: - | G62: =IF(D62<>"", INDEX(инфо!$H$3:$H$27, 1+MATCH(-0.001+DATEDIF(D62,$R$6,"y"),инфо!$F$3:$F$27,1)), "") ->  | H62: 0
A63: - | G63: =IF(D63<>"", INDEX(инфо!$H$3:$H$27, 1+MATCH(-0.001+DATEDIF(D63,$R$6,"y"),инфо!$F$3:$F$27,1)), "") ->  | H63: 0
A64: - | G64: =IF(D64<>"", INDEX(инфо!$H$3:$H$27, 1+MATCH(-0.001+DATEDIF(D64,$R$6,"y"),инфо!$F$3:$F$27,1)), "") ->  | H64: 0
A65: - | G65: =IF(D65<>"", INDEX(инфо!$H$3:$H$27, 1+MATCH(-0.001+DATEDIF(D65,$R$6,"y"),инфо!$F$3:$F$27,1)), "") ->  | H65: 0
A66: - | G66: =IF(D66<>"", INDEX(инфо!$H$3:$H$27, 1+MATCH(-0.001+DATEDIF(D66,$R$6,"y"),инфо!$F$3:$F$27,1)), "") ->  | H66: 0
A67: - | G67: =IF(D67<>"", INDEX(инфо!$H$3:$H$27, 1+MATCH(-0.001+DATEDIF(D67,$R$6,"y"),инфо!$F$3:$F$27,1)), "") ->  | H67: 0
A68: - | G68: =IF(D68<>"", INDEX(инфо!$H$3:$H$27, 1+MATCH(-0.001+DATEDIF(D68,$R$6,"y"),инфо!$F$3:$F$27,1)), "") ->  | H68: 0
A69: - | G69: =IF(D69<>"", INDEX(инфо!$H$3:$H$27, 1+MATCH(-0.001+DATEDIF(D69,$R$6,"y"),инфо!$F$3:$F$27,1)), "") ->  | H69: 0
A70: - | G70: =IF(D70<>"", INDEX(инфо!$H$3:$H$27, 1+MATCH(-0.001+DATEDIF(D70,$R$6,"y"),инфо!$F$3:$F$27,1)), "") ->  | H70: 0
A71: - | G71: =IF(D71<>"", INDEX(инфо!$H$3:$H$27, 1+MATCH(-0.001+DATEDIF(D71,$R$6,"y"),инфо!$F$3:$F$27,1)), "") ->  | H71: 0

Sheet РУ
B1: МУЖЧИНЫ
C2: PL
C3: SQ | D3: BP | E3: DL | F3: SUM | G3: BP | H3: MBP | I3: DL | J3: SC
B4: 48 | C4: 55 | D4: 45 | E4: 75 | F4: 175 | G4: 110 | H4: 0 | I4: 75 | J4: 46.5
B5: 52 | C5: 125 | D5: 100 | E5: 145 | F5: 370 | G5: 103 | H5: 0 | I5: 130 | J5: 41
B6: 56 | C6: 0 | D6: 0 | E6: 0 | F6: 0 | G6: 105 | H6: 20 | I6: 177.5 | J6: 55.5
B7: 60 | C7: 140 | D7: 105 | E7: 180 | F7: 425 | G7: 142.5 | H7: 25 | I7: 207.5 | J7: 60.5
B8: 67.5 | C8: 185 | D8: 130 | E8: 230 | F8: 525 | G8: 166 | H8: 37 | I8: 230 | J8: 68
B9: 75 | C9: 190 | D9: 170 | E9: 240 | F9: 562.5 | G9: 175.5 | H9: 43 | I9: 258 | J9: 75.5
B10: 82.5 | C10: 255 | D10: 165 | E10: 280 | F10: 682.5 | G10: 187.5 | H10: 92 | I10: 275 | J10: 84
B11: 90 | C11: 265 | D11: 180 | E11: 300 | F11: 745 | G11: 218 | H11: 77 | I11: 302 | J11: 85
B12: 100 | C12: 260 | D12: 190 | E12: 300 | F12: 717.5 | G12: 252.5 | H12: 94 | I12: 295.5 | J12: 86.5
B13: 110 | C13: 295 | D13: 225 | E13: 322.5 | F13: 800 | G13: 232.5 | H13: 46 | I13: 317.5 | J13: 92
B14: 125 | C14: 250 | D14: 220 | E14: 300 | F14: 765 | G14: 251 | H14: 30 | I14: 311 | J14: 90
B15: 140 | C15: 255 | D15: 220 | E15: 250.5 | F15: 725 | G15: 266 | H15: 26 | I15: 352.5 | J15: 100
B16: 140+ | C16: 0 | D16: 0 | E16: 0 | F16: 0 | G16: 217.5 | H16: 16 | I16: 0 | J16: 86
B18: ЖЕНЩИНЫ
C19: PL
C20: SQ | D20: BP | E20: DL | F20: SUM | G20: BP | H20: MBP | I20: DL | J20: SC
B21: 44 | C21: 70 | D21: 42.5 | E21: 95 | F21: 207.5 | G21: 50 | H21: 26 | I21: 70 | J21: 26
B22: 48 | C22: 107.5 | D22: 57.5 | E22: 125 | F22: 272.5 | G22: 68 | H22: 98 | I22: 120 | J22: 35
B23: 52 | C23: 120 | D23: 70 | E23: 135.5 | F23: 315 | G23: 75 | H23: 112 | I23: 140.5 | J23: 35
B24: 56 | C24: 120 | D24: 60 | E24: 165 | F24: 345 | G24: 90 | H24: 103 | I24: 160 | J24: 40
B25: 60 | C25: 135 | D25: 92.5 | E25: 160 | F25: 380 | G25: 92.5 | H25: 116 | I25: 150 | J25: 50
B26: 67.5 | C26: 140 | D26: 90 | E26: 155 | F26: 370 | G26: 105 | H26: 109 | I26: 165 | J26: 57
B27: 75 | C27: 125 | D27: 65 | E27: 150 | F27: 335 | G27: 85 | H27: 68 | I27: 170 | J27: 55
B28: 82.5 | C28: 80 | D28: 55 | E28: 120 | F28: 255 | G28: 97.5 | H28: 27 | I28: 157.5 | J28: 0
B29: 90 | C29: 85 | D29: 57.5 | E29: 117.5 | F29: 260 | G29: 77.5 | H29: 0 | I29: 155 | J29: 31
B30: 90+ | C30: 0 | D30: 0 | E30: 0 | F30: 0 | G30: 0 | H30: 0 | I30: 0 | J30: 0
B32: МУЖЧИНЫ. ЖИМ ЛЕЖА | R32: ЖЕНЩИНЫ. ЖИМ ЛЕЖА
B33: ОТ | C33: ДО | D33: 48 | E33: 52 | F33: 56 | G33: 60 | H33: 67.5 | I33: 75 | J33: 82.5 | K33: 90 | L33: 100 | M33: 110 | N33: 125 | O33: 140 | P33: 140+ | R33: ОТ | S33: ДО | T33: 44 | U33: 48 | V33: 52 | W33: 56 | X33: 60 | Y33: 67.5 | Z33: 75 | AA33: 82.5 | AB33: 90 | AC33: 90+
B34: 0 | C34: 4 | R34: 0 | S34: 4
B35: 5 | C35: 5 | R35: 5 | S35: 5
B36: 6 | C36: 6 | R36: 6 | S36: 6
B37: 7 | C37: 7 | R37: 7 | S37: 7
B38: 8 | C38: 8 | D38: 37.5 | R38: 8 | S38: 8
B39: 9 | C39: 9 | D39: 40 | R39: 9 | S39: 9
B40: 10 | C40: 10 | D40: 35 | R40: 10 | S40: 10
B41: 11 | C41: 11 | D41: 57.5 | R41: 11 | S41: 11
B42: 12 | C42: 13 | D42: 65 | E42: 73 | F42: 75 | G42: 75 | H42: 55 | I42: 100 | K42: 50 | R42: 12 | S42: 13 | V42: 45 | Y42: 47.5
B43: 14 | C43: 15 | D43: 55 | E43: 60 | F43: 91 | G43: 90 | H43: 102.5 | I43: 125 | J43: 135 | K43: 125 | L43: 85 | N43: 130 | R43: 14 | S43: 15 | U43: 55 | V43: 37.5 | W43: 65 | X43: 60 | Y43: 52.5 | Z43: 50
B44: 16 | C44: 17 | E44: 77.5 | F44: 85 | G44: 105 | H44: 125 | I44: 175.5 | J44: 165.5 | K44: 165 | L44: 147.5 | M44: 155 | N44: 115 | R44: 16 | S44: 17 | T44: 30 | U44: 27.5 | V44: 47.5 | W44: 80 | X44: 75 | Y44: 72.5 | Z44: 65
B45: 18 | C45: 19 | D45: 85 | F45: 90 | G45: 116 | H45: 117.5 | I45: 175 | J45: 170 | K45: 170 | L45: 185 | M45: 175 | N45: 225 | O45: 110 | P45: 160 | R45: 18 | S45: 19 | U45: 37.5 | V45: 45 | W45: 70 | X45: 67.5 | Y45: 80 | Z45: 40 | AA45: 55 | AB45: 57.5
B46: 20 | C46: 24 | D46: 110 | F46: 105 | G46: 120 | H46: 140 | I46: 170 | J46: 187.5 | K46: 217.5 | L46: 230 | M46: 225 | N46: 230 | O46: 230 | R46: 20 | S46: 24 | T46: 50 | U46: 67.5 | V46: 75 | W46: 65 | X46: 70 | Y46: 105 | Z46: 75
B47: 25 | C47: 29 | F47: 80 | G47: 130 | H47: 165 | I47: 162.5 | J47: 175 | K47: 218 | L47: 252.5 | M47: 230 | N47: 250 | O47: 266 | P47: 217.5 | R47: 25 | S47: 29 | T47: 47.5 | U47: 68 | V47: 69 | W47: 90 | X47: 65 | Y47: 80 | Z47: 80 | AA47: 82.5
B48: 30 | C48: 34 | D48: 106 | E48: 103 | G48: 142.5 | H48: 166 | I48: 170 | J48: 170 | K48: 200 | L48: 202.5 | M48: 232.5 | N48: 251 | O48: 200 | R48: 30 | S48: 34 | T48: 45 | U48: 47.5 | V48: 75 | W48: 75 | X48: 92.5 | Y48: 90 | Z48: 85 | AA48: 97.5 | AB48: 72.5
B49: 35 | C49: 39 | H49: 120 | I49: 145 | J49: 185 | K49: 205 | L49: 220 | M49: 210 | N49: 205 | O49: 212.5 | R49: 35 | S49: 39 | U49: 57.5 | V49: 55 | W49: 57.5 | X49: 60 | Y49: 92.5 | Z49: 85
B50: 40 | C50: 44 | G50: 90 | H50: 105 | I50: 160 | J50: 175 | K50: 175 | L50: 190 | M50: 212.5 | N50: 190 | O50: 235 | R50: 40 | S50: 44 | U50: 62.5 | V50: 65 | W50: 75 | X50: 62.5
B51: 45 | C51: 49 | I51: 130 | J51: 155 | K51: 172.5 | L51: 212.5 | M51: 220.5 | N51: 200 | O51: 200 | R51: 45 | S51: 49 | U51: 40 | Y51: 47.5 | AA51: 52.5 | AB51: 52.5
B52: 50 | C52: 54 | I52: 107.5 | J52: 170 | K52: 167.5 | L52: 185 | M52: 190 | N52: 200 | O52: 215 | P52: 140 | R52: 50 | S52: 54 | V52: 35
B53: 55 | C53: 59 | G53: 80 | J53: 170 | K53: 190.5 | L53: 112.5 | M53: 120 | O53: 190 | R53: 55 | S53: 59
B54: 60 | C54: 64 | I54: 100 | K54: 116 | L54: 123 | R54: 60 | S54: 64
B55: 65 | C55: 69 | H55: 75 | J55: 55 | K55: 105 | L55: 110 | R55: 65 | S55: 69
B56: 70 | C56: 74 | J56: 57.5 | K56: 60 | R56: 70 | S56: 74
B57: 75 | C57: 79 | J57: 110 | R57: 75 | S57: 79
B58: 80 | C58: 120 | R58: 80 | S58: 120
B59: SO | I59: 135 | K59: 97.5 | R59: SO
B61: МУЖЧИНЫ. СТАНОВАЯ ТЯГА | R61: ЖЕНЩИНЫ. СТАНОВАЯ ТЯГА
B62: ОТ | C62: ДО | D62: 48 | E62: 52 | F62: 56 | G62: 60 | H62: 67.5 | I62: 75 | J62: 82.5 | K62: 90 | L62: 100 | M62: 110 | N62: 125 | O62: 140 | P62: 140+ | R62: ОТ | S62: ДО | T62: 44 | U62: 48 | V62: 52 | W62: 56 | X62: 60 | Y62: 67.5 | Z62: 75 | AA62: 82.5 | AB62: 90 | AC62: 90+
B63: 0 | C63: 4 | R63: 0 | S63: 4
B64: 5 | C64: 5 | R64: 5 | S64: 5
B65: 6 | C65: 6 | R65: 6 | S65: 6
B66: 7 | C66: 7 | R66: 7 | S66: 7
B67: 8 | C67: 8 | R67: 8 | S67: 8
B68: 9 | C68: 9 | R68: 9 | S68: 9
B69: 10 | C69: 10 | R69: 10 | S69: 10
B70: 11 | C70: 11 | R70: 11 | S70: 11
B71: 12 | C71: 13 | D71: 75 | E71: 90 | R71: 12 | S71: 13
B72: 14 | C72: 15 | F72: 102.5 | G72: 135 | H72: 165 | I72: 162.5 | J72: 180 | K72: 195 | L72: 120 | N72: 217.5 | R72: 14 | S72: 15 | W72: 62.5
B73: 16 | C73: 17 | E73: 130 | F73: 120 | G73: 160 | H73: 175 | I73: 200 | J73: 190 | K73: 220 | L73: 240 | R73: 16 | S73: 17 | T73: 55 | V73: 105 | W73: 94 | X73: 105 | Y73: 107.5
B74: 18 | C74: 19 | G74: 140 | H74: 210 | I74: 225 | J74: 237.5 | K74: 240 | L74: 265 | M74: 210 | N74: 290 | O74: 200 | R74: 18 | S74: 19 | U74: 85 | V74: 130 | X74: 110 | Y74: 120 | Z74: 145
B75: 20 | C75: 24 | F75: 177.5 | G75: 165 | H75: 225 | I75: 257.5 | J75: 275 | K75: 265 | L75: 295.5 | M75: 301.5 | N75: 311 | O75: 280 | R75: 20 | S75: 24 | U75: 107.5 | V75: 100 | W75: 150 | X75: 120 | Y75: 151 | Z75: 170 | AB75: 100
B76: 25 | C76: 29 | G76: 207.5 | H76: 230 | I76: 240 | J76: 270 | K76: 302 | L76: 280 | M76: 301 | N76: 240 | O76: 352.5 | R76: 25 | S76: 29 | T76: 70 | U76: 120 | V76: 127.5 | W76: 160 | X76: 125 | Y76: 145 | Z76: 125 | AA76: 157.5
B77: 30 | C77: 34 | H77: 175 | I77: 255 | J77: 255 | K77: 290 | L77: 280 | M77: 295 | N77: 260 | R77: 30 | S77: 34 | U77: 97.5 | V77: 127.5 | W77: 132.5 | X77: 135 | Y77: 165 | Z77: 110 | AA77: 85
B78: 35 | C78: 39 | H78: 150 | I78: 258 | J78: 202.5 | K78: 260 | L78: 290 | M78: 317.5 | N78: 290 | O78: 320 | R78: 35 | S78: 39 | U78: 102.5 | V78: 140.5 | W78: 125 | X78: 150 | Y78: 150.5 | Z78: 130 | AB78: 155
B79: 40 | C79: 44 | H79: 170 | I79: 180 | J79: 200 | K79: 280.5 | M79: 215 | N79: 280 | O79: 210 | R79: 40 | S79: 44 | Y79: 140 | AA79: 135
B80: 45 | C80: 49 | I80: 172.5 | J80: 202.5 | K80: 235 | L80: 240 | N80: 300 | R80: 45 | S80: 49 | Y80: 100
B81: 50 | C81: 54 | J81: 185 | K81: 202.5 | L81: 250 | M81: 210 | N81: 235 | O81: 180 | R81: 50 | S81: 54 | Y81: 117.5
B82: 55 | C82: 59 | G82: 177.5 | I82: 180 | J82: 182.5 | K82: 212.5 | L82: 207.5 | M82: 225 | R82: 55 | S82: 59
B83: 60 | C83: 64 | I83: 170 | J83: 160 | K83: 130 | L83: 153 | R83: 60 | S83: 64
B84: 65 | C84: 69 | H84: 135 | I84: 155 | R84: 65 | S84: 69
B85: 70 | C85: 74 | J85: 165 | R85: 70 | S85: 74
B86: 75 | C86: 79 | R86: 75 | S86: 79
B87: 80 | C87: 120 | R87: 80 | S87: 120
B88: SO | J88: 155 | R88: SO
B90: МУЖЧИНЫ. БИЦЕПС | R90: ЖЕНЩИНЫ. БИЦЕПС
B91: ОТ | C91: ДО | D91: 48 | E91: 52 | F91: 56 | G91: 60 | H91: 67.5 | I91: 75 | J91: 82.5 | K91: 90 | L91: 100 | M91: 110 | N91: 125 | O91: 140 | P91: 140+ | R91: ОТ | S91: ДО | T91: 44 | U91: 48 | V91: 52 | W91: 56 | X91: 60 | Y91: 67.5 | Z91: 75 | AA91: 82.5 | AB91: 90 | AC91: 90+
B92: 0 | C92: 4 | R92: 0 | S92: 4
B93: 5 | C93: 5 | D93: 9.5 | R93: 5 | S93: 5 | T93: 8
B94: 6 | C94: 6 | D94: 10 | R94: 6 | S94: 6
B95: 7 | C95: 7 | R95: 7 | S95: 7
B96: 8 | C96: 8 | D96: 11 | R96: 8 | S96: 8
B97: 9 | C97: 9 | D97: 14 | R97: 9 | S97: 9
B98: 10 | C98: 10 | R98: 10 | S98: 10
B99: 11 | C99: 11 | R99: 11 | S99: 11
B100: 12 | C100: 13 | D100: 30 | G100: 40 | H100: 20 | I100: 42 | L100: 25 | R100: 12 | S100: 13 | V100: 27 | W100: 22.5
B101: 14 | C101: 15 | D101: 46.5 | E101: 30 | F101: 43 | G101: 46 | H101: 51 | I101: 61 | J101: 55 | K101: 57.5 | R101: 14 | S101: 15 | T101: 22 | U101: 27 | W101: 40 | X101: 25 | AB101: 23
B102: 16 | C102: 17 | E102: 35 | F102: 55.5 | G102: 49 | H102: 57 | I102: 70 | J102: 65 | K102: 73.5 | L102: 68 | M102: 70 | R102: 16 | S102: 17 | T102: 23 | U102: 26 | V102: 30 | W102: 25 | Y102: 30 | Z102: 24
B103: 18 | C103: 19 | E103: 39 | F103: 41 | G103: 52 | H103: 59 | I103: 72.5 | J103: 73 | K103: 69 | L103: 71 | M103: 92 | N103: 76 | O103: 46 | R103: 18 | S103: 19 | V103: 30 | Y103: 36 | Z103: 27
B104: 20 | C104: 24 | F104: 55 | G104: 55 | H104: 64.5 | I104: 75.5 | J104: 78 | K104: 81 | L104: 86 | M104: 82 | N104: 86 | O104: 96 | R104: 20 | S104: 24 | U104: 32 | V104: 33 | W104: 35 | X104: 43 | Y104: 42 | Z104: 34 | AB104: 31
B105: 25 | C105: 29 | F105: 43 | G105: 60.5 | H105: 65 | I105: 70.5 | J105: 80 | K105: 83.5 | L105: 85.5 | M105: 84.5 | N105: 90 | O105: 100 | R105: 25 | S105: 29 | T105: 25 | U105: 35 | V105: 30 | W105: 33 | X105: 50 | Y105: 57 | Z105: 55
B106: 30 | C106: 34 | D106: 46 | E106: 41 | F106: 45 | H106: 68 | I106: 67 | J106: 80 | K106: 85 | L106: 86.5 | M106: 84 | N106: 85 | P106: 86 | R106: 30 | S106: 34 | U106: 24 | V106: 35 | W106: 34 | X106: 35 | Y106: 38 | Z106: 38
B107: 35 | C107: 39 | F107: 47 | G107: 43 | H107: 66 | I107: 68 | J107: 65 | K107: 76 | L107: 81 | M107: 85 | N107: 80 | R107: 35 | S107: 39 | T107: 26 | W107: 29 | X107: 37 | Y107: 25 | Z107: 45
B108: 40 | C108: 44 | H108: 52 | I108: 61 | J108: 78 | K108: 77 | L108: 80 | M108: 88 | O108: 75 | R108: 40 | S108: 44 | V108: 34 | W108: 33 | X108: 35 | Y108: 42.5
B109: 45 | C109: 49 | I109: 62.5 | J109: 77 | K109: 65 | L109: 77 | M109: 71 | O109: 84 | R109: 45 | S109: 49 | X109: 29 | Y109: 23 | AB109: 27
B110: 50 | C110: 54 | I110: 61 | J110: 84 | K110: 84.5 | L110: 65 | M110: 66 | N110: 80 | P110: 60 | R110: 50 | S110: 54
B111: 55 | C111: 59 | J111: 60.5 | K111: 63 | N111: 80 | R111: 55 | S111: 59
B112: 60 | C112: 64 | K112: 67 | L112: 66 | R112: 60 | S112: 64
B113: 65 | C113: 69 | J113: 31 | R113: 65 | S113: 69
B114: 70 | C114: 74 | K114: 38 | R114: 70 | S114: 74
B115: 75 | C115: 79 | R115: 75 | S115: 79
B116: 80 | C116: 120 | R116: 80 | S116: 120
B117: SO | R117: SO
B119: МУЖЧИНЫ. МНОГОПОВТОРНЫЙ ЖИМ | R119: ЖЕНЩИНЫ. МНОГОПОВТОРНЫЙ ЖИМ
B120: ОТ | C120: ДО | D120: 48 | E120: 52 | F120: 56 | G120: 60 | H120: 67.5 | I120: 75 | J120: 82.5 | K120: 90 | L120: 100 | M120: 110 | N120: 125 | O120: 140 | P120: 140+ | R120: ОТ | S120: ДО | T120: 44 | U120: 48 | V120: 52 | W120: 56 | X120: 60 | Y120: 67.5 | Z120: 75 | AA120: 82.5 | AB120: 90 | AC120: 90+
B121: 0 | C121: 4 | R121: 0 | S121: 4
B122: 5 | C122: 5 | R122: 5 | S122: 5
B123: 6 | C123: 6 | R123: 6 | S123: 6
B124: 7 | C124: 7 | R124: 7 | S124: 7
B125: 8 | C125: 8 | R125: 8 | S125: 8
B126: 9 | C126: 9 | R126: 9 | S126: 9
B127: 10 | C127: 10 | R127: 10 | S127: 10
B128: 11 | C128: 11 | R128: 11 | S128: 11
B129: 12 | C129: 13 | R129: 12 | S129: 13
B130: 14 | C130: 15 | F130: 14 | G130: 15 | I130: 25 | R130: 14 | S130: 15 | U130: 18 | W130: 12 | X130: 29
B131: 16 | C131: 17 | F131: 12 | G131: 25 | H131: 21 | I131: 15 | K131: 10 | M131: 16 | R131: 16 | S131: 17 | T131: 26 | V131: 32 | X131: 41 | Y131: 50 | Z131: 29
B132: 18 | C132: 19 | H132: 37 | I132: 16 | K132: 14 | L132: 16 | R132: 18 | S132: 19 | X132: 116 | Y132: 109 | Z132: 22
B133: 20 | C133: 24 | H133: 26 | I133: 34 | J133: 37 | K133: 40 | L133: 35 | M133: 25 | N133: 27 | O133: 10 | P133: 16 | R133: 20 | S133: 24 | U133: 98 | V133: 53 | W133: 32 | Y133: 62
B134: 25 | C134: 29 | H134: 31 | I134: 37 | J134: 92 | K134: 44 | L134: 67 | M134: 29 | N134: 30 | O134: 26 | R134: 25 | S134: 29 | V134: 112 | W134: 29 | X134: 41 | AA134: 27
B135: 30 | C135: 34 | F135: 20 | H135: 37 | I135: 43 | J135: 32 | K135: 77 | L135: 94 | M135: 35 | N135: 26 | R135: 30 | S135: 34 | V135: 38 | W135: 44 | X135: 38 | Y135: 62 | Z135: 66
B136: 35 | C136: 39 | H136: 26 | I136: 37 | J136: 40 | K136: 34 | L136: 41 | M136: 46 | N136: 20 | R136: 35 | S136: 39 | Y136: 32 | Z136: 68
B137: 40 | C137: 44 | H137: 15 | J137: 40 | K137: 38 | L137: 22 | M137: 25 | R137: 40 | S137: 44 | V137: 110 | W137: 103 | Y137: 54
B138: 45 | C138: 49 | I138: 26 | J138: 23 | M138: 35 | R138: 45 | S138: 49
B139: 50 | C139: 54 | K139: 15 | M139: 38 | R139: 50 | S139: 54
B140: 55 | C140: 59 | R140: 55 | S140: 59
B141: 60 | C141: 64 | L141: 10 | R141: 60 | S141: 64
B142: 65 | C142: 69 | R142: 65 | S142: 69
B143: 70 | C143: 74 | R143: 70 | S143: 74
B144: 75 | C144: 79 | R144: 75 | S144: 79
B145: 80 | C145: 120 | R145: 80 | S145: 120
B146: SO | R146: SO

Sheet Норм
B2: POWERLIFTING | R2: BENCH PRESS
B3: МУЖЧИНЫ | R3: МУЖЧИНЫ
C4: 48 | D4: 52 | E4: 56 | F4: 60 | G4: 67.5 | H4: 75 | I4: 82.5 | J4: 90 | K4: 100 | L4: 110 | M4: 125 | N4: 140 | O4: 140+ | S4: 48 | T4: 52 | U4: 56 | V4: 60 | W4: 67.5 | X4: 75 | Y4: 82.5 | Z4: 90 | AA4: 100 | AB4: 110 | AC4: 125 | AD4: 140 | AE4: 140+
B5: МСМК | C5: 365 | D5: 365 | E5: 400 | F5: 430 | G5: 510 | H5: 575 | I5: 635 | J5: 680 | K5: 722.5 | L5: 740 | M5: 777.5 | N5: 795 | O5: 795 | R5: МСМК | S5: 110 | T5: 115 | U5: 122.5 | V5: 132.5 | W5: 145 | X5: 157.5 | Y5: 170 | Z5: 180 | AA5: 192.5 | AB5: 195 | AC5: 205 | AD5: 215 | AE5: 220
B6: МС | C6: 337.5 | D6: 337.5 | E6: 370 | F6: 395 | G6: 470 | H6: 527.5 | I6: 580 | J6: 625 | K6: 665 | L6: 682.5 | M6: 715 | N6: 730 | O6: 730 | R6: МС | S6: 95 | T6: 100 | U6: 105 | V6: 112.5 | W6: 125 | X6: 140 | Y6: 155 | Z6: 157.5 | AA6: 165 | AB6: 175 | AC6: 185 | AD6: 190 | AE6: 192.5
B7: КМС | C7: 300 | D7: 300 | E7: 327.5 | F7: 355 | G7: 420 | H7: 470 | I7: 522.5 | J7: 557.5 | K7: 590 | L7: 610 | M7: 637.5 | N7: 650 | O7: 650 | R7: КМС | S7: 80 | T7: 87.5 | U7: 95 | V7: 102.5 | W7: 112.5 | X7: 122.5 | Y7: 132.5 | Z7: 140 | AA7: 147.5 | AB7: 152.5 | AC7: 160 | AD7: 167.5 | AE7: 170
B8: I | C8: 265 | D8: 265 | E8: 287.5 | F8: 310 | G8: 370 | H8: 415 | I8: 460 | J8: 490 | K8: 520 | L8: 535 | M8: 560 | N8: 570 | O8: 570 | R8: I | S8: 70 | T8: 77.5 | U8: 85 | V8: 90 | W8: 102.5 | X8: 107.5 | Y8: 117.5 | Z8: 125 | AA8: 132.5 | AB8: 137.5 | AC8: 145 | AD8: 150 | AE8: 152.5
B9: II | C9: 230 | D9: 230 | E9: 252.5 | F9: 270 | G9: 322.5 | H9: 360 | I9: 400 | J9: 430 | K9: 455 | L9: 467.5 | M9: 490 | N9: 500 | O9: 500 | R9: II | S9: 60 | T9: 70 | U9: 75 | V9: 82.5 | W9: 92.5 | X9: 100 | Y9: 107.5 | Z9: 112.5 | AA9: 117.5 | AB9: 122.5 | AC9: 130 | AD9: 135 | AE9: 137.5
B10: III | C10: 200 | D10: 200 | E10: 220 | F10: 237.5 | G10: 280 | H10: 315 | I10: 350 | J10: 375 | K10: 397.5 | L10: 410 | M10: 430 | N10: 435 | O10: 435 | R10: III | S10: 55 | T10: 62.5 | U10: 67.5 | V10: 72.5 | W10: 80 | X10: 87.5 | Y10: 95 | Z10: 100 | AA10: 105 | AB10: 110 | AC10: 115 | AD10: 117.5 | AE10: 122.5
B12: ЖЕНЩИНЫ | R12: ЖЕНЩИНЫ
C13: 44 | D13: 48 | E13: 52 | F13: 56 | G13: 60 | H13: 67.5 | I13: 75 | J13: 82.5 | K13: 90 | L13: 90+ | S13: 44 | T13: 48 | U13: 52 | V13: 56 | W13: 60 | X13: 67.5 | Y13: 75 | Z13: 82.5 | AA13: 90 | AB13: 90+
B14: МСМК | C14: 245 | D14: 260 | E14: 277.5 | F14: 302.5 | G14: 320 | H14: 345 | I14: 370 | J14: 380 | K14: 390 | L14: 417.5 | R14: МСМК | S14: 52.5 | T14: 57.5 | U14: 65 | V14: 75 | W14: 80 | X14: 85 | Y14: 90 | Z14: 95 | AA14: 100 | AB14: 105
B15: МС | C15: 220 | D15: 235 | E15: 252.5 | F15: 275 | G15: 290 | H15: 312.5 | I15: 335 | J15: 345 | K15: 355 | L15: 380 | R15: МС | S15: 40 | T15: 47.5 | U15: 55 | V15: 65 | W15: 67.5 | X15: 70 | Y15: 75 | Z15: 80 | AA15: 85 | AB15: 87.5
B16: КМС | C16: 200 | D16: 212.5 | E16: 227.5 | F16: 247.5 | G16: 262.5 | H16: 280 | I16: 305 | J16: 312.5 | K16: 320 | L16: 342.5 | R16: КМС | S16: 37.5 | T16: 42.5 | U16: 45 | V16: 55 | W16: 60 | X16: 62.5 | Y16: 67.5 | Z16: 70 | AA16: 75 | AB16: 77.5
B17: I | C17: 175 | D17: 190 | E17: 202.5 | F17: 220 | G17: 235 | H17: 250 | I17: 270 | J17: 280 | K17: 285 | L17: 305 | R17: I | S17: 32.5 | T17: 37.5 | U17: 40 | V17: 50 | W17: 52.5 | X17: 57.5 | Y17: 60 | Z17: 62.5 | AA17: 65 | AB17: 70
B18: II | C18: 155 | D18: 165 | E18: 175 | F18: 190 | G18: 200 | H18: 217.5 | I18: 232.5 | J18: 240 | K18: 245 | L18: 262.5 | R18: II | S18: 30 | T18: 32.5 | U18: 37.5 | V18: 45 | W18: 50 | X18: 52.5 | Y18: 55 | Z18: 57.5 | AA18: 60 | AB18: 62.5
B19: III | C19: 130 | D19: 140 | E19: 150 | F19: 165 | G19: 172.5 | H19: 185 | I19: 200 | J19: 205 | K19: 210 | L19: 225 | R19: III | S19: 27.5 | T19: 30 | U19: 32.5 | V19: 40 | W19: 42.5 | X19: 45 | Y19: 47.5 | Z19: 50 | AA19: 52.5 | AB19: 55
B22: MULTI-REP BENCH PRESS | R22: DEADLIFT
B23: МУЖЧИНЫ - собственный вес | R23: МУЖЧИНЫ
C24: 48 | D24: 52 | E24: 56 | F24: 60 | G24: 67.5 | H24: 75 | I24: 82.5 | J24: 90 | K24: 100 | L24: 110 | M24: 125 | N24: 140 | O24: 140+ | S24: 48 | T24: 52 | U24: 56 | V24: 60 | W24: 67.5 | X24: 75 | Y24: 82.5 | Z24: 90 | AA24: 100 | AB24: 110 | AC24: 125 | AD24: 140 | AE24: 140+
B25: МСМК | C25: 57 | D25: 56 | E25: 54 | F25: 53 | G25: 50 | H25: 48 | I25: 46 | J25: 44 | K25: 42 | L25: 40 | M25: 37 | N25: 35 | O25: 31 | R25: МСМК | S25: 157.5 | T25: 157.5 | U25: 170 | V25: 185 | W25: 215 | X25: 245 | Y25: 270 | Z25: 285 | AA25: 292.5 | AB25: 300 | AC25: 315 | AD25: 320 | AE25: 320
B26: МС | C26: 51 | D26: 50 | E26: 48 | F26: 47 | G26: 44 | H26: 42 | I26: 40 | J26: 38 | K26: 36 | L26: 34 | M26: 32 | N26: 29 | O26: 27 | R26: МС | S26: 145 | T26: 145 | U26: 155 | V26: 160 | W26: 195 | X26: 225 | Y26: 250 | Z26: 260 | AA26: 267.5 | AB26: 270 | AC26: 290 | AD26: 295 | AE26: 295
B27: КМС | C27: 46 | D27: 45 | E27: 43 | F27: 41 | G27: 39 | H27: 37 | I27: 35 | J27: 33 | K27: 31 | L27: 29 | M27: 27 | N27: 24 | O27: 22 | R27: КМС | S27: 130 | T27: 130 | U27: 140 | V27: 150 | W27: 175 | X27: 200 | Y27: 225 | Z27: 235 | AA27: 240 | AB27: 245 | AC27: 257.5 | AD27: 262.5 | AE27: 262.5
B28: I | C28: 35 | D28: 34 | E28: 32 | F28: 31 | G28: 28 | H28: 26 | I28: 24 | J28: 22 | K28: 20 | L28: 18 | M28: 16 | N28: 15 | O28: 14 | R28: I | S28: 115 | T28: 115 | U28: 122.5 | V28: 130 | W28: 155 | X28: 177.7 | Y28: 195 | Z28: 205 | AA28: 210 | AB28: 217.5 | AC28: 225 | AD28: 230 | AE28: 230
B29: II | C29: 30 | D29: 29 | E29: 27 | F29: 26 | G29: 23 | H29: 21 | I29: 19 | J29: 17 | K29: 15 | L29: 14 | M29: 13 | N29: 12 | O29: 11 | R29: II | S29: 100 | T29: 100 | U29: 107.5 | V29: 115 | W29: 135 | X29: 155 | Y29: 170 | Z29: 180 | AA29: 185 | AB29: 190 | AC29: 197.5 | AD29: 200 | AE29: 200
B30: III | C30: 25 | D30: 24 | E30: 22 | F30: 21 | G30: 18 | H30: 16 | I30: 15 | J30: 14 | K30: 13 | L30: 12 | M30: 11 | N30: 10 | O30: 9 | R30: III | S30: 85 | T30: 85 | U30: 95 | V30: 100 | W30: 117.5 | X30: 135 | Y30: 150 | Z30: 155 | AA30: 160 | AB30: 165 | AC30: 172.5 | AD30: 175 | AE30: 175
B32: ЖЕНЩИНЫ - половина собственного веса | R32: ЖЕНЩИНЫ
C33: 44 | D33: 48 | E33: 52 | F33: 56 | G33: 60 | H33: 67.5 | I33: 75 | J33: 82.5 | K33: 90 | L33: 90+ | S33: 44 | T33: 48 | U33: 52 | V33: 56 | W33: 60 | X33: 67.5 | Y33: 75 | Z33: 82.5 | AA33: 90 | AB33: 90+
B34: МСМК | C34: 95 | D34: 93 | E34: 91 | F34: 89 | G34: 87 | H34: 85 | I34: 82 | J34: 79 | K34: 77 | L34: 75 | R34: МСМК | S34: 112.5 | T34: 120 | U34: 130 | V34: 140 | W34: 147.5 | X34: 160 | Y34: 165 | Z34: 172.5 | AA34: 175 | AB34: 185
B35: МС | C35: 80 | D35: 78 | E35: 76 | F35: 74 | G35: 72 | H35: 70 | I35: 68 | J35: 65 | K35: 63 | L35: 60 | R35: МС | S35: 102.5 | T35: 107.5 | U35: 120 | V35: 125 | W35: 135 | X35: 145 | Y35: 150 | Z35: 157.5 | AA35: 160 | AB35: 170
B36: КМС | C36: 66 | D36: 64 | E36: 62 | F36: 60 | G36: 58 | H36: 56 | I36: 55 | J36: 53 | K36: 52 | L36: 48 | R36: КМС | S36: 92.5 | T36: 97.5 | U36: 105 | V36: 115 | W36: 120 | X36: 130 | Y36: 135 | Z36: 142.5 | AA36: 145 | AB36: 150
B37: I | C37: 52 | D37: 50 | E37: 48 | F37: 46 | G37: 44 | H37: 42 | I37: 40 | J37: 38 | K37: 36 | L37: 34 | R37: I | S37: 82.5 | T37: 85 | U37: 95 | V37: 100 | W37: 105 | X37: 117.5 | Y37: 120 | Z37: 125 | AA37: 130 | AB37: 135
B38: II | C38: 40 | D38: 38 | E38: 36 | F38: 34 | G38: 32 | H38: 30 | I38: 28 | J38: 26 | K38: 24 | L38: 22 | R38: II | S38: 70 | T38: 75 | U38: 82.5 | V38: 87.5 | W38: 92.5 | X38: 100 | Y38: 105 | Z38: 107.5 | AA38: 110 | AB38: 115
B39: III | C39: 28 | D39: 27 | E39: 26 | F39: 25 | G39: 23 | H39: 22 | I39: 21 | J39: 19 | K39: 18 | L39: 17 | R39: III | S39: 60 | T39: 65 | U39: 70 | V39: 75 | W39: 80 | X39: 88 | Y39: 90 | Z39: 93 | AA39: 95 | AB39: 100
B42: STRICT CURL
B43: МУЖЧИНЫ
C44: 48 | D44: 52 | E44: 56 | F44: 60 | G44: 67.5 | H44: 75 | I44: 82.5 | J44: 90 | K44: 100 | L44: 110 | M44: 125 | N44: 140 | O44: 140+
B45: МСМК | C45: 41 | D45: 41 | E45: 47 | F45: 54 | G45: 61 | H45: 67 | I45: 72 | J45: 76 | K45: 79 | L45: 82 | M45: 83 | N45: 84 | O45: 84
B46: МС | C46: 37 | D46: 37 | E46: 43 | F46: 50 | G46: 56 | H46: 61 | I46: 65 | J46: 69 | K46: 73 | L46: 76 | M46: 77 | N46: 78 | O46: 78
B47: КМС | C47: 34 | D47: 34 | E47: 39 | F47: 45 | G47: 51 | H47: 55 | I47: 58 | J47: 62 | K47: 65 | L47: 67 | M47: 68 | N47: 69 | O47: 69
B48: I | C48: 30 | D48: 30 | E48: 35 | F48: 40 | G48: 45 | H48: 49 | I48: 52 | J48: 55 | K48: 57 | L48: 60 | M48: 61 | N48: 62 | O48: 62
B49: II | C49: 25 | D49: 25 | E49: 29 | F49: 33 | G49: 37 | H49: 41 | I49: 43 | J49: 46 | K49: 49 | L49: 50 | M49: 50 | N49: 50 | O49: 50
B50: III | C50: 21 | D50: 21 | E50: 25 | F50: 28 | G50: 32 | H50: 35 | I50: 38 | J50: 40 | K50: 42 | L50: 44 | M50: 44 | N50: 44 | O50: 44
B52: ЖЕНЩИНЫ
C53: 44 | D53: 48 | E53: 52 | F53: 56 | G53: 60 | H53: 67.5 | I53: 75 | J53: 82.5 | K53: 90 | L53: 90+
B54: МСМК | C54: 26 | D54: 29 | E54: 33 | F54: 36 | G54: 38 | H54: 39 | I54: 41 | J54: 43 | K54: 46 | L54: 48
B55: МС | C55: 23 | D55: 27 | E55: 30 | F55: 33 | G55: 34 | H55: 36 | I55: 38 | J55: 41 | K55: 42 | L55: 44
B56: КМС | C56: 21 | D56: 24 | E56: 27 | F56: 30 | G56: 32 | H56: 34 | I56: 36 | J56: 38 | K56: 39 | L56: 41
B57: I | C57: 16 | D57: 19 | E57: 21 | F57: 24 | G57: 25 | H57: 26 | I57: 27 | J57: 29 | K57: 31 | L57: 33
B58: II | C58: 15 | D58: 17 | E58: 19 | F58: 21 | G58: 22 | H58: 23 | I58: 23 | J58: 25 | K58: 27 | L58: 29
B59: III | C59: 12 | D59: 15 | E59: 16 | F59: 18 | G59: 19 | H59: 20 | I59: 20 | J59: 22 | K59: 23 | L59: 25

Sheet Взвешивание (2) (hidden)
B2: Турнир | C2: Strict Curl + DL + SC 2018
B3: Дисциплины | C3: MBP + DL + SC
B5: Дисциплина | C5: Дата
B6: Многоповторный жим | C6: 2006-04-12 | F6: заменить группу на кнопку спрятать - не занимает место
B7: Становая тяга | C7: 2017-05-20 | F7: не решен вопрос, когда вставляешь в протокол атлета новой в к, не проставляется в к и рекорд
B8: Строгий подъем на бицепс | C8: 2018-01-01
K9: =COUNT(K13:K262) -> 0 | M9: =COUNT(M13:M262) -> 0 | N9: =COUNT(N13:N262) -> 19 | O9: =COUNT(O13:O262) -> 44 | P9: =COUNT(P13:P262) -> 65
J10: 1-й подх
J11: PL | M11: BP | N11: MBP | O11: DL | P11: SC
A12: # | B12: Name | C12: BY | D12: Sex | E12: BW | F12: City | G12: Coach | H12: Tel | I12: Charge | J12: SQ | K12: BP | L12: DL
A13: 1 | B13: Агарков Андрей | C13: 1988-02-21 | D13: m | E13: 108.6 | F13: Харьков | G13: самост. | N13: 110
A14: =1+A13 -> 2 | B14: Алифанов Дмитрий | C14: 1981-10-05 | D14: m | E14: 129.8 | F14: Харьков | G14: самост. | O14: 200 | P14: 66
A15: =1+A14 -> 3 | B15: Аллахвердиев Рамиль | C15: 1998-10-25 | D15: m | E15: 137.4 | F15: Харьков | G15: Калюжный К. | O15: 245
A16: 4 | B16: Алябин Александр | C16: 1992-07-21 | D16: m | E16: 97.1 | F16: Харьков | G16: самост. | P16: 45
A17: 5 | B17: Андрейчук Александр | C17: 1996-01-27 | D17: m | E17: 122.4 | F17: Харьков | G17: самост. | P17: 78
A18: 6 | B18: Андрусенко Людмила | C18: 2002-02-01 | D18: f | E18: 73.2 | F18: Балаклея | G18: Морозов П. | O18: 87.5 | P18: 25
A19: 7 | B19: Андрющенко Артем | C19: 1987-07-23 | D19: m | E19: 101.9 | F19: Лозовая | G19: самост. | N19: 102.5
A20: 8 | B20: Анищенко Станислав | C20: 1985-03-09 | D20: m | E20: 55 | F20: Харьков | G20: Барановский Ф. | N20: 55 | P20: 45
A21: 9 | B21: Анохин Дмитрий | C21: 1994-09-30 | D21: m | E21: 97.9 | F21: Люботин | G21: самост. | O21: 200
A22: 10 | B22: Аронович Ольга | C22: 1991-09-02 | D22: f | E22: 46.2 | F22: Харьков | G22: Маслов А. | O22: 55 | P22: 20
A23: 11 | B23: Артемова Юлия | C23: 1985-10-02 | D23: f | E23: 74.8 | F23: Харьков | G23: Пикалов С. | P23: 35
A24: 12 | B24: Бабенко Виктор | C24: 1963-09-06 | D24: m | E24: 80 | F24: Люботин | G24: самост. | P24: 80
A25: 13 | B25: Бабенко София | C25: 2011-08-26 | D25: f | E25: 17.2 | F25: Люботин | G25: самост. | P25: 7
A26: 14 | B26: Байбаков Лев | C26: 2000-12-01 | D26: m | E26: 97.2 | F26: Харьков | G26: Микуленко А. | N26: 97.5 | O26: 180
A27: 15 | B27: Байрамов Артур | C27: 1992-05-25 | D27: m | E27: 81.5 | F27: Харьков | G27: Кравченко Д. | O27: 175
A28: 16 | B28: Балакирева Юлия | C28: 1982-12-11 | D28: f | E28: 48.9 | F28: Песочин | G28: Маслов А. | O28: 70 | P28: 27.5
A29: 17 | B29: Беликов Николай | C29: 1990-09-14 | D29: m | E29: 60.4 | F29: Горловка | G29: самост. | P29: 56
A30: 18 | B30: Белый Дмитрий | C30: 1995-05-28 | D30: m | E30: 116.2 | F30: Харьков | G30: Колядинский А. | O30: 235
A31: 19 | B31: Бессараб Андрей | C31: 1993-05-15 | D31: m | E31: 100.2 | F31: Одесса | G31: Ноябрев Д. | O31: 177.5
A32: 20 | B32: Блажко Владислав | C32: 1998-02-19 | D32: m | E32: 109.2 | F32: Пересечное | G32: самост. | P32: 60
A33: 21 | B33: Богдан Ярослав | C33: 1987-05-23 | D33: m | E33: 99 | F33: Славянск | G33: самост. | P33: 77
A34: 22 | B34: Бойко Неля | C34: 1995-12-31 | D34: f | E34: 55 | F34: Харьков | G34: Гончаров А. | N34: 72.5 | P34: 32
A35: 23 | B35: Бондарь Виктор | C35: 2001-03-29 | D35: m | E35: 141.2 | F35: Харьков | G35: Куликов А. | O35: 300
A36: 24 | B36: Бреславец Антон | C36: 2001-07-23 | D36: m | E36: 144.6 | F36: Харьков | G36: Блажко В., Дяк С. | O36: 250
A37: 25 | B37: Бугиль Артур | C37: 1995-04-11 | D37: m | E37: 51.3 | F37: Харьков | G37: Бурый Я. | N37: 52.5 | O37: 100 | P37: 45
A38: 26 | B38: Булгаков Никита | C38: 1998-08-21 | D38: m | E38: 57.3 | F38: Северодонецк | G38: Белоусов А. | O38: 150
A39: 27 | B39: Бурый Ярослав | C39: 1993-09-20 | D39: m | E39: 99 | F39: Донецк | G39: Бугиль А. | P39: 53
A40: 28 | B40: Быхун Андрей | C40: 1996-12-12 | D40: m | E40: 98 | F40: Харьков | G40: Гончаров А. | N40: 37.5 | O40: 130 | P40: 30
A41: 29 | B41: Вавренюк Диана | C41: 1994-12-05 | D41: f | E41: 76.6 | F41: Харьков | G41: Курило Р. | O41: 50
A42: 30 | B42: Вадименко Вадим | C42: 1992-04-01 | D42: m | E42: 125.4 | F42: Змиев | G42: самост. | O42: 245 | P42: 70
A43: 31 | B43: Вандюк Данила | C43: 1998-08-03 | D43: m | E43: 99.9 | F43: Харьков | G43: Рябоконь А. | P43: 55
A44: 32 | B44: Варченко Максим | C44: 1991-05-12 | D44: m | E44: 61.5 | F44: Харьков | G44: самост. | P44: 55
A45: 33 | B45: Васюк Евгений | C45: 1993-10-25 | D45: m | E45: 109.8 | F45: Харьков | G45: Кравченко В. | P45: 35
A46: 34 | B46: Ващенко Константин | C46: 1980-10-13 | D46: m | E46: 97 | F46: Харьков | G46: Заливан И., Романюха С. | O46: 250 | P46: 77
A47: 35 | B47: Величко Игорь | C47: 1996-06-01 | D47: m | E47: 85 | F47: Лисичанск | G47: самост. | N47: 85
A48: 36 | B48: Вирченко Валерия | C48: 1982-12-02 | D48: f | E48: 57.1 | F48: Харьков | G48: Говардовский В. | N48: 30 | P48: 30
A49: 37 | B49: Вознюк Максим | C49: 1987-07-21 | D49: m | E49: 59.6 | F49: Песочин | G49: самост. | O49: 80
A50: 38 | B50: Володько Василий | C50: 1994-10-28 | D50: m | E50: 51.7 | F50: Харьков | G50: Люшуков А. | P50: 57.5
A51: 39 | B51: Волошин Тимур | C51: 1988-05-08 | D51: m | E51: 81.1 | F51: Харьков | G51: Ивашко Е. | O51: 190
A52: 40 | B52: Вощенко Анастасия | C52: 1995-07-25 | D52: f | E52: 60.7 | F52: Харьков | G52: Вощенко А. | N52: 32.5 | O52: 105 | P52: 28
A53: 41 | B53: Гайнулин Дмитрий | C53: 1992-12-17 | D53: m | E53: 82 | F53: Харьков | G53: самост. | P53: 60
A54: 42 | B54: Ганзюк Артем | C54: 1996-04-01 | D54: m | E54: 99.9 | F54: Харьков | G54: Каспаров В. | O54: 290 | P54: 56
A55: 43 | B55: Гасымов Рафаэль | C55: 1999-03-25 | D55: m | E55: 59 | F55: Харьков | G55: Тищенко П. | P55: 68
A56: 44 | B56: Геворкян Артем | C56: 1992-02-23 | D56: m | E56: 139.1 | F56: Харьков | G56: Калашник Д. | P56: 56
A57: 45 | B57: Герман Ирина | C57: 1975-06-16 | D57: f | E57: 64.3 | F57: Люботин | G57: Бабенко В. | P57: 38
A58: 46 | B58: Герус Юлия | C58: 1991-05-04 | D58: f | E58: 62.2 | F58: Харьков | G58: Бабенко В. | P58: 55
A59: 47 | B59: Гибнер Станислав | C59: 1979-11-08 | D59: m | E59: 135.2 | F59: Харьков | G59: самост. | O59: 235
A60: 48 | B60: Глинский Андрей | C60: 2005-03-20 | D60: m | E60: 117.7 | F60: Балаклея | G60: Бабенко В. | O60: 200
A61: 49 | B61: Глушак Максим | C61: 1985-03-02 | D61: m | E61: 100.8 | F61: Харьков | G61: Нечаусов М. | N61: 107.5
A62: 50 | B62: Гнатусин Антон | C62: 2009-04-22 | D62: m | E62: 105.9 | F62: Балаклея | G62: самост. | P62: 69
A63: 51 | B63: Калачинский Анатолий | C63: 1978-07-14 | D63: m | E63: 130 | F63: Люботин | G63: Кибальник А. | O63: 250
A64: 52 | B64: Калашник Дмитрий | C64: 1975-07-26 | D64: m | E64: 115.4 | F64: Харьков | G64: самост. | P64: 82
A65: 53 | B65: Калашникова Анастасия | C65: 1985-08-09 | D65: f | E65: 57.1 | F65: Харьков | G65: Коц А. | P65: 25
A66: 54 | B66: Калиниченко Дмитрий | C66: 1983-06-04 | D66: m | E66: 90.4 | F66: Старобельск | G66: Лебедь С. | O66: 125
A67: 55 | B67: Калугин Ярослав | C67: 1994-05-08 | D67: m | E67: 96 | F67: Харьков | G67: Гончаров А. | N67: 80 | P67: 70
A68: 56 | B68: Камышан Павел | C68: 1979-09-18 | D68: m | E68: 98.9 | F68: Харьков | G68: самост. | O68: 125
A69: 57 | B69: Кармазина Елена | C69: 1988-12-22 | D69: f | E69: 89 | F69: Краматорск | G69: самост. | N69: 45 | O69: 155 | P69: 40
A70: 58 | B70: Кинякин Станислав | C70: 1999-05-13 | D70: m | E70: 122.8 | F70: Харьков | G70: Хижняк С. | O70: 200
A71: 59 | B71: Кирик Вадим | C71: 1993-01-14 | D71: m | E71: 94.6 | F71: Харьков | G71: самост. | P71: 55
A72: 60 | B72: Клещевникова Юлия | C72: 1983-11-26 | D72: f | E72: 76.1 | F72: Харьков | G72: Говардовский В. | P72: 20
A73: 61 | B73: Климчук Сергей | C73: 1990-10-05 | D73: m | E73: 103.7 | F73: Харьков | G73: Романаускене А. | O73: 280
A74: 62 | B74: Клочко Олег | C74: 1992-05-06 | D74: m | E74: 133 | F74: Харьков | G74: самост. | P74: 90
A75: 63 | B75: Ковалев Александр | C75: 1983-12-03 | D75: m | E75: 101.8 | F75: Торецк | G75: Савченков С. | N75: 102.5
A76: 64 | B76: Ковалев Антон | C76: 1973-03-03 | D76: m | E76: 59.5 | F76: Харьков | G76: самост. | O76: 170
A77: 65 | B77: Ковалева Дарина | C77: 1990-12-27 | D77: f | E77: 41.1 | F77: Харьков | G77: Гончаров А. | O77: 150
A78: 66 | B78: Коваленко Анна | C78: 1998-06-26 | D78: f | E78: 45.5 | F78: Сумы | G78: самост. | N78: 25 | P78: 22.5
A79: =1+A78 -> 67 | B79: Козача Артем | C79: 1998-06-01 | D79: m | E79: 95 | F79: Харьков | G79: самост. | O79: 110 | P79: 67
A80: 68 | B80: Козлов Андрей | C80: 1982-10-07 | D80: m | E80: 65.2 | F80: Харьков | G80: Фурсов Р. | O80: 120
A81: 69 | B81: Колесник Геннадий | C81: 1970-07-26 | D81: m | E81: 73 | F81: Харьков | G81: самост. | O81: 130
A82: 70 | B82: Колесник Олексей | C82: 1980-11-28 | D82: m | E82: 98.6 | F82: Купянск | G82: Исаев Н. | P82: 45
A83: 71 | B83: Колесников Андрей | C83: 1996-12-05 | D83: m | E83: 137.2 | F83: Харьков | G83: Корниенко Н. | P83: 84
A84: 72 | B84: Колий Виктор | C84: 1997-09-16 | D84: m | E84: 124.8 | F84: Харьков | G84: самост. | P84: 60
A85: 73 | B85: Колядинский Александр | C85: 1969-01-28 | D85: m | E85: 57.2 | F85: Харьков | G85: самост. | O85: 205
A86: 74 | B86: Компаниец Вячеслав | C86: 1981-09-08 | D86: m | E86: 105 | F86: Харьков | G86: Пискун О. | N86: 105
A87: 75 | B87: Коношенко Сергей | C87: 1994-06-04 | D87: m | E87: 47.2 | F87: Украина | G87: самост. | O87: 207.5 | P87: 40
A88: 76 | B88: Коржов Дмитрий | C88: 1988-04-05 | D88: m | E88: 78.5 | F88: Харьков | G88: самост. | P88: 30
A89: 77 | B89: Корниенко Светлана | C89: 1989-04-28 | D89: f | E89: 41.8 | F89: Харьков | G89: Корниенко Н. | P89: 60
A90: 78 | B90: Кость Александр | C90: 1968-05-04 | D90: m | E90: 119.8 | F90: Люботин | G90: Бабенко В. | P90: 60
A91: 79 | B91: Кофанов Андрей | C91: 1985-11-27 | D91: m | E91: 127.9 | F91: Харьков | G91: самост. | O91: 120
A92: 80 | B92: Коц Артем | C92: 1987-06-20 | D92: m | E92: 98 | F92: Харьков | G92: самост. | P92: 70
A93: 81 | B93: Кошкарев Владислав | C93: 1997-09-18 | D93: m | E93: 51.5 | F93: Харьков | G93: самост. | O93: 145
A94: 82 | B94: Кощей Дмитрий | C94: 1994-02-17 | D94: m | E94: 118.8 | F94: Харьков | G94: самост. | P94: 58
A95: 83 | B95: Кравченко Владислав | C95: 1995-03-17 | D95: m | E95: 111.2 | F95: Харьков | G95: самост. | O95: 200
A96: 84 | B96: Кравченко Дмитрий | C96: 1989-04-11 | D96: m | E96: 57 | F96: Харьков | G96: самост. | N96: 57.5 | O96: 100
A97: 85 | B97: Кравченко Евгений | C97: 1985-07-16 | D97: m | E97: 74.1 | F97: Змиев | G97: Вадименко В. | O97: 270
A98: 86 | B98: Крамар Кирилл | C98: 1992-06-25 | D98: m | E98: 60.6 | F98: Харьков | G98: Герас Н. | P98: 45
A99: 87 | B99: Кривонос Константин | C99: 1996-01-01 | D99: m | E99: 57 | F99: Балаклея | G99: Морозов П. | O99: 210 | P99: 60
A100: 88 | B100: Кругляк Виктория | C100: 1974-08-16 | D100: f | E100: 44.8 | F100: Харьков | G100: Кравченко Д. | N100: 22.5 | P100: 32
A101: 89 | B101: Кузнецов Павел | C101: 1980-06-18 | D101: m | E101: 98.5 | F101: Харьков | G101: самост. | P101: 72
A102: 90 | B102: Кузнецова Анастасия | C102: 1994-03-28 | D102: f | E102: 44.3 | F102: Харьков | G102: самост. | P102: 55
A103: 91 | B103: Куренная Альбина | C103: 1995-02-27 | D103: f | E103: 75.6 | F103: Харьков | G103: Клочко О. | P103: 44
A104: 92 | B104: Кухар Юрий | C104: 1982-08-02 | D104: m | E104: 94.4 | F104: Харьков | G104: Нечаусов М. | P104: 77
A105: 93 | B105: Кухарев Александр | C105: 1993-05-01 | D105: m | E105: 54 | F105: Верхнеднепровск | G105: самост. | P105: 78
A106: 94 | B106: Лагун Виктория | C106: 1999-01-15 | D106: f | E106: 65 | F106: Балаклея | G106: Бандура А. | P106: 55
A107: 95 | B107: Лалаян Давид | C107: 1991-08-07 | D107: m | E107: 93 | F107: Харьков | G107: Калашник Д. | P107: 54
A108: 96 | B108: Ласинский Дмитрий | C108: 1997-06-16 | D108: m | E108: 77.7 | F108: Одесса | G108: самост. | P108: 70
A109: 97 | B109: Лебеденец Василий | C109: 1962-10-22 | D109: m | E109: 73.6 | F109: Золочев | G109: самост. | P109: 80
A110: 98 | B110: Лебедь Сергей | C110: 1987-11-02 | D110: m | E110: 90.2 | F110: Старобельск | G110: самост. | P110: 63
A111: 99 | B111: Левченко Ольга | C111: 1983-02-14 | D111: f | E111: 42.2 | F111: Харьков | G111: Калашник Д. | P111: 30
A112: 100 | B112: Литвин Анатолий | C112: 1959-06-01 | D112: m | E112: 95.8 | F112: Харьков | G112: Донченко Д. | N112: 60 | P112: 62
A113: 101 | B113: Литвиненко Виталий | C113: 1979-10-06 | D113: m | E113: 53 | F113: Харьков | G113: самост. | O113: 250
A114: 102
A115: 103
A116: 104
A117: 105
A118: 106
A119: 107
A120: 108
A121: 109
A122: 110
A123: 111
A124: 112
A125: 113
A126: 114
A127: 115
A128: 116
A129: 117
A130: 118
A131: 119
A132: 120
A133: 121
A134: 122
A135: 123
A136: 124
A137: 125
A138: 126
A139: 127
A140: 128
A141: 129
A142: 130
A143: =1+A142 -> 131
A144: 132
A145: 133
A146: 134
A147: 135
A148: 136
A149: 137
A150: 138
A151: 139
A152: 140
A153: 141
A154: 142
A155: 143
A156: 144
A157: 145
A158: 146
A159: 147
A160: 148
A161: 149
A162: 150
A163: 151
A164: 152
A165: 153
A166: 154
A167: 155
A168: 156
A169: 157
A170: 158
A171: 159
A172: 160
A173: 161
A174: 162
A175: 163
A176: 164
A177: 165
A178: 166
A179: 167
A180: 168
A181: 169
A182: 170
A183: 171
A184: 172
A185: 173
A186: 174
A187: 175
A188: 176
A189: 177
A190: 178
A191: 179
A192: 180
A193: 181
A194: 182
A195: 183
A196: 184
A197: 185
A198: 186
A199: 187
A200: 188
A201: 189
A202: 190
... 60 more rows
